Workbook

Sheet Solicitud de Cotización General
C1: SOLICITUD DE COTIZACIÓN
B2: Solicitud de cotización - Información general
B3: Acuerdo Marco para la prestaciòn del Servicio Integral de Aseo y Cafetería
A4: Versión: 42 ---- 14/05/2024
A5: 1. Información básica de la Entidad Compradora
A7: Nombre de la Entidad Compradora | C7: PROCURADURIA GENERAL DE LA NACION
A8: Dirección | C8: CARRERA 5 15-80 PISO 3 | G8: Teléfono | H8: 3006267621
A9: Departamento | C9: BOGOTA | E9: Municipio | F9: BOGOTA | G9: Región | H9: 13
A10: Correo Electrónico | C10: jlgalvis@procuraduria.gov.co
A11: Vigencia del contrato en meses | C11: 7 | D11: Fecha estimada de inicio: dd/mm/aaaa | F11: 2024-09-09 | G11: ¿Recargo por dotación especial? | H11: =IF(COUNTIF($J$21:$J$21,"Sí")>0,"Sí","No") -> No
A12: ¿Requiere el servicio para otras sedes? | C12: Sí | D12: N° de sedes | F12: 1
A14: 2. Personal | J14: Detalle Sede
A16: Campo Informativo | C16: Descripción | J16: Sede 1
A17: Dotación clima frío | C17: ¿La entidad requiere Dotación para clima frio de acuerdo con lo descrito en el Anexo 2? | J17: No
A18: Compra a pequeños productores agropecuarios locales | C18: En caso de adquirir café social, ¿requiere que esta adquisición se realice a pequeños productores locales y productores locales agropecuarios? | J18: No
A19: Gestión de residuos peligrosos | C19: En caso de que la entidad no contemple dentro de su Plan de Gestión Ambiental un protocolo para la gestión de residuos peligrosos ¿requiere que el proveedor realice la disposición final de los residuos peligrosos generados en virtud de la prestación del Servicio? | J19: No
A20: Horas extras | C20: ¿La entidad requiere horas extras? | H20: No
A21: Dotación especial | C21: Observaciones: | H21: ¿La entidad requiere dotación especial? | J21: No
A23: Perfil del operario que requiere la sede | C23: Total requerido | D23: Días de trabajo | E23: Horario | F23: Observaciones | J23: =J16 -> Sede 1
A24: Tiempo completo
A25: Operario de aseo y cafetería | C25: =SUM(J25:J25) -> 1 | F25: Horario según normas legales vigentes | I25: =IF(ISBLANK(A25),0,"msg") -> msg | J25: 1
A26: 1. Si requiere agregue o elimine filas de Personal TC | C26: =SUM(C25:C25) -> 1 | J26: =SUM(J25:J25) -> 1
C27: =SUM(C25:C26) -> 2
A28: Perfil del operario que requiere la sede | C28: Total requerido | D28: Días de trabajo | E28: Horario | F28: Observaciones | J28: =J23 -> Sede 1
A29: Medio Tiempo
A30: Operario de aseo y cafetería MT | C30: =SUM(J30:J30) -> 0 | I30: =IF(ISBLANK(A30),0,"msg") -> msg | J30: 0
A31: 1. Si requiere agregue o elimine filas de Personal MT | C31: =SUM(C30:C30) -> 0 | J31: =SUM(J30:J30) -> 0
C32: =SUM(C30:C31) -> 0
A33: Perfil del operario que requiere la sede | C33: Total requerido | D33: Días de trabajo | E33: Horario | F33: Observaciones | J33: =J28 -> Sede 1
A34: Personal por Turnos
C35: =SUM(J35:J35) -> 0 | I35: =IF(ISBLANK(A35),0,"msg") -> 0
A36: 1. Si requiere agregue o elimine filas de Personal Turno | C36: =SUM(C35:C35) -> 0 | J36: =SUM(J35:J35) -> 0
A37: Total N° de operarios requeridos: | C37: =C26+C31+C36 -> 1
A39: Disminución del personal | J39: =J33 -> Sede 1
A40: perfil de operario | C40: Total requerido | D40: cantidad | E40: fecha inicial | G40: fecha final
C41: =SUM(J41:J41) -> 0
A42: 1. Si requiere agregue o elimine filas de Disminución Personal | C42: =SUM(C41:C41) -> 0 | J42: =SUM(J41:J41) -> 0
A44: Otras observaciones sobre la dotación del personal | D44: según normas legales vigentes
A46: 3. Bienes de Aseo y Cafetería
A48: ¿Requiere Bienes de Aseo y Cafetería? | D48: Sí | F48: =IF(D48="Sí",HYPERLINK("#'Detalle Bienes de Aseo y Caf'!F10","Seleccionar Bienes de Aseo y Cafetería"),"Sin Bienes") -> Seleccionar Bienes de Aseo y Cafetería
A50: Rango mensual de tiempo para la entrega de los Bienes de Aseo y Cafetería (mínimo 3 y máximo 5 días) | D50: Iniciando el día | E50: N° de días hábiles | G50: De cada mes entre las 8:00 a.m. y las 5:00 p.m.
D51: 1 | E51: 3
A53: 4. Servicios Especiales | J53: Detalle Sede
A55: Jardinería | C55: =IF($C56<100,"No","Sí") -> No | J55: =J23 -> Sede 1
A56: Área total de la zona verde a mantener en m2:
A58: 5. Visita técnica
A60: Determine el tiempo en el cual la Entidad Compradora recibirá a los Proveedores que quieran realizar la visita técnica
A62: Fecha 1 (dd/mm/aaaa) | C62: 2024-08-15 | E62: *Debe establecerse dentro de los cinco (5) días hábiles siguientes a la generación de la solicitud de cotización, dos (2) días disponibles para la realización de la visita.
A63: Fecha 2 (dd/mm/aaaa) | C63: 2024-08-26
A65: Hora | B65: Entre las | D65: 08:00:00 | E65: a.m. | F65: * Debe establecerse un rango de tiempo de mínimo tres (3) horas
B66: y las | D66: 12:00:00 | E66: p.m.
A68: La visita técnica es opcional y sus costos corren por cuenta del Proveedor.
A70: 6. Observaciones generales
A80: Gravámenes adicionales*
A82: Gravámenes adicionales (estampillas)
A83: No | B83: Descripción | F83: Porcentaje
A84: 1
D85: Total porcentaje: | F85: =SUM(F84:F84) -> 0
B86: Filas a agregar o eliminar Gravámenes:
B87: 1

Sheet Detalle Especificaciones
A1: DETALLE ESPECIFICACIONES
A2: Especificaciones del servicio - Sede 1
A4: Información básica
A7: Nombre de la Sede | C7: Procuraduria Regional Amazonas y Judiciales de Leticia
A8: Dirección | C8: Carrera 8 No. 11 - 114 - Barrio Jose Maria Hernandez | G8: Telefono | H8: 3028554110
A9: Departamento | C9: AMAZONAS | E9: Municipio | G9: LETICIA
A11: Información de las instalaciones de la sede
A15: Tipo de instalación: | D15: Edificio administrativo | E15: Si seleccionó otro, indique cuál:
A16: N° de pisos: | D16: 1 | E16: Área total aproximada en m2: | G16: 480
A17: N° de personas trabajando en las intalaciones: | D17: 13 | E17: N° estimado de visitantes por día: | G17: 20
A19: Tipo de área | C19: Cantidad | D19: Área total estimada en m2 | E19: Observaciones
A20: Ascensores
A21: Auditorios | C21: 1 | D21: 58
A22: Baños | C22: 5 | D22: 13
A23: Oficinas (N° de cubículos) | C23: 15 | D23: 232
A24: Parqueadero/sótano | C24: 2 | D24: 70
A25: Salones comunes
A26: Terrazas
A27: Zonas comunes
A28: Zonas de cafetería | C28: 1 | D28: 7
A29: Zonas verdes | C29: 7 | D29: 100
A30: Otro:
A32: Actividades a desarrollar
A36: Tipo de servicio requerido en la sede: | C36: Aseo y cafetería
A38: Actividades de servicio de aseo | E38: Marque con una X | F38: Frecuencia | G38: Observaciones
A39: Áreas Comunes | B39: Limpieza de pasillos, salas de reunión, áreas de archivo y almacenaje, bibliotecas, bodegas y otras áreas comunes solicitadas por la Entidad Compradora. | E39: X | F39: COORDINADO
B40: Limpieza, aspirado, brillo y cuidado de sillas, muebles, poltronas y mesas. | E40: X | F40: COORDINADO
B41: Limpieza de persianas, cortinas, cortinas tipo blackout, acrílicos, techos y rejillas de ventilación. | E41: X | F41: COORDINADO
B42: Limpieza de ventanas y vidrios interiores de oficinas, módulos, salas de reunión, zonas comunes y puertas,. | E42: X | F42: COORDINADO
B43: Limpieza de paredes, barandas, escaleras, muros y divisiones modulares. | E43: X | F43: COORDINADO
B44: Limpieza de cuadros, elementos decorativos, lámparas de escritorios, lámparas fluorescentes, marcos, enchufes e interruptores. | E44: X | F44: COORDINADO
B45: Limpieza y brillo de placas, ceniceros, letreros, plantas interiores, elementos decorativos que lo requieran, lámparas colgantes y otras lámparas que lo requieran. | E45: X | F45: COORDINADO
B46: Limpieza, aspirado, desmanchado y brillo de ascensores | E46: X | F46: COORDINADO
B47: Lavado de limpiones y paños. Lavado ocasional de manteles, servilletas y banderas en máquina lavadora. | E47: X | F47: COORDINADO
B48: Limpieza y vaciado de contenedores de basuras, canecas, ceniceros y papeleras. Cambio de bolsa plástica. | E48: X | F48: COORDINADO
B49: Limpieza de los implementos, equipos y utensilios empleados para el servicio de cafetería, entre ellos, microondas, neveras, grecas, dispensadores, estufas, así como las instalaciones físicas de las cafeterías. | E49: X | F49: COORDINADO
B50: Apoyo en la limpieza y organización de elementos luego de comidas, reuniones de trabajo o eventos especiales realizados por la Entidad Compradora | E50: X | F50: COORDINADO
B51: Evacuación diaria de desechos de las zonas objeto de la prestación del servicio: Introducción en empaques adecuados y disposición en los lugares destinados para su posterior recolección. | E51: X | F51: COORDINADO
B52: Limpieza básica de tanques, fuentes y piletas (máximo 5000 litros). No incluye insumos especializados. | E52: X | F52: COORDINADO
B53: Limpieza de parqueaderos, terrazas, sótanos y casetas de seguridad. No debe requerir maquinar adicional a la establecida en el Anexo 4 del pliego de condicioenes. | E53: X | F53: COORDINADO
B54: Limpieza y riego las plantas y jardines interiores, y riego de los jardines exteriores aledaños a las instalaciones Entidad Compradora | E54: X | F54: COORDINADO
B55: Eliminación de suciedad acumulada, hongos, maleza, hierbas y tierra entre las hendiduras de baldosas o ladrillos. | E55: X | F55: COORDINADO
B56: Lavado las fachadas y vidrios exteriores de las instalaciones de la Entidad Compradora a una altura menor a 1,5 metros. | E56: X | F56: COORDINADO
B57: Realización de brigadas de aseo. | E57: X | F57: COORDINADO
B58: Limpieza de los elementos, equipos y utensilios empleados para el servicio de aseo. | E58: X | F58: COORDINADO
A59: Oficinas | B59: Limpieza de oficinas, divisiones, escritorios, mesas, libros, cuadros, objetos decorativos, sillas, estanterías, repisas, archivadores y cajoneras. | E59: X | F59: COORDINADO
B60: Limpieza exterior de computadores, teléfonos, impresoras, fotocopiadoras, consolas, fax, y demás equipos para uso administrativo con sus componentes que tenga la Entidad Compradora. | E60: X | F60: COORDINADO
A61: Pisos y tapizados | B61: Decapado, limpieza, brillo, sellado y mantenimiento del brillo de pisos, escaleras y estantes. | E61: X | F61: COORDINADO
B62: Limpieza, lavado, aspirado y desmanchado de alfombras, tapetes y tapizados. No incluye despegue de los tapetes o alfombras para lavado especializado. | E62: X | F62: COORDINADO
A63: Baños | B63: Limpieza y desinfección de sanitarios, orinales lavamanos, duchas, griferías, dispensadores, secadores, accesorios, espejos, paredes, puertas y divisiones, pisos y papeleras. Aplicación de ambientadores y productos para el control del mal olor. | E63: X | F63: COORDINADO
B64: Desatasco de sanitarios, orinales, duchas, sifones y lavamanos. | E64: X | F64: COORDINADO
B65: Abastecimiento de los baños de papel higiénico, toallas de papel, bolsas de basura, jabón de manos y otros elementos requeridos para su uso. | E65: X | F65: COORDINADO
A66: Zonas exteriores | B66: Limpieza de patios, aceras, entradas, jardines, antejardines, zonas verdes y zonas exteriores aledañas a las instalaciones de la Entidad Compradora. | E66: X | F66: COORDINADO
B67: Recolección de hojas y limpieza de canalizaciones en caso de obstrucción. | E67: X | F67: COORDINADO
B68: Limpieza y vaciado de contenedores, canecas y ceniceros exteriores. | E68: X | F68: COORDINADO
A69: Buenas prácticas de aseo | B69: Clasificación y envase de materiales y basuras y puesta a disposición de estos en los lugares de las instalaciones físicas de la Entidad Compradora indicados para su recolección y posterior reciclaje. | E69: X | F69: COORDINADO
B70: Utilización de las señales de seguridad peatonal o equipos de seguridad industrial para evitar accidentes, de acuerdo a las instrucciones de la Entidad Compradora. | E70: X | F70: COORDINADO
A72: Actividades de servicio de cafetería | E72: Marque con una X | F72: Frecuencia | G72: Observaciones
A73: Servicio de bebidas y atención de eventos | B73: Preparación de bebidas calientes y frías según las especificaciones de la Entidad Compradora | E73: X | F73: COORDINADO
B74: Ofrecimiento de bebidas calientes y frías en los horarios indicados por la Entidad Compradora. Realización de recorridos periódicos para recoger los elementos utilizados para el consumo de productos. | E74: X | F74: COORDINADO
B75: Preparación de termos con café, té, aromática y agua fría y caliente en el lugar y horarios que indique la Entidad Compradora. Lo anterior con la respectiva dotación de té, aromática, azúcar, mezcladores, servilletas, vasos y crema. | E75: X | F75: COORDINADO
B76: Atención a reuniones de trabajo o eventos especiales de la Entidad Compradora. | E76: X | F76: COORDINADO
A77: Limpieza y cuidado | B77: Limpieza y desinfección del área de cafetería y del menaje, elementos y equipos empleados para la prestación del servicio, entre ellos, microondas, neveras, grecas, dispensadores, estufas, así como las instalaciones físicas de las cafeterías. | E77: X | F77: COORDINADO
B78: Abastecimiento del área de cafetería de los insumos requeridos para la prestación del servicio de cafetería. | E78: X | F78: COORDINADO
B79: Realización del inventario y cuidado del menaje, elementos y equipos empleados en la prestación del servicio. Cuidado de las instalaciones físicas de las cafeterías dispuestas para la prestación del servicio. | E79: X | F79: COORDINADO
A81: Actividades de mantenimiento locativo básico | E81: Marque con una X | F81: Frecuencia | G81: Observaciones
A82: Mantenimiento preventivo
A83: Plomería | B83: Inspección de tuberías, sanitarios, orinales, lavaplatos, duchas, sifones, canalizaciones, cunetas, cañerías, piletas y fuentes para verificar su buen funcionamiento. Aviso al supervisor del contrato sobre cualquier falla o anomalía.
A84: Mantenimiento eléctrico | B84: Limpieza de luminarias, lámparas, reflectores, balastos, transformadores (externa), fusibles, tubos de descarga, cebadores (starter), casquillos, bombillos, interruptores automáticos (breakers), tomas de corriente, extensiones y cableado eléctrico.
B85: Revisión externa de transformadores, cableado e instalaciones eléctricas. Aviso al supervisor del contrato sobre cualquier falla o anomalía.
A86: Reparaciones locativas menores. | B86: Inspección de cortinas, cortinas tipo blackout, persianas, tapetes, marcos, puertas, casilleros, vidrios, ventanas, estanterías, repisas, mesas, muebles de oficina, cerraduras, chapas, bisagras, manijas y fallebas para verificar su buen funcionamiento. Aviso al supervisor del contrato sobre cualquier falla o anomalía.
A87: Mantenimiento de elementos y equipos | B87: Inspección de secadores de manos y dispensadores de jabón, líquido antibacterial, papel higiénico, toallas de papel, ambientador y desodorizador de sanitarios para verificar su buen funcionamiento. Aviso al supervisor del contrato sobre cualquier falla o anomalía.
B88: Inspección de estufas, grecas y purificadores de agua para verificar su buen funcionamiento. Aviso al supervisor del contrato sobre cualquier falla o anomalía.
B89: Limpieza interna y extena de los elementos y equipos anteriores. Lubricación de sus partes mecánicas, cambio de filtros, escobillas y resistencias cuando sea necesario y revisión de las conexiones eléctricas.
A90: Limpieza en lugares de difícil acceso | B90: Inspección y limpieza de ventanas, persianas, cortinas, cortinas tipo balckout, acrílicos, techos, rejillas, canales de ventilación y otros lugares de difícil acceso. Aviso al supervisor del contrato sobre cualquier falla o anomalía.
B91: Limpieza de la fachada de la Entidad Compradora siempre que el operario no implique trabajo en alturas.
A92: General | B92: Apoyo en las brigadas de mantenimiento que programe la Entidad Compradora. Las actividades ejecutadas por los operarios auxiliar y de mantenimiento deben incluir únicamente las establecidas en este Anexo.
A94: Mantenimiento correctivo
A95: Plomería | B95: Reparación de fugas menores en tuberías, sanitarios, orinales, lavamanos, lavaplatos, duchas, piletas y fuentes.
B96: Reemplazo de piezas dañadas de tuberías, sanitarios, orinales, lavamanos, lavaplatos y duchas.
B97: Reparación de taponamientos en tuberías, sanitarios, orinales, lavaplatos, duchas, sifones, canalizaciones, cunetas, cañerías, piletas y fuentes.
A98: Mantenimiento eléctrico | B98: Instalación, reparación, reemplazo y limpieza de luminarias, lámparas, reflectores, balastos, tubos de descarga, cebadores (starter), casquillos, bombillos, interruptores automáticos (breakers), tomas de corriente y fusibles. Reemplazo de insumos y repuestos requeridos para todo lo anterior.
B99: Reparación de cortos menores.
B100: Instalación y traslado de salidas eléctricas.
B101: Reparación de la señal de televisión por daños menores.
A102: Reparaciones locativas menores | B102: Reparaciones menores de resane, enchape y pintura de parades, pisos y techos interiores de las instalaciones.
B103: Ajuste y desmonte de marcos, puertas, vidrios y ventanas.
B104: Instalación o reparaciones de persianas, cortinas, cortinas tipo blackout y tapetes.
B105: Instalación o reparaciones de repisas, estanterías, casilleros, sillas, mesas y otros muebles de oficina.
B106: Instalación o reparaciones de cerraduras, chapas, manijas, bisagras y fallebas de puertas, escritorios, archivadores, casilleros y similares. Cambio de todo tipo de guardas y cerraduras si es requerido.
A107: Mantenimiento de elementos y equipos | B107: Instalación o reemplazo de secadores de manos y dispensadores de jabón, líquido antibacterial, papel higiénico, toallas de papel, ambientador y desodorizador de sanitarios. Reemplazo de insumos y repuestos requeridos para todo lo anterior.
B108: Instalación, reparación o reemplazo de grecas, estufas y purificadores de agua. Reemplazo de sus insumos y repuestos.
A109: Traslado de materiales y adecuación de espacios | B109: Traslado de muebles, instalación, reparación y adecuación de páneles y módulos de oficina (puestos de trabajo).
B110: Habilitar bodegas, lugares de archivo, salas de reunión, auditorios y salones comunes según lo requiera la Entidad Compradora.
A112: Describa los elementos, equipos y maquinaria que requiere la sede de la Entidad Compradora para las actividades de mantenimiento básico locativo, de acuerdo con lo establecido en el Acuerdo Marco de Precios
A119: Servicios Especiales
A123: Fumigación | C123: Marque con una X | D123: M2 de área interior | E123: M2 de área exterior | F123: Detalles y observaciones
A124: Roedores
A125: Insectos rastreros y voladores
A126: Desinfección ambiental
A129: Jardinería | C129: Marque con una X | D129: Equipos o materiales | F129: Detalles y observaciones
A130: Poda de prado, bordes, cercas vivas y plantas (no incluye trabajo en alturas).
A131: Aplicación de fertilizantes de uso común (la tarifa debe incluir un estimado 500 gramos de fertilizante al año por metro cuadrado).
A132: Remoción de tierra para oxigenación.
A133: Trasplante y reemplazo de plantas. (No incluye trasplante de árboles, ni arbustos con una altura superior a un metro, no incluye suministro de plantas)
A134: Traslado, mantenimiento y limpieza de macetas, jardineras y soportes. Descarte de agua de los recipientes recibidores.
A135: Revisión de humedad y riego de plantas, prados y árboles.
A136: Aplicación de plaguicidas y funguicidas de uso común.
A137: Empaque y traslado de desechos producto de la prestación del servicio hasta los lugares de recolección.

Sheet Detalle Bienes de Aseo y Caf
A2: FORMATO DE COTIZACIÓN
A4: 3. Bienes de Aseo y Cafetería
A7: Observaciones
I11: Detalle Sede
A13: No. | B13: Bien | C13: Especificación | D13: Presentación | E13: Cantidad Mensual | F13: Precio unitario | G13: Total | I13: Sede 1
A14: 0 | B14: Jardineria mt2 | C14: Servicio especializado de jardinería en metros cuadrados. | D14: Metros cuadrados | E14: =SUM(I14:I14) -> 0 | I14: ='Solicitud de Cotización General'!J56 -> 0
A15: 1 | B15: Jabón para loza 1 (Compra) | C15: - Con agente(s) tensoactivo(s) principal(es) con efecto limpiador y desengrasante en una concentración mínima del 8%. - Disponible en mínimo (2) dos fragancias - El envase debe estar correctamente etiquetado bajo los parámetros establecidos en el sistema globalmente armonizado (Decreto 1496 de 2018) indicando: nombre comercial del producto, pictogramas de los compuestos peligrosos si aplica e instrucciones de uso de acuerdo con los tiempos de transición descritos en el artículo 24 de la Resolución 773 de 2021. - Debe contener concentraciones de fósforo iguales o inferiores a 0.65% de fósforo (Resolución 0689 de 2016) | D15: Líquido, en recipiente plástico con capacidad mínima de 3.785 ml | E15: 0 | I15: 0
A16: 2 | B16: Jabón para loza 2 (Compra) | C16: - Con agente(s) tensoactivo(s) principal(es) con efecto limpiador y desengrasante en una concentración mínima del 8%. - Disponible en mínimo (2) dos fragancias - El envase debe estar correctamente etiquetado bajo los parámetros establecidos en el sistema globalmente armonizado (Decreto 1496 de 2018) indicando: nombre comercial del producto, pictogramas de los compuestos peligrosos si aplica e instrucciones de uso de acuerdo con los tiempos de transición descritos en el artículo 24 de la Resolución 773 de 2021. - Debe contener concentraciones de fósforo iguales o inferiores a 0.65% de fósforo (Resolución 0689 de 2016) | D16: Líquido, en recipiente plástico de mínimo 500 ml | E16: 0 | I16: 0
A17: 3 | B17: Jabón para loza 3 (Compra) | C17: - Con agente(s) tensoactivo(s) principal(es) con efecto limpiador y desengrasante en una concentración mínima del 15%. - Disponible en mínimo (2) dos fragancias - El envase debe estar correctamente etiquetados bajo los parámetros establecidos en el sistema globalmente armonizado (Decreto 1496 de 2018) indicando: nombre comercial del producto, pictogramas de los compuestos peligrosos si aplica e instrucciones de uso. - Debe contener concentraciones de fósforo iguales o inferiores a 0.65% de fósforo (Resolución 0689 de 2016) | D17: Crema, en recipiente plástico de mínimo 850 g | E17: 0 | I17: 0
A18: 4 | B18: Jabón para loza 4 (Compra) | C18: - Con agente(s) tensoactivo(s) con efecto limpiador y desengrasante. - Disponible en múltiples fragancias. - El envase debe estar correctamente etiquetado bajo los parámetros establecidos en el sistema globalmente armonizado (Decreto 1496 de 2018) indicando: nombre comercial del producto, pictogramas de los compuestos peligrosos si aplica e instrucciones de uso de acuerdo con los tiempos de transición descritos en el artículo 24 de la Resolución 773 de 2021. - Elaborado en material reciclable - Con etiqueta de amigable con el ambiente - Debe contener concentraciones de fósforo iguales o inferiores a 0.65% de fósforo (Resolución 0689 de 2016) | D18: Crema, en recipiente plástico de mínimo 1000 g | E18: 1 | I18: 1
A19: 5 | B19: Jabón en barra (Compra) | C19: -Composición de ácidos grasos de mínimo 50%. - Debe contener concentraciones de fósforo iguales o inferiores a 0.65% de fósforo (Resolución 0689 de 2016) | D19: Barra, unidad con peso mínimo de 250 g en envoltura individual | E19: 0 | I19: 0
A20: 6 | B20: Jabón en barra azul (Compra) | C20: - Todo tipo de uso - Biodegradable - No debe contener PVC o Poliestireno expandido u otros plásticos de un solo uso tanto en el envase como en el embalaje. - Debe contener concentraciones de fósforo iguales o inferiores a 0.65% de fósforo (Resolución 0689 de 2016) | D20: Barra, unidad con peso mínimo de 250 g en envoltura individual | E20: 0 | I20: 0
A21: 7 | B21: Jabón abrasivo (Compra) | C21: -Con agente(s) tensoactivo(s) pincipal(es) con efecto limpiador, pulidor y desengrasante - Con agente activo mínimo del 5% - Debe contener concentraciones de fósforo iguales o inferiores a 0.65% de fósforo (Resolución 0689 de 2016) | D21: En polvo, en tarro de mínimo 500 g | E21: 0 | I21: 0
A22: 8 | B22: Jabón de tocador 1 (Compra) | C22: - Elaborado con grasas vegetales - Con agente humectante - pH modificar entre PH 5,5 a 7 - Disponible en mínimo (2) dos fragancias - Debe estar correctamente etiquetados bajo los parámetros indicando: nombre comercial del producto, pictogramas de los compuestos peligrosos e instrucciones de uso - Debe contener concentraciones de fósforo iguales o inferiores a 0.65% de fósforo (Resolución 0689 de 2016) | D22: Barra, unidad con peso mínimo de 125 g en envoltura individual | E22: 0 | I22: 0
A23: 9 | B23: Jabón de tocador 2 (Compra) | C23: - Jabón de tocador para manos en espuma - Líquido para manos en bolsa para dispensador spray y con boquilla especial de dispensador - Tapa tipo válvula, para dispensador, antibacterial y antiséptico - Con agente limpiador en una concentración mínima del 6% - Con agente humectante en una concentración mínima del 3% - Disponible en múltiples fragancias - Producto biodegradable basado en ingredientes orgánicos - El envase debe estar correctamente etiquetado bajo los parámetros establecidos en el sistema globalmente armonizado (Decreto 1496 de 2018) indicando: nombre comercial del producto, pictogramas de los compuestos peligrosos si aplica e instrucciones de uso de acuerdo con los tiempos de transición descritos en el artículo 24 de la Resolución 773 de 2021. - Elaborado en material reciclable - No debe contener PVC, Poliestireno expandido u otros plásticos de un solo uso tanto en el envase como en el embalaje. - Debe contener concentraciones de fósforo iguales o inferiores a 0.65% de fósforo (Resolución 0689 de 2016) | D23: Líquido, en bolsa con capacidad mínima de 800 ml | E23: 0 | I23: 0
A24: 10 | B24: Jabón de dispensador para manos 1 (Compra) | C24: - Con agente limpiador en una concentración mínima del 6% - Con agente humectante en una concentración mínima del 3% - pH entre 5,5 a 7 - Disponible en mínimo (2) dos fragancias - Debe contener concentraciones de fósforo iguales o inferiores a 0.65% de fósforo (Resolución 0689 de 2016) | D24: Líquido, en recipiente plástico con dispensador y capacidad mínima de 500 ml | E24: 0 | I24: 0
A25: 11 | B25: Jabón de dispensador para manos 2 (Compra) | C25: - Con agente limpiador en una concentración mínima del 6% - Con agente humectante en una concentración mínima del 3% - pH entre 5,5 a 7 - Disponible en mínimo (2) dos fragancias - Debe contener concentraciones de fósforo iguales o inferiores a 0.65% de fósforo (Resolución 0689 de 2016) | D25: Líquido, en recipiente plástico con capacidad mínima de 3.785 ml | E25: 1 | I25: 1
A26: 12 | B26: Jabón de dispensador para manos 3 (Compra) | C26: - Con agente limpiador en una concentración mínima del 6%. - Con agente antibacterial en una concentración mínima del 0,2% - Con agente humectante en una concentración mínima del 3% - pH entre 5,5 a 7 - Disponible en mínimo (2) dos fragancias - Debe contener concentraciones de fósforo iguales o inferiores a 0.65% de fósforo (Resolución 0689 de 2016) | D26: Líquido, en recipiente plástico con capacidad mínima de 3.785 ml | E26: 0 | I26: 0
A27: 13 | B27: Gel antibacterial para manos (Compra) | C27: - Con agente antibacterial en una concentración mínima del 0,2% - Con agente humectante - pH entre 5, 5 a 7 - Con fragancia | D27: Gel, en recipiente plástico con capacidad mínima de 3.785 ml | E27: 0 | I27: 0
A28: 14 | B28: Dispensador de gel antibacterial para manos (Compra) | C28: - Material: Plástico - Tipo de instalación: De pared - Incluye Chazos y tornillos - Con visor para determinar el nivel del líquido - Con ventanilla en la parte superior para añadir el gel - Funcionamiento: Manual | D28: Recipiente con capacidad mínima de 500 ml (Unidad) | E28: 0 | I28: 0
A29: 15 | B29: Limpiador multiusos 1 (Compra) | C29: - Con agente(s) tensoactivo(s) principal(es) con efecto limpiador en una concentración mínima del 8% - Disponible en mínimo (2) dos fragancias - El envase debe estar correctamente etiquetado bajo los parámetros establecidos en el sistema globalmente armonizado (Decreto 1496 de 2018) indicando: nombre comercial del producto, pictogramas de los compuestos peligrosos si aplica e instrucciones de uso de acuerdo con los tiempos de transición descritos en el artículo 24 de la Resolución 773 de 2021. | D29: Líquido, en recipiente plástico con capacidad mínima de 3.785 ml | E29: 1 | I29: 1
A30: 16 | B30: Limpiador multiusos 2 (Compra) | C30: - Con agente(s) tensoactivo(s) principal(es) con efecto limpiador y desengrasante en una concentración mínima del 8% - Disponible en mínimo (2) dos fragancias - El envase debe estar correctamente etiquetado bajo los parámetros establecidos en el sistema globalmente armonizado (Decreto 1496 de 2018) indicando: nombre comercial del producto, pictogramas de los compuestos peligrosos si aplica e instrucciones de uso de acuerdo con los tiempos de transición descritos en el artículo 24 de la Resolución 773 de 2021. | D30: Líquido, en recipiente plástico con capacidad mínima de 500 ml, con atomizador de pistola. | E30: 0 | I30: 0
A31: 17 | B31: Limpiador multiusos 3 (Compra) | C31: - Con agente(s) tensoactivo(s) principal(es) con efecto limpiador y desengrasante en una concentración mínima del 8% - Disponible en mínimo (2) dos fragancias - El envase debe estar correctamente etiquetado bajo los parámetros establecidos en el sistema globalmente armonizado (Decreto 1496 de 2018) indicando: nombre comercial del producto, pictogramas de los compuestos peligrosos si aplica e instrucciones de uso de acuerdo con los tiempos de transición descritos en el artículo 24 de la Resolución 773 de 2021. | D31: Líquido, en recipiente plástico de repuesto con capacidad mínima de 500 ml | E31: 0 | I31: 0
A32: 18 | B32: Limpiador desinfectante para pisos (Compra) | C32: - Apariencia: Líquido transparente - Color y olor: De acuerdo a la fragancia - Producto biodegradable que no afectas la capa de ozono - Solubilidad: Total en agua - PH: 7.5 - 8.5 - Composición: Tensoactivos, espesante, coadyuvante, colorante - El envase debe estar correctamente etiquetado bajo los parámetros establecidos en el sistema globalmente armonizado (Decreto 1496 de 2018) indicando: nombre comercial del producto, pictogramas de los compuestos peligrosos si aplica e instrucciones de uso de acuerdo con los tiempos de transición descritos en el artículo 24 de la Resolución 773 de 2021. - Elaborado en material reciclable - No debe contener PVC, poliestireno expandido u otros plásticos de un solo uso tanto en el envase como en el embalaje. | D32: Líquido, en garrafa con capacidad mínima de 3.785 ml | E32: 0 | I32: 0
A33: 19 | B33: Líquido desengrasante (Compra) | C33: - Con agente(s) tensoactivo(s) principal(es) con efecto limpiador y desengrasante en una concentración mínima del 10% - El envase debe estar correctamente etiquetado bajo los parámetros establecidos en el sistema globalmente armonizado (Decreto 1496 de 2018) indicando: nombre comercial del producto, pictogramas de los compuestos peligrosos si aplica e instrucciones de uso de acuerdo con los tiempos de transición descritos en el artículo 24 de la Resolución 773 de 2021. - Debe contener concentraciones de fósforo iguales o inferiores a 0.65% de fósforo (Resolución 0689 de 2016) | D33: Líquido, en recipiente plástico con capacidad mínima de 3.785 ml | E33: 0 | I33: 0
A34: 20 | B34: Crema desengrasante (Compra) | C34: - Disponible en múltiples fragancias - Limpia y desengrasa todos los metales, plásticos, gomas, vidrio, cerámica y madera - El envase debe estar correctamente etiquetado bajo los parámetros establecidos en el sistema globalmente armonizado (Decreto 1496 de 2018) indicando: nombre comercial del producto, pictogramas de los compuestos peligrosos si aplica e instrucciones de uso de acuerdo con los tiempos de transición descritos en el artículo 24 de la Resolución 773 de 2021. - Elaborado en material reciclable o biodegradable - No debe contener PVC o Poliestireno expandido u otros plásticos de un solo uso tanto en el envase como en el embalaje. | D34: Crema, en recipiente reciclable o biodegadable con capacidad mínima de 500 g | E34: 0 | I34: 0
A35: 21 | B35: Detergente multiusos en polvo (Compra) | C35: - Con agente tensoactivo de mínimo 60% de biodegradabilidad -Con efecto limpiador de mínimo 9%. - El envase del producto deberá estar correctamente etiquetado bajo los parámetros: nombre comercial del producto, pictogramas de los compuestos peligrosos e instrucciones de uso - Debe contener concentraciones de fósforo iguales o inferiores a 0.65% de fósforo (Resolución 0689 de 2016) | D35: Polvo, en bolsa plástica o recipiente plástico con un peso de 1.000 g | E35: 1 | I35: 1
A36: 22 | B36: Limpiador desinfectante para uso general 1 (Compra) | C36: - Con agente(s) tensoactivo(s) con efecto antibacterial en una concentración mínima del 0,2% - Con agente(s) tensoactivo(s) con efecto limpiador y desengrasante en una concentración mínima del 1,5% - El envase debe estar correctamente etiquetado bajo los parámetros establecidos en el sistema globalmente armonizado (Decreto 1496 de 2018) indicando: nombre comercial del producto, pictogramas de los compuestos peligrosos si aplica e instrucciones de uso de acuerdo con los tiempos de transición descritos en el artículo 24 de la Resolución 773 de 2021. | D36: Líquido, en recipiente plástico con capacidad mínima de 3.785 ml | E36: 1 | I36: 1
A37: 23 | B37: Limpiador desinfectante para uso general 2 (Compra) | C37: - Con agente(s) tensoactivo(s) con efecto antibacterial en una concentración mínima del 0,2% - Con agente(s) tensoactivo(s) con efecto limpiador y desengrasante en una concentración mínima del 1,5% - El envase debe estar correctamente etiquetado bajo los parámetros establecidos en el sistema globalmente armonizado (Decreto 1496 de 2018) indicando: nombre comercial del producto, pictogramas de los compuestos peligrosos si aplica e instrucciones de uso de acuerdo con los tiempos de transición descritos en el artículo 24 de la Resolución 773 de 2021. | D37: Líquido, en recipiente plástico con capacidad mínima de 500 ml, con atomizador de pistola. | E37: 0 | I37: 0
A38: 24 | B38: Limpiador desinfectante para uso general 3 (Compra) | C38: - Con agente(s) tensoactivo(s) con efecto antibacterial en una concentración mínima del 0,2% - Con agente(s) tensoactivo(s) con efecto limpiador y desengrasante en una concentración mínima del 1,5% - El envase debe estar correctamente etiquetado bajo los parámetros establecidos en el sistema globalmente armonizado (Decreto 1496 de 2018) indicando: nombre comercial del producto, pictogramas de los compuestos peligrosos si aplica e instrucciones de uso de acuerdo con los tiempos de transición descritos en el artículo 24 de la Resolución 773 de 2021. | D38: Líquido, en recipiente plástico con capacidad mínima de 500 ml | E38: 0 | I38: 0
A39: 25 | B39: Desinfectante de alto nivel de desinfección para uso hospitalario (Compra) | C39: - Con agentes bactericidas, fungicidas, tubercolicidas, esporicidas y virucidas. - Sin fragacia - El envase debe estar correctamente etiquetado bajo los parámetros establecidos en el sistema globalmente armonizado (Decreto 1496 de 2018) indicando: nombre comercial del producto, pictogramas de los compuestos peligrosos si aplica e instrucciones de uso de acuerdo con los tiempos de transición descritos en el artículo 24 de la Resolución 773 de 2021. | D39: Líquido, en recipiente plástico con capacidad mínima de 3.785 ml | E39: 0 | I39: 0
A40: 26 | B40: Pastilla desinfectante para sanitario (Compra) | C40: - Con agentes bactericidas, fungicidas y virucidas. | D40: Unidad con peso mínimo de 45 g | E40: 0 | I40: 0
A41: 27 | B41: Líquido para limpiar vidrios 1 (Compra) | C41: - Con agente(s) principal(es) con efecto limpiador y desengrasante en una concentración mínima del 4% - Disponible mínimo en dos (2) fragancias - El envase debe estar correctamente etiquetados bajo los parámetros establecidos en el sistema globalmente armonizado indicando: nombre comercial del producto, pictogramas de los compuestos peligrosos e instrucciones de uso | D41: Líquido, en recipiente plástico con capacidad mínima de 3.785 ml | E41: 0 | I41: 0
A42: 28 | B42: Líquido para limpiar vidrios 2 (Compra) | C42: - Con agente(s) principal(es) con efecto limpiador y desengrasante en una concentración mínima del 4% - Disponible mínimo en dos (2) fragancias - El envase debe estar correctamente etiquetado bajo los parámetros establecidos en el sistema globalmente armonizado (Decreto 1496 de 2018) indicando: nombre comercial del producto, pictogramas de los compuestos peligrosos si aplica e instrucciones de uso de acuerdo con los tiempos de transición descritos en el artículo 24 de la Resolución 773 de 2021. | D42: Líquido, en recipiente plástico con capacidad mínima de 500 ml, con atomizador de pistola. | E42: 0 | I42: 0
A43: 29 | B43: Líquido para limpiar vidrios 3 (Compra) | C43: - Con agente(s) principal(es) con efecto limpiador y desengrasante en una concentración mínima del 4% - Disponible mínimo en dos (2) fragancias - El envase debe estar correctamente etiquetado bajo los parámetros establecidos en el sistema globalmente armonizado (Decreto 1496 de 2018) indicando: nombre comercial del producto, pictogramas de los compuestos peligrosos si aplica e instrucciones de uso de acuerdo con los tiempos de transición descritos en el artículo 24 de la Resolución 773 de 2021. | D43: Líquido, en recipiente plástico de repuesto con capacidad mínima de 500 ml | E43: 0 | I43: 0
A44: 30 | B44: Blanqueador o hipoclorito 1 (Compra) | C44: - Solución con una concentración mínima del 5% - El envase del producto deberá estar correctamente etiquetado, indicando: nombre comercial del producto, pictogramas de los compuestos peligrosos e instrucciones de uso - El envase debe estar correctamente etiquetado bajo los parámetros establecidos en el sistema globalmente armonizado (Decreto 1496 de 2018) indicando: nombre comercial del producto, pictogramas de los compuestos peligrosos si aplica e instrucciones de uso de acuerdo con los tiempos de transición descritos en el artículo 24 de la Resolución 773 de 2021. | D44: Líquido, en recipiente plástico con capacidad mínima de 3.785 ml | E44: 1 | I44: 1
A45: 31 | B45: Blanqueador o hipoclorito 2 (Compra) | C45: - Solución con una concentración mínima del 5% - El envase del producto deberá estar correctamente etiquetado, indicando: nombre comercial del producto, pictogramas de los compuestos peligrosos e instrucciones de uso - El envase debe estar correctamente etiquetado bajo los parámetros establecidos en el sistema globalmente armonizado (Decreto 1496 de 2018) indicando: nombre comercial del producto, pictogramas de los compuestos peligrosos si aplica e instrucciones de uso de acuerdo con los tiempos de transición descritos en el artículo 24 de la Resolución 773 de 2021. | D45: Líquido, en recipiente plástico con capacidad mínima de 1.000 ml | E45: 0 | I45: 0
A46: 32 | B46: Blanqueador o hipoclorito 3 (Compra) | C46: - Granulado con una concentración mínima del 90% - El envase del producto deberá estar correctamente etiquetado, indicando: nombre comercial del producto, pictogramas de los compuestos peligrosos e instrucciones de uso - El envase debe estar correctamente etiquetado bajo los parámetros establecidos en el sistema globalmente armonizado (Decreto 1496 de 2018) indicando: nombre comercial del producto, pictogramas de los compuestos peligrosos si aplica e instrucciones de uso de acuerdo con los tiempos de transición descritos en el artículo 24 de la Resolución 773 de 2021. | D46: ganulado, en bolsa plástica de mínimo 1.000 g | E46: 0 | I46: 0
A47: 33 | B47: Alcohol industrial 1 (Compra) | C47: - Solución acuosa de alcohol etílico desnaturalizado con una concentración mínima de 70% - Desnaturalizado | D47: Líquido, en recipiente plástico con capacidad mínima de 3.785 ml | E47: 0 | I47: 0
A48: 34 | B48: Alcohol industrial 2 (Compra) | C48: - Solución acuosa de alcohol etílico desnaturalizado con una concentración mínima de 70% - Desnaturalizado | D48: Líquido, en recipiente plástico con capacidad mínima de 1000ml | E48: 0 | I48: 0
A49: 35 | B49: Creolina 1 (Compra) | C49: - Solución con una concentración mínima de fenoles de 4% | D49: Líquido, en recipiente plástico con capacidad mínima de 500 ml | E49: 0 | I49: 0
A50: 36 | B50: Creolina 2 (Compra) | C50: - Solución con una concentración mínima de fenoles de 4% | D50: Líquido, en recipiente plástico con capacidad mínima de 3.785 ml | E50: 0 | I50: 0
A51: 37 | B51: Líquido para limpiar equipos de oficina 1 (Compra) | C51: - Con agente(s) principal(es) con efecto limpiador, desengrasante y desinfectante en una concentración mínima del 4% - El envase debe estar correctamente etiquetado bajo los parámetros establecidos en el sistema globalmente armonizado (Decreto 1496 de 2018) indicando: nombre comercial del producto, pictogramas de los compuestos peligrosos si aplica e instrucciones de uso de acuerdo con los tiempos de transición descritos en el artículo 24 de la Resolución 773 de 2021. | D51: Líquido, en recipiente plástico con capacidad mínima de 500 ml con atomizador | E51: 0 | I51: 0
A52: 38 | B52: Líquido para limpiar equipos de oficina 2 (Compra) | C52: - Con agente(s) principal(es) con efecto limpiador, desengrasante y desinfectante en una concentración mínima del 4% - El envase debe estar correctamente etiquetado bajo los parámetros establecidos en el sistema globalmente armonizado (Decreto 1496 de 2018) indicando: nombre comercial del producto, pictogramas de los compuestos peligrosos si aplica e instrucciones de uso de acuerdo con los tiempos de transición descritos en el artículo 24 de la Resolución 773 de 2021. | D52: Líquido, en recipiente plástico con capacidad mínima de 500 ml | E52: 0 | I52: 0
A53: 39 | B53: Champú para alfombras y tapizados 1 (Compra) | C53: - Con agente(s) principal(es) con efecto limpiador en una concentración mínima del 8% - El envase debe estar correctamente etiquetado: nombre comercial del producto, pictogramas de los compuestos peligrosos e instrucciones de uso | D53: Líquido, en recipiente plástico con capacidad mínima de 3.785 ml | E53: 0 | I53: 0
A54: 40 | B54: Champú para alfombras y tapizados 2 (Compra) | C54: - Con agente(s) principal(es) con efecto limpiador en una concentración mínima del 8% - Con agente espumante para la generación de espuma seca - El envase debe estar correctamente etiquetados: nombre comercial del producto, pictogramas de los compuestos peligrosos e instrucciones de uso | D54: Líquido, en recipiente plástico con capacidad mínima de 3.785 ml | E54: 0 | I54: 0
A55: 41 | B55: Lustrador de muebles (Compra) | C55: - Con agentes limpiadores y abrillantadores en una concentración mínima del 5% - El envase debe estar correctamente etiquetado bajo los parámetros establecidos en el sistema globalmente armonizado (Decreto 1496 de 2018) indicando: nombre comercial del producto, pictogramas de los compuestos peligrosos si aplica e instrucciones de uso de acuerdo con los tiempos de transición descritos en el artículo 24 de la Resolución 773 de 2021. | D55: Líquido, en recipiente plástico con capacidad mínima de 200 ml | E55: 0 | I55: 0
A56: 42 | B56: Líquido cubre rasguños para madera (Compra) | C56: - Con agentes limpiadores y abrillantadores en una concentración mínima del 5% - De color oscuro para coayudar a cubrir rasguños en maderas oscuras | D56: En recipiente plástico con capacidad mínima de 200 ml | E56: 0 | I56: 0
A57: 43 | B57: Crema para cuero (Compra) | C57: - Con agentes limpiadores y abrillantadores en una concentración mínima del 5% | D57: Crema, en recipiente plástico con capacidad mínima de 200 ml | E57: 0 | I57: 0
A58: 44 | B58: Cera polimérica (Compra) | C58: - Polimérica autobrillante. - Con polímeros acrílicos, nivelantes y plastificantes. - Neutra (para pisos de todos los colores) - Contenido mínimo de sólidos del 10% | D58: Líquido, en recipiente plástico con capacidad mínima de 3.785 ml | E58: 0 | I58: 0
A59: 45 | B59: Cera emulsionada Neutra (Compra) | C59: - Emulsionada - Neutra (para pisos de todos los colores) - Contenido mínimo de sólidos del 5% | D59: Líquido, en recipiente plástico con capacidad mínima de 3.785 ml | E59: 0 | I59: 0
A60: 46 | B60: Cera emulsionada roja (Compra) | C60: - Emulsionada - Roja - Contenido mínimo de sólidos del 5% - Antideslizante | D60: Líquido, en recipiente plástico con capacidad mínima de 3.785 ml | E60: 0 | I60: 0
A61: 47 | B61: Cera solvente (Compra) | C61: - Solvente - Contenido mínimo de sólidos del 10% | D61: Líquido, en recipiente plástico con capacidad mínima de 3.785 ml | E61: 0 | I61: 0
A62: 48 | B62: Sellante para pisos (Compra) | C62: - Polimérico autobrillante. - Con polímeros acrílicos, nivelantes y plastificantes. - Contenido mínimo de sólidos del 20% - El envase debe estar correctamente etiquetado bajo los parámetros establecidos en el sistema globalmente armonizado (Decreto 1496 de 2018) indicando: nombre comercial del producto, pictogramas de los compuestos peligrosos si aplica e instrucciones de uso de acuerdo con los tiempos de transición descritos en el artículo 24 de la Resolución 773 de 2021. | D62: Líquido, en recipiente plástico con capacidad mínima de 3.785 ml | E62: 0 | I62: 0
A63: 49 | B63: Mantenedor de pisos (Compra) | C63: - Polimérico autobrillante. - Con polímeros acrílicos, nivelantes y plastificantes. - Contenido mínimo de sólidos del 8% | D63: Líquido, en recipiente plástico con capacidad mínima de 3.785 ml | E63: 0 | I63: 0
A64: 50 | B64: Removedor de cera (Compra) | C64: - Con agente activo alcalino en una concentración mínima del 9% - pH entre 11 y 14 | D64: Líquido, en recipiente plástico con capacidad mínima de 3.785 ml | E64: 0 | I64: 0
A65: 51 | B65: Abrillantador para piso laminado (Compra) | C65: - Con agente(s) con efecto limpiador y brillador. | D65: Líquido, en recipiente plástico con capacidad mínima de 3.785 ml | E65: 0 | I65: 0
A66: 52 | B66: Jabón neutro para pisos 1 (Compra) | C66: - Jabón multiusos - PH Neutro, - No corrosivo ni tóxico - Debe contener concentraciones de fósforo iguales o inferiores a 0.65% de fósforo (Resolución 0689 de 2016) | D66: Líquido, en recipiente plástico con capacidad mínima de 3.785 ml | E66: 0 | I66: 0
A67: 53 | B67: Jabón neutro para pisos 2 (Compra) | C67: - Jabón neutro biodegradable multiusos - PH Neutro - No es corrosivo ni tóxico - Color: Azul claro - El envase debe estar correctamente etiquetado bajo los parámetros establecidos en el sistema globalmente armonizado (Decreto 1496 de 2018) indicando: nombre comercial del producto, pictogramas de los compuestos peligrosos si aplica e instrucciones de uso de acuerdo con los tiempos de transición descritos en el artículo 24 de la Resolución 773 de 2021. - Elaborado en material reciclable, no debe contener PVC, Poliestireno expandido u otros plásticos de un solo uso tanto en el envase como en el embalaje. - Debe contener concentraciones de fósforo iguales o inferiores a 0.65% de fósforo (Resolución 0689 de 2016) | D67: Líquido, en cuñete con capacidad de 20 L | E67: 0 | I67: 0
A68: 54 | B68: Varsol ecológico 1 (Compra) | C68: - Solución con agentes desinfectantes, desmanchadores y desengrasantes en concentración mínima del 15%. - Biodegradable mínimo en un 95% | D68: Líquido, en recipiente plástico con capacidad mínima de 1000 ml | E68: 0 | I68: 0
A69: 55 | B69: Varsol ecológico 2 (Compra) | C69: - Solución con agentes desinfectantes, desmanchadores y desengrasantes en concentración mínima del 15%. - Biodegradable mínimo en un 95% | D69: Líquido, en recipiente plástico con capacidad mínima de 3.785 ml | E69: 1 | I69: 1
A70: 56 | B70: Desmanchador multiusos (Compra) | C70: - Con agente(s) tensoactivo(s) con efecto limpiador y desengrasante - Para superficies de todo tipo. | D70: Crema, en bolsa plástica de mínimo 500 g | E70: 0 | I70: 0
A71: 57 | B71: Brillametal en crema (Compra) | C71: - Con agentes con efecto limpiador, pulidor y brillador. - Para todo tipo de metales - El envase del producto deberá estar correctamente etiquetado, indicando: nombre comercial del producto, pictogramas de los compuestos peligrosos e instrucciones de uso | D71: En crema de mínimo 70 g | E71: 0 | I71: 0
A72: 58 | B72: Brillametal líquido (Compra) | C72: - Con agentes con efecto limpiador, pulidor y brillador. - Para todo tipo de metales | D72: Líquido , en recipiente plástico con capacidad mínima de 200 ml | E72: 0 | I72: 0
A73: 59 | B73: Betún (Compra) | C73: - Contenido mínimo de sólidos del 30% - Color negro - No debe contener ningún material que sea cancerígeno ( Clasificación 1 y 2a por la IARC), Mutagénico, Tóxico, Contaminante peligroso del aire o que sea agotador de la capa de ozono - El envase debe estar correctamente etiquetado bajo los parámetros establecidos en el sistema globalmente armonizado (Decreto 1496 de 2018) indicando: nombre comercial del producto, pictogramas de los compuestos peligrosos si aplica e instrucciones de uso de acuerdo con los tiempos de transición descritos en el artículo 24 de la Resolución 773 de 2021. | D73: Tarro de mínimo 100 g | E73: 0 | I73: 0
A74: 60 | B74: Ambientador 1 (Compra) | C74: - Solución con alcohol etílico y solventes. - Con fragancia en una concentración del 1,5% - En múltiples fragancias - El envase debe estar correctamente etiquetado bajo los parámetros establecidos en el sistema globalmente armonizado (Decreto 1496 de 2018) indicando: nombre comercial del producto, pictogramas de los compuestos peligrosos si aplica e instrucciones de uso de acuerdo con los tiempos de transición descritos en el artículo 24 de la Resolución 773 de 2021. | D74: Líquido, en recipiente plástico con capacidad mínima de 3.785 ml | E74: 1 | I74: 1
A75: 61 | B75: Ambientador 2 (Compra) | C75: - Solución con alcohol etílico y solventes. - Con fragancia en una concentración del 1,5% - En múltiples fragancias - libre de CFC - Envase correctamente etiquetado bajo los parámetros establecidos indicando: nombre comercial del producto, pictogramas de los compuestos peligrosos e instrucciones de uso. - Elaborado en material reciclable | D75: Líquido, en aerosol seguro para la capa de ozono con capacidad mínima de 400 ml | E75: 0 | I75: 0
A76: 62 | B76: Insecticida 1 (Compra) | C76: - Para eliminar insectos rastreros. - Con acción residual hasta por 4 semanas o de larga duración - Sin fuertes olores químicos - Libre de CFC - El envase del producto deberá estar correctamente etiquetado, indicando: nombre comercial del producto, pictogramas de los compuestos peligrosos e instrucciones de uso | D76: Líquido, en aerosol seguro para la capa de ozono con capacidad mínima de 350 ml | E76: 0 | I76: 0
A77: 63 | B77: Insecticida 2 (Compra) | C77: - Para eliminar insectos voladores - Con acción residual hasta por 4 semanas o de larga duración - Sin fuertes olores químicos - Libre de CFC - El envase del producto deberá estar correctamente etiquetado, indicando: nombre comercial del producto, pictogramas de los compuestos peligrosos e instrucciones de uso | D77: Líquido, en aerosol seguro para la capa de ozono con capacidad mínima de 350 ml | E77: 0 | I77: 0
A78: 64 | B78: Limpiones 1 (Compra) | C78: - En tela de toalla fileteada - Color blanco sin estampado - Tamaño mínimo de 45cm de largo por 45cm de ancho. | D78: Unidad | E78: =SUM(I78:I78) -> 0 | I78: 0
A79: 65 | B79: Limpiones 2 (Compra) | C79: - En tela de toalla fileteada - Color blanco sin estampado -Tamaño mínimo de 100 cm de largo por 70 cm de ancho | D79: Unidad | E79: 0 | I79: 0
A80: 66 | B80: Limpiones 3 (Compra) | C80: - En tela fileteada - Color blanco sin estampado - Tamaño mínimo de 45 cm de largo por 45 cm de ancho | D80: Unidad | E80: 0 | I80: 0
A81: 67 | B81: Limpiones 4 (Compra) | C81: - En tela fileteada - Color blanco sin estampado -Tamaño mínimo de 100 cm de largo por 70 cm de ancho | D81: Unidad | E81: 0 | I81: 0
A82: 68 | B82: Limpiones 5 (Compra) | C82: - En tela tipo galleta fileteada - Color blanco o beige sin estampado -Tamaño mínimo de 100 cm de largo por 70 cm de ancho | D82: Unidad | E82: 0 | I82: 0
A83: 69 | B83: Bayetilla 1 (Compra) | C83: - En tela fileteada - 100% algodón y fibra natural - Color blanco sin estampado -Tamaño mínimo de 100 cm de largo por 70 cm de ancho | D83: Unidad | E83: 0 | I83: 0
A84: 70 | B84: Bayetilla 2 (Compra) | C84: - En tela fileteada - 100% algodón y fibra natural - Color rojo sin estampado -Tamaño mínimo de 100 cm de largo por 70 cm de ancho | D84: Unidad | E84: 0 | I84: 0
A85: 71 | B85: Toalla en tela blanca para pisos por metro (repuesto de haraganes) (Compra) | C85: - Elaborado en microfibras - Color blanco - Tamaño mínimo de 100 cm de largo por 70 cm de ancho | D85: Unidad | E85: 0 | I85: 0
A86: 72 | B86: Paño absorbente multiusos 1 (Compra) | C86: - Retira el polvo sin dejar residuos ni pelusas - Antibacterial reutilizable - Tela con microporos - Tamaño mínimo de 60 cm de largo por 33 cm de ancho | D86: Paquete X 6 unidades | E86: 0 | I86: 0
A87: 73 | B87: Paño absorbente multiusos 2 (Compra) | C87: - Retira el polvo sin dejar residuos ni pelusas - Antibacterial reutilizable - Tela con microporos - Tamaño mínimo de 25 cm de largo por 45 cm de ancho | D87: Rollo X 40 unidades | E87: 0 | I87: 0
A88: 74 | B88: Estopa (Compra) | C88: - Hecha 100% de hilos de algodón blanco peinado. -Suave al tacto, para lustrar - No debe contener PVC o Poliestireno expandido u otros plásticos de un solo uso tanto en el envase como en el embalaje. | D88: Bolsa de mínimo 400 g | E88: 0 | I88: 0
A89: 75 | B89: Esponjilla 1 (Compra) | C89: - Espuma enmallada - Tamaño mínimo de 7 cm de largo por 10 cm de ancho | D89: Unidad | E89: 2 | I89: 2
A90: 76 | B90: Esponjilla 2 (Compra) | C90: - Doble uso (material de esponjilla blanda y abrasiva) - Tamaño mínimo de 7 cm de largo por 10 cm de ancho - No debe contener PVC o Poliestireno expandido u otros plásticos de un solo uso tanto en el envase como en el embalaje | D90: Unidad | E90: 0 | I90: 0
A91: 77 | B91: Esponjilla 3 (Compra) | C91: - Abrasiva - Tamaño mínimo de 9 cm de largo por 12 cm de | D91: Unidad | E91: 0 | I91: 0
A92: 78 | B92: Esponjilla 4 (Compra) | C92: - Elaborada con fibra de acero inoxidable para dar brillo - Tamaño mínimo de 5 cm de largo por 5 cm de ancho | D92: Paquete X 6 unidades | E92: 0 | I92: 0
A93: 79 | B93: Esponjilla 5 (Compra) | C93: - Elaborada con alambre de acero inoxidable - Tamaño mínimo de 7 cm de largo por 10 cm de ancho | D93: Unidad | E93: 0 | I93: 0
A94: 80 | B94: Esponjilla 6 (Compra) | C94: - Espuma enmallada - Tamaño mínimo de 7 cm de largo por 10 cm de ancho - No debe contener PVC o Poliestireno expandido u otros plásticos de un solo uso tanto en el envase como en el embalaje. | D94: Unidad | E94: 0 | I94: 0
A95: 81 | B95: Esponjilla 7 (Compra) | C95: - Abrasiva - Tamaño mínimo de 9 cm de largo por 12 cm de ancho - No debe contener PVC o Poliestireno expandido u otros plásticos de un solo uso tanto en el envase como en el embalaje. | D95: Unidad | E95: 0 | I95: 0
A96: 82 | B96: Escoba 1 (Compra) | C96: - Cerdas suaves elaboradas con PET calibre entre 0,3 y 0,4 mm. - Área de barrido mínima de 25 cm de largo por 8 cm de ancho por 10 cm de alto - Material de base en plástico con acople tipo rosca | D96: Unidad | E96: 0 | I96: 0
A97: 83 | B97: Escoba 2 (Compra) | C97: - Cerdas duras elaboradas con PET calibre entre 0,4 y 0,6 mm. - Área de barrido mínima de 25 cm de largo por 8 cm de ancho por 10 cm de alto - Material de base en plástico con acople tipo rosca | D97: Unidad | E97: 0 | I97: 0
A98: 84 | B98: Escoba 3 (Compra) | C98: - Cerdas suaves elaboradas con PET calibre entre 0,3 y 0,4 mm. - Área de barrido mínima de 35 cm de largo por 8 cm de ancho por 10 cm de alto - Material de base en plástico con acople tipo rosca | D98: Unidad | E98: 1 | I98: 1
A99: 85 | B99: Escoba 4 (Compra) | C99: - Cerdas duras elaboradas con PET calibre entre 0,4 y 0,6 mm. - Área de barrido mínima de 35 cm de largo por 8 cm de ancho por 10 cm de alto - Material de base en plástico con acople tipo rosca | D99: Unidad | E99: 1 | I99: 1
A100: 86 | B100: Escoba 5 (Compra) | C100: - Cerdas suaves elaboradas con PET calibre entre 0,3 y 0,4 mm. - Área de barrido mínima de 35 cm de largo por 8 cm de ancho por 10 cm de alto - Mango de madera proveniente de explotación forestal sostenible certificada ( FSC, PEFC o equivalentes) y/o Mango y Fibra de plástico (reciclado o nuevo) de polipropileno (PP) o polietileno (PE) y/o cabo metálico que no contenga material plastificado - No debe contener PVC u otros plásticos con cloro. - Cabo de madera 140cm elaborada con fibra natural, con soporte para colgar, con capucha plástica protectora que evita que se desprendan las fibras o se deformen | D100: Unidad | E100: 0 | I100: 0
A101: 87 | B101: Mango metálico escoba 1 (Compra) | C101: - Extensión mínima de 140 cm -Acople plástico o rosca para palos de escoba | D101: Unidad | E101: 0 | I101: 0
A102: 88 | B102: Mango madera escoba 1 (Compra) | C102: - Extensión mínima de 140 cm -Acople plástico o rosca para palos de escoba | D102: Unidad | E102: 2 | I102: 2
A103: 89 | B103: Cepillos 1 (Compra) | C103: - Tipo plancha, con mango de plástico - Cuerpo elaborado en plástico - Cerdas duras en fibra plástica - Tamaño mínimo de 15 cm de largo por 5cm de ancho por 6 cm de alto. | D103: Unidad | E103: 0 | I103: 0
A104: 90 | B104: Cepillos 2 (Compra) | C104: - Para pisos - Cuerpo elaborado en plástico - Cerdas duras en fibra plástica - Tamaño mínimo de 23 cm de largo por 6 cm de ancho por 7 cm de alto. - Mango metálico con una extensión mínima de 140 cm | D104: Unidad | E104: 0 | I104: 0
A105: 91 | B105: Cepillos 3 (Compra) | C105: - Para pisos - Cuerpo elaborado en plástico - Cerdas duras en fibra plástica - Tamaño mínimo de 35 cm de largo por 6 cm de ancho por 7 cm de alto. - Mango metálico con una extensión mínima de 140 cm | D105: Unidad | E105: 0 | I105: 0
A106: 92 | B106: Trapero 1 (Compra) | C106: - Elaborado con hilaza de algodón natural - Mecha con peso mínimo 250 gr y extensión mínima de 32 cm de largo - Material de base en plástico con acople tipo rosca | D106: Unidad | E106: 0 | I106: 0
A107: 93 | B107: Trapero 2 (Compra) | C107: - Elaborado con hilaza de algodón natural - Mecha con peso mínimo de 350 gr y extensión mínima de 32 cm de largo - Material de base en plástico con acople tipo rosca | D107: Unidad | E107: 0 | I107: 0
A108: 94 | B108: Trapero 3 (Compra) | C108: - Elaborado con hilaza de algodón natural - Mecha con peso mínimo de 435 gr y extensión mínima de 32 cm de largo - Material de base en plástico con acople tipo rosca | D108: Unidad | E108: 0 | I108: 0
A109: 95 | B109: Trapero 4 (Compra) | C109: - Trapero en hilo encabado o con cabo en madera - Mecha con peso mínimo de 400 gr y extensión mínima de 1.40 cm de largo - Mango de madera proveniente de explotación forestal sostenible certificada ( FSC, PEFC o equivalentes) y/o cabo metálico que no contenga material plastificado - Fibras en tela , algodón o pabilo de fibra de Rayón. - No debe contener PVC o Poliestireno expandido u otros plásticos de un solo uso tanto en el envase como en el embalaje. | D109: Unidad | E109: 1 | I109: 1
A110: 96 | B110: Mango metálico trapero (Compra) | C110: - Extensión mínima de 140 cm - Acople plástico o rosca para palos de escoba | D110: Unidad | E110: 0 | I110: 0
A111: 97 | B111: Mango madera trapero (Compra) | C111: - Extensión mínima de 140 cm - Acople plástico o rosca para palos de escoba | D111: Unidad | E111: 0 | I111: 0
A112: 98 | B112: Cepillo para sanitario (churrusco) (Compra) | C112: - Cerdas duras elaboradas en fibras plásticas - Extensión mínima de las cerdas es de 2,5 cm - Base y mango elaborados en plástico - Mango con longitud mínima de 33 cm | D112: Unidad | E112: 0 | I112: 0
A113: 99 | B113: Pads 1 (Compra) | C113: - Para brillo - Diámetro mínimo de 16 pulgadas - Rojo o blanco | D113: Unidad | E113: 0 | I113: 0
A114: 100 | B114: Pads 2 (Compra) | C114: - Para remoción - Diámetro mínimo de 16 pulgadas - Café o negro | D114: Unidad | E114: 0 | I114: 0
A115: 101 | B115: Pads 3 (Compra) | C115: - Para brillo - Diámetro mínimo de 20 pulgadas - Rojo o blanco | D115: Unidad | E115: 0 | I115: 0
A116: 102 | B116: Pads 4 (Compra) | C116: - Para remoción - Diámetro mínimo de 20 pulgadas - Café o negro | D116: Unidad | E116: 0 | I116: 0
A117: 103 | B117: Pads 5 (Compra) | C117: - Pad de fibras para máquinas de baja densidad para lavado suave de mantención, remueve marcas, suciedad y derrames. - Diámetro: 17" - Color: blanco. - No debe contener PVC o Poliestireno expandido u otros plásticos de un solo uso tanto en el envase como en el embalaje. | D117: Unidad | E117: 0 | I117: 0
A118: 104 | B118: Boneth 1 (Compra) | C118: - Diámetro mínimo de 16 pulgadas - Elaborado en hilaza de algodón | D118: Unidad | E118: 0 | I118: 0
A119: 105 | B119: Boneth 2 (Compra) | C119: - Diámetro mínimo de 20 pulgadas - Elaborado en hilaza de algodón | D119: Unidad | E119: 0 | I119: 0
A120: 106 | B120: Bolsas plásticas 1 (Compra) | C120: - Elaborada en polietileno de baja densidad - De color negro - Calibre de mínimo 1 - Tamaño de 40 cm de ancho por 55 cm de largo | D120: Paquete de mínimo 6 | E120: 1 | I120: 1
A121: 107 | B121: Bolsas plásticas 2 (Compra) | C121: - Elaborada en polietileno de baja densidad - De color verde - Calibre de mínimo 1 - Tamaño de 40 cm de ancho por 55 cm de largo | D121: Paquete de mínimo 6 | E121: 0 | I121: 0
A122: 108 | B122: Bolsas plásticas 3 (Compra) | C122: - Elaborada en polietileno de baja densidad - De color blanco - Calibre de mínimo 1 - Tamaño de 40 cm de ancho por 55 cm de largo | D122: Paquete de mínimo 6 | E122: 1 | I122: 1
A123: 109 | B123: Bolsas plásticas 4 (Compra) | C123: - Elaborada en polietileno de baja densidad - De color rojo - Calibre de mínimo 1 - Tamaño de 40 cm de ancho por 55 cm de largo - Con impresión de aviso de riesgo biológico | D123: Paquete de mínimo 6 | E123: 0 | I123: 0
A124: 110 | B124: Bolsas plásticas 5 (Compra) | C124: - Elaborada en polietileno de baja densidad - De color azul - Calibre de mínimo 1 - Tamaño de 40 cm de ancho por 55 cm de largo | D124: Paquete de mínimo 6 | E124: 0 | I124: 0
A125: 111 | B125: Bolsas plásticas 7 (Compra) | C125: - Elaborada en polietileno de baja densidad - De color amarillo - Calibre de mínimo 1 - Tamaño de 40 cm de ancho por 55 cm de largo | D125: Paquete de mínimo 6 | E125: 0 | I125: 0
A126: 112 | B126: Bolsas plásticas 8 (Compra) | C126: - Elaborada en polietileno de baja densidad - De color negro -Calibre de mínimo 2 - Tamaño de 60 cm de ancho por 70 cm de largo | D126: Paquete de mínimo 6 | E126: 0 | I126: 0
A127: 113 | B127: Bolsas plásticas 9 (Compra) | C127: - Elaborada en polietileno de baja densidad - De color verde - Calibre de mínimo 2 - Tamaño de 60 cm de ancho por 70 cm de largo | D127: Paquete de mínimo 6 | E127: 0 | I127: 0
A128: 114 | B128: Bolsas plásticas 10 (Compra) | C128: - Elaborada en polietileno de baja densidad - De color blanco - Calibre de mínimo 2 - Tamaño de 60 cm de ancho por 70 cm de largo | D128: Paquete de mínimo 6 | E128: 0 | I128: 0
A129: 115 | B129: Bolsas plásticas 11 (Compra) | C129: - Elaborada en polietileno de baja densidad - De color rojo - Calibre de mínimo 2 - Tamaño de 60 cm de ancho por 70 cm de largo - Con impresión de aviso de riesgo biológico | D129: Paquete de mínimo 6 | E129: 0 | I129: 0
A130: 116 | B130: Bolsas plásticas 12 (Compra) | C130: - Elaborada en polietileno de baja densidad - De color azul - Calibre de mínimo 2 - Tamaño de 60 cm de ancho por 70 cm de largo | D130: Paquete de mínimo 6 | E130: 0 | I130: 0
A131: 117 | B131: Bolsas plásticas 14 (Compra) | C131: - Elaborada en polietileno de baja densidad - De color amarillo - Calibre de mínimo 2 - Tamaño de 60 cm de ancho por 70 cm de largo | D131: Paquete de mínimo 6 | E131: 0 | I131: 0
A132: 118 | B132: Bolsas plásticas 15 (Compra) | C132: - Elaborada en polietileno de baja densidad - De color negro - Calibre de mínimo 2 - Tamaño de 70 cm de ancho por 90 cm de largo | D132: Paquete de mínimo 6 | E132: 0 | I132: 0
A133: 119 | B133: Bolsas plásticas 16 (Compra) | C133: - Elaborada en polietileno de baja densidad - De color verde - Calibre de mínimo 2 - Tamaño de 70 cm de ancho por 90 cm de largo | D133: Paquete de mínimo 6 | E133: 0 | I133: 0
A134: 120 | B134: Bolsas plásticas 17 (Compra) | C134: - Elaborada en polietileno de baja densidad - De color blanco - Calibre de mínimo 2 - Tamaño de 70 cm de ancho por 90 cm de largo | D134: Paquete de mínimo 6 | E134: 0 | I134: 0
A135: 121 | B135: Bolsas plásticas 18 (Compra) | C135: - Elaborada en polietileno de baja densidad - De color rojo - Calibre de mínimo 2 - Tamaño de 70 cm de ancho por 90 cm de largo - Con impresión de aviso de riesgo biológico | D135: Paquete de mínimo 6 | E135: 0 | I135: 0
A136: 122 | B136: Bolsas plásticas 19 (Compra) | C136: - Elaborada en polietileno de baja densidad - De color azul - Calibre de mínimo 2 - Tamaño de 70 cm de ancho por 90 cm de largo | D136: Paquete de mínimo 6 | E136: 0 | I136: 0
A137: 123 | B137: Bolsas plásticas 20 (Compra) | C137: - Elaborada en polietileno de baja densidad - De color amarillo - Calibre de mínimo 2 - Tamaño de 70 cm de ancho por 90 cm de largo | D137: Paquete de mínimo 6 | E137: 0 | I137: 0
A138: 124 | B138: Bolsas plásticas 21 (Compra) | C138: - Elaborada en polietileno de baja densidad - De color negro - Calibre de mínimo 3 - Tamaño de 80 cm de ancho por 110 cm de largo | D138: Paquete de mínimo 6 | E138: 4 | I138: 4
A139: 125 | B139: Bolsas plásticas 22 (Compra) | C139: - Elaborada en polietileno de baja densidad - De color verde - Calibre de mínimo 3 - Tamaño de 80 cm de ancho por 110 cm de largo | D139: Paquete de mínimo 6 | E139: 4 | I139: 4
A140: 126 | B140: Bolsas plásticas 23 (Compra) | C140: - Elaborada en polietileno de baja densidad - De color blanco -Calibre de mínimo 3 - Tamaño de 80 cm de ancho por 110 cm de largo | D140: Paquete de mínimo 6 | E140: 4 | I140: 4
A141: 127 | B141: Bolsas plásticas 24 (Compra) | C141: - Elaborada en polietileno de baja densidad - De color rojo -Calibre de mínimo 3 - Tamaño de 80 cm de ancho por 110 cm de largo - Con impresión de aviso de riesgo biológico | D141: Paquete de mínimo 6 | E141: 0 | I141: 0
A142: 128 | B142: Bolsas plásticas 25 (Compra) | C142: - Elaborada en polietileno de baja densidad - De color azul -Calibre de mínimo 3 - Tamaño de 80 cm de ancho por 110 cm de largo | D142: Paquete de mínimo 6 | E142: =SUM(I142:I142) -> 0 | I142: 0
A143: 129 | B143: Bolsas plásticas 26 (Compra) | C143: - Elaborada en polietileno de baja densidad - De color amarilla -Calibre de mínimo 3 - Tamaño de 80 cm de ancho por 110 cm de largo | D143: Paquete de mínimo 6 | E143: 0 | I143: 0
A144: 130 | B144: Guantes 1 (Compra) | C144: - Tipo doméstico - Elaborados en látex - Calibre mínimo de 18 - Tallas 7 a 9 o S a XL - Color amarillo | D144: Par | E144: 0 | I144: 0
A145: 131 | B145: Guantes 2 (Compra) | C145: - Tipo doméstico - Elaborados en látex - Calibre mínimo de 18 - Tallas 7 a 9 o S a XL - Color negro | D145: Par | E145: 0 | I145: 0
A146: 132 | B146: Guantes 3 (Compra) | C146: - Tipo doméstico - Elaborados en látex - Calibre mínimo de 25 - Tallas 7 a 9 o S a XL - Color negro | D146: Par | E146: 0 | I146: 0
A147: 133 | B147: Guantes 4 (Compra) | C147: - Tipo doméstico - Elaborados en látex - Calibre mínimo de 25 - Tallas 7 a 9 o S a XL - Color rojo | D147: Par | E147: 0 | I147: 0
A148: 134 | B148: Guantes 5 (Compra) | C148: - Tipo industrial - Elaborados en látex - Calibre mínimo de 35 - Tallas 7 a 9 o S a XL - Color negro | D148: Par | E148: 0 | I148: 0
A149: 135 | B149: Guantes 6 (Compra) | C149: - Elaborados en látex desechable (tipo cirugía) - Empovaldos - Tallas XS a XXL | D149: Caja de mínimo 100 unidades | E149: 0 | I149: 0
A150: 136 | B150: Guantes 7 (Compra) | C150: - Elaborados en carnaza - Tallas 7 a 9 o S a XL | D150: Par | E150: 0 | I150: 0
A151: 137 | B151: Guantes 8 (Compra) | C151: - Tipo mosquetero - Calibre mínimo de 40 - Tallas 7 a 9 o S a XL - Color negro | D151: Par | E151: 0 | I151: 0
A152: 138 | B152: Guantes 9 (Compra) | C152: - Elaborados en hilaza - Tallas 7 a 9 o S a XL | D152: Par | E152: 0 | I152: 0
A153: 139 | B153: Tapabocas 1 (Compra) | C153: - Elaborado en tela no tejida - Desechable - Con tiras elásticas | D153: Caja de mínimo 50 unidades | E153: 0 | I153: 0
A154: 140 | B154: Tapabocas 2 (Compra) | C154: - Elaborado en tela no tejida de Polipropileno y Poliéster - Desechable - Con tiras elásticas - Con soporte nasal | D154: Caja de mínimo 50 unidades | E154: 1 | I154: 1
A155: 141 | B155: Papel higiénico 1 (Compra) | C155: - Rollo con longitud mínima de 20 metros - Doble hoja blanca - Sin fragancia | D155: Rollo | E155: 0 | I155: 0
A156: 142 | B156: Papel higiénico 2 (Compra) | C156: - Rollo con longitud mínima de 250 metros - Doble hoja de color natural - Sin fragancia | D156: Rollo | E156: 0 | I156: 0
A157: 143 | B157: Papel higiénico 3 (Compra) | C157: - Rollo con longitud mínima de 250 metros - Doble hoja blanca - Sin fragancia | D157: Rollo | E157: 4 | I157: 4
A158: 144 | B158: Papel higiénico 4 (Compra) | C158: - Rollo con longitud mínima de 400 metros - Hoja sencilla de color natural - Sinfragancia | D158: Rollo | E158: 0 | I158: 0
A159: 145 | B159: Papel higiénico 5 (Compra) | C159: - Rollo con longitud mínima de 400 metros - Hoja sencilla de color blanco - Sin fragancia | D159: Rollo | E159: 0 | I159: 0
A160: 146 | B160: Toallas para manos 1 (Compra) | C160: - Rollo con longitud mínima de 100 metros - Doble hoja con un tamaño mínimo 15 cm de ancho - Disponibles en color blanco | D160: Rollo | E160: 0 | I160: 0
A161: 147 | B161: Toallas para manos 2 (Compra) | C161: - Rollo con longitud mínima de 100 metros - Doble hoja con un tamaño mínimo 15 cm de ancho - Disponibles en color natural | D161: Rollo | E161: 0 | I161: 0
A162: 148 | B162: Toallas para manos 3 (Compra) | C162: - Rollo con longitud mínima de 150 metros - Doble hoja con un tamaño mínimo 15 cm de ancho - Disponibles en color blanco - Sin olor o fragancia | D162: Rollo | E162: 0 | I162: 0
A163: 149 | B163: Toallas para manos 4 (Compra) | C163: - Rollo con longitud mínima de 150 metros - Doble hoja con un tamaño mínimo 15 cm de ancho - Disponibles en color natural - Sin fragancia | D163: Rollo | E163: 0 | I163: 0
A164: 150 | B164: Toallas para manos 5 (Compra) | C164: - Toallas interdobladas, paquete con mínimo 150 unidades - Doble hoja con un tamaño mínimo de 20 cm de largo por 15 cm de ancho - Hoja color natural | D164: Unidad | E164: 0 | I164: 0
A165: 151 | B165: Toallas para manos 6 (Compra) | C165: - Toallas interdobladas, paquete con mínimo 150 unidades - Doble hoja con un tamaño mínimo de 20 cm de largo por 15 cm de ancho - Hoja color blanco | D165: Unidad | E165: 8 | I165: 8
A166: 152 | B166: Toallas para manos 7 (Compra) | C166: - Toallas con precorte - Rollo con longitud mínima de 100 metros - Doble hoja con tamaño mínimo de 15 cms de ancho - Color Blanco - Sin fragancia | D166: Unidad | E166: 0 | I166: 0
A167: 153 | B167: Toallas para manos 8 (Compra) | C167: - Toallas con precorte - Rollo con longitud mínima de 100 metros - Doble hoja con tamaño mínimo de 15 cms de ancho - Color Natural - Sin fragancia | D167: Unidad | E167: 0 | I167: 0
A168: 154 | B168: Pañuelos (Compra) | C168: - Doble hoja - Color blanco | D168: Caja de mínimo 50 unidades | E168: 0 | I168: 0
A169: 155 | B169: Vasos biodegradables 1 (Compra) | C169: - Elaborado en cartón 97% biodegradable - Capacidad mínima de 4 oz | D169: Paquete de mínimo 50 unidades | E169: 2 | I169: 2
A170: 156 | B170: Vasos biodegradables 2 (Compra) | C170: - Elaborado en cartón 97% biodegradable - Capacidad mínima de 6 oz | D170: Paquete de mínimo 50 | E170: 0 | I170: 0
A171: 157 | B171: Vasos biodegradables 3 (Compra) | C171: - Elaborado en cartón 97% biodegradable - Capacidad mínima de 9 oz | D171: Paquete de mínimo 40 unidades | E171: 1 | I171: 1
A172: 158 | B172: Vasos biodegradables 4 (Compra) | C172: - Capacidad mínima de 9 onzas - Sin tapa - Liso - Biodegradable y compostable. - Elaborado en polyboard (cartón) y/ocon la fibra de caña de azúcar o almidón de maíz | D172: Paquete de mínimo 50 unidades | E172: 0 | I172: 0
A173: 159 | B173: Mezclador 1 (Compra) | C173: - Mezcladores elaborados en madera y/o apartir de recursos renovables como la caña de azucar y/o almidón de maíz - Longitud mínima de 11 cm | D173: Paquete de mínimo 500 | E173: 0 | I173: 0
A174: 160 | B174: Servilleta papel (Compra) | C174: - Tipo cafetería - Dobe hoja - Color blanco - Dimensiones mínimas de 21,5 cm de largo y 14 cm de ancho - 100% Biodegradable - Elaborado a base de papel reciclado no clorado - No debe contener PVC o Poliestireno expandido u otros plásticos de un solo uso tanto en el envase como en el embalaje. | D174: Paquete de mínimo 100 unidades | E174: 3 | I174: 3
A175: 161 | B175: Filtro para greca 1 (Compra) | C175: - Elaborada en tela - Para greca - Capacidad de media libra - No debe contener PVC o Poliestireno expandido u otros plásticos de un solo uso tanto en el envase como en el embalaje | D175: Unidad | E175: 0 | I175: 0
A176: 162 | B176: Filtro para greca 2 (Compra) | C176: - Elaborada en tela - Para greca - Capacidad de una 1 libra - No debe contener PVC o Poliestireno expandido u otros plásticos de un solo uso tanto en el envase como en el embalaje. | D176: Unidad | E176: 0 | I176: 0
A177: 163 | B177: Filtro para greca 3 (Compra) | C177: - Elaborada en tela - Para greca - Capacidad de dos 2 libras - No debe contener PVC o Poliestireno expandido u otros plásticos de un solo uso tanto en el envase como en el embalaje. | D177: Unidad | E177: 0 | I177: 0
A178: 164 | B178: Churrusco para tubos de greca (Compra) | C178: - Cepillo para lavado y fregado de grecas. - No debe contener PVC, Poliestireno expandido u otros plásticos de un solo uso tanto en el envase como en el embalaje. - Base y mango elaborados en alambre | D178: Unidad | E178: 0 | I178: 0
A179: 165 | B179: Papel Aluminio 1 (Compra) | C179: - Longitud mínima del rollo de 40 metros - Ancho mínimo del rollo de 27 cm | D179: Caja de carton con un 1 rollo de mínimo 40 metros de largo y 27 cm de ancho | E179: 0 | I179: 0
A180: 166 | B180: Papel Aluminio 2 (Compra) | C180: - Longitud mínima del rollo de 100 metros - Ancho mínimo del rollo de 27 cm | D180: Caja de carton con un 1 rollo de mínimo 100 metros de largo y 27 cm de ancho | E180: 0 | I180: 0
A181: 167 | B181: Película transparente para alimentos (Compra) | C181: - Longitud mínima del rollo de 50 metros - Ancho mínimo del rollo de 27 cm | D181: Caja de carton con un 1 rollo | E181: 0 | I181: 0
A182: 168 | B182: Termo para café 1 (Compra) | C182: - Elaborado en plástico - Capacidad mínima de 1 litro | D182: Unidad | E182: 0 | I182: 0
A183: 169 | B183: Termo para café 2 (Compra) | C183: - Térmico, con bomba tipo dispensador. Portatil. - Bomba manual para dispensar la bebida. - Acero inoxidable y plastico. - Agarradera plastica, tapa con empaque, bomba manual. - Capacidad mínima de 3 litros | D183: Unidad | E183: 0 | I183: 0
A184: 170 | B184: Café 1 (Compra) | C184: - 100% café tostado y molido. - Tostión media. - Puntaje en taza mayor o igual a 80 puntos catación SCA y/o Denominación de Origen (Anexo 6) - Empacada en bolsa de polipropileno aluminizada resistente a la humedad y al oxígeno. - Debe cumplir con las Resoluciones 333 de 2011 y 2674 de 2013 hasta la entrada en vigencia de la Resolución 810 de 2021 y aquellas que la modifiquen, adicionen o deroguen. | D184: Libra | E184: 6 | I184: 6
A185: 171 | B185: Café 2 (Compra) | C185: - Tostión media - Descafeinado - Empacado en bolsa de polipropileno aluminizada resistente a la humedad y al oxigeno - Debe cumplir con las Resoluciones 333 de 2011 y 2674 de 2013 y aquellas que la modifiquen, adicionen o deroguen. | D185: Libra | E185: 0 | I185: 0
A186: 172 | B186: Café 3 (Compra) | C186: - Instantáneo, para máquinas automáticas - Tostión media - Empacada en bolsa de polipropileno aluminizada resistente a la humedad y al oxígeno. - Debe cumplir con las Resoluciones 333 de 2011 y 2674 de 2013 hasta la entrada en vigencia de la Resolución 810 de 2021 y aquellas que la modifiquen, adicionen o deroguen. | D186: Bolsa de mínimo 500 g | E186: 0 | I186: 0
A187: 173 | B187: Café Social (Compra) | C187: - Diferentes tostiones - Puntaje en taza mayor o igual a a 82 puntos catación SCA y/o orgánico y/o artesanal y/o con Denominación de Origen - Empacada en bolsa de polipropileno aluminizada resistente a la humedad y al oxígeno. - Debe cumplir con las Resoluciones 333 de 2011 y 2674 de 2013 hasta la entrada en vigencia de la Resolución 810 de 2021 y aquellas que la modifiquen, adicionen o deroguen | D187: Bolsa de mínimo 500 g | E187: 0 | I187: 0
A188: 174 | B188: Crema para café (Compra) | C188: - No láctea - Debe cumplir con Resolución 333 de 2011 sobre rotulado y etiquetado nutricional y las normas que la modifiquen | D188: Bolsas de mínimo 100 sobres de mínimo 4 g | E188: 0 | I188: 0
A189: 175 | B189: Azúcar 1 (Compra) | C189: - Blanca - Empaque elaborado en materiales atóxicos - Debe cumplir con Resolución 333 de 2011 sobre rotulado y etiquetado nutricional y las normas que la modifiquen | D189: Bolsa de mínimo 200 sobres o tubipacks de 5 g | E189: 4 | I189: 4
A190: 176 | B190: Azúcar 2 (Compra) | C190: - Blanca - Empaque elaborado en materiales atóxicos - Debe cumplir con Resolución 333 de 2011 sobre rotulado y etiquetado nutricional y las normas que la modifiquen | D190: Bolsa de mínimo 200 sobres o tubipacks de 3,5 g | E190: 0 | I190: 0
A191: 177 | B191: Azúcar 3 (Compra) | C191: - Blanca - Empaque elaborado en materiales atóxicos - Debe cumplir con Resolución 333 de 2011 sobre rotulado y etiquetado nutricional y las normas que la modifiquen | D191: Libra | E191: 0 | I191: 0
A192: 178 | B192: Azúcar 4 (Compra) | C192: - Morena - Empaque elaborado en materiales atóxicos - Debe cumplir con Resolución 333 de 2011 sobre rotulado y etiquetado nutricional y las normas que la modifiquen | D192: Libra | E192: 0 | I192: 0
A193: 179 | B193: Endulzante (Compra) | C193: - Sin calorías - Empaque elaborado en materiales atóxicos - Debe cumplir con Resolución 333 de 2011 sobre rotulado y etiquetado nutricional y las normas que la modifiquen | D193: Caja de mínimo 100 sobres | E193: 0 | I193: 0
A194: 180 | B194: Panela (Compra) | C194: - Panela instantánes pulverizada, deshidratada - Debe cumplir con la NTC 1311 sobreo productos agrícolas - Empaque elaborado en materiales atóxicos - Debe cumplir con la Resolucion 779 de 2006 - Debe cumplir con Resolución 333 de 2011 sobre rotulado y etiquetado nutricional y las normas que la modifiquen | D194: Bolsa de mínimo 100 sobres de mínimo 5 g | E194: 0 | I194: 0
A195: 181 | B195: Sal 1 (Compra) | C195: - Refinada, con un 99,9% de pureza - Con adiciones de yodo y flúor - Debe cumplir con Resolución 333 de 2011 sobre rotulado y etiquetado nutricional y las normas que la modifiquen | D195: Libra (500 g) | E195: 0 | I195: 0
A196: 182 | B196: Sal 2 (Compra) | C196: - Refinada, con un 99,9% de pureza - Con adiciones de yodo y flúor - Debe cumplir con Resolución 333 de 2011 sobre rotulado y etiquetado nutricional y las normas que la modifiquen | D196: 1 kg (1.000 g) | E196: 0 | I196: 0
A197: 183 | B197: Sal 3 (Compra) | C197: - Refinada, con un 99,9% de pureza - Con adiciones de yodo y flúor - Debe cumplir con Resolución 333 de 2011 sobre rotulado y etiquetado nutricional y las normas que la modifiquen | D197: Salero de mínimo 130 g | E197: 0 | I197: 0
A198: 184 | B198: Aromática (Compra) | C198: - Para infusión - Cajas disponbiles en mínimo tres (3) sabores - 100% naturales | D198: Cajas de mínimo 20 en sobres. | E198: 3 | I198: 3
A199: 185 | B199: Aromática de panela (Compra) | C199: - Para infusión - Cajas disponbiles en sabor limón, yerbabuena, canela y naranja - Panela 100% natural y ecológica - Embalaje en cartón corrugado - Debe cumplir con la NTC 1311 sobre productos agrícolas - Empaque elaborado en materiales atóxicos - Debe cumplir con la Resolucion 779 de 2006 - Debe cumplir con Resolución 333 de 2011 sobre rotulado y etiquetado nutricional y las normas que la modifiquen. - Uso: Panela instantánea soluble al agua - Azúcares reductores expresados en glucosa, mínimo 5,74%; azúcares no reductores expresados en sacarosa, máximo 90%; proteínas, mínimo 0,2%; cenizas, mínimo 1%; humedad, máximo 5%; plomo expresado como As en mg/kg, máximo 0,1; - No debe contener PVC o Poliestireno expandido u otros plásticos de un solo uso tanto en el envase como en el embalaje. | D199: Cajas de mínimo 20 en sobres. | E199: 0 | I199: 0
A200: 186 | B200: Bebida de frutas (Compra) | C200: - En jarabe - Cajas disponbiles en mínimo tres (3) sabores | D200: Caja de mínimo 20 sobres | E200: 0 | I200: 0
A201: 187 | B201: Bebida de panela (Compra) | C201: - Bebida instantánea granulada - Cajas disponbiles en mínimo tres (3) sabores | D201: Caja de mínimo 25 sobres | E201: 0 | I201: 0
A202: 188 | B202: Té (Compra) | C202: - Para infusión - Cajas disponbiles en mínimo tres (3) sabores - 100% naturales | D202: Caja x 20 mínimo sobres | E202: 0 | I202: 0
A203: 189 | B203: Infusión frutal (Compra) | C203: - Para infusión - 100% naturales - Sabores surtidos | D203: Caja x 20 mínimo sobres | E203: 3 | I203: 3
A204: 190 | B204: Agua potable 1 (Compra) | C204: - Agua potable purificada sin gas | D204: Botella plástica de mínimo 250 ml | E204: 0 | I204: 0
A205: 191 | B205: Agua potable 2 (Compra) | C205: - Agua potable purificada sin gas | D205: Botella plástica de mínimo 500 ml | E205: 0 | I205: 0
A206: 192 | B206: Agua potable 3 (Compra) | C206: - Agua potable purificada - Con gas | D206: Botella plástica de mínimo 500 ml | E206: =SUM(I206:I206) -> 0 | I206: 0
A207: 193 | B207: Agua potable 4 (Compra) | C207: - Agua potable potable purificada | D207: Botellón de mínimo 18.9 L | E207: 15 | I207: 15
A208: 194 | B208: Válvula dispensadora para botellón de agua (Compra) | C208: -Válvula en material plástico con boquilla ajustable a los diferentes tipos de botellones | D208: Unidad | E208: 0 | I208: 0
... 214 more rows

Sheet Resumen - CSV
B1: RESUMEN DE COTIZACIÓN
B2: =+'Solicitud de Cotización General'!A4 -> Versión: 42 ---- 14/05/2024
B3: Región de Cobertura: | D3: ='Solicitud de Cotización General'!H9 -> 13
B6: Paquete de Servicios | J6: Valores
B7: Item | C7: Categoría | D7: Servicio | E7: Característica 1 | F7: Disponibilidad | G7: Cantidad | H7: Unidad | I7: Vigencia / Unidad | J7: Valor unitario | K7: Nuevo precio cláusula 8 | L7: Valor Mensual / Valor X Unidad | M7: Recargo por Trabajo nocturno, extra, dominical y festivo | N7: Recargo por dotación especial | O7: Valor Total | P7: NomCoupa
B8: 1 | C8: Servicio de Personal | D8: Operario de aseo y cafetería | E8: Operario de aseo y cafetería | F8: Tiempo Completo | G8: 1 | H8: Mes | I8: 7 | J8: =VLOOKUP(D8,Precios!$F:$K,6,0) -> 2465868 | K8: =ROUND(J8/(1-VLOOKUP("Total porcentaje:",'Solicitud de Cotización General'!D:F,3,0)),2) -> 2465868 | L8: =ROUND(G8*K8,2) -> 2465868 | O8: =ROUND(I8*L8,2) -> 17261076 | P8: =IF($C8="Bienes de Aseo y Cafetería","Bienes de Aseo y Cafetería",IF($C8="Servicios Especiales",$D8&" - "&G8,$E8&" "&$F8&" - "&G8)) -> Operario de aseo y cafetería Tiempo Completo - 1
B9: 2 | C9: Servicio de Personal | D9: Operario de aseo y cafetería MT | E9: Operario de aseo y cafetería MT | F9: Medio Tiempo | G9: 0 | H9: Mes | I9: 7 | J9: =VLOOKUP(D9,Precios!$F:$K,6,0) -> 1578155 | K9: =ROUND(J9/(1-VLOOKUP("Total porcentaje:",'Solicitud de Cotización General'!D:F,3,0)),2) -> 1578155 | L9: =ROUND(G9*K9,2) -> 0 | O9: =ROUND(I9*L9,2) -> 0 | P9: =IF($C9="Bienes de Aseo y Cafetería","Bienes de Aseo y Cafetería",IF($C9="Servicios Especiales",$D9&" - "&G9,$E9&" "&$F9&" - "&G9)) -> Operario de aseo y cafetería MT Medio Tiempo - 0
B10: =B9+1 -> 3 | C10: Bienes de Aseo y Cafetería | D10: Jabón para loza 4 (Compra) | E10: Jabón para loza 4 (Compra) | G10: 1 | H10: Und | I10: 7 | J10: 6675 | K10: =ROUND(J10/(1-VLOOKUP("Total porcentaje:",'Solicitud de Cotización General'!D:F,3,0)),2) -> 6675 | L10: =ROUND(G10*K10,2) -> 6675 | O10: =ROUND(I10*L10,2) -> 46725 | P10: =IF($C10="Servicios Especiales",$D10&" - "&G10,$E10&" "&$F10&" - "&G10) -> Jabón para loza 4 (Compra) - 1
B11: =B10+1 -> 4 | C11: Bienes de Aseo y Cafetería | D11: Jabón de dispensador para manos 2 (Compra) | E11: Jabón de dispensador para manos 2 (Compra) | G11: 1 | H11: Und | I11: 7 | J11: 8933 | K11: =ROUND(J11/(1-VLOOKUP("Total porcentaje:",'Solicitud de Cotización General'!D:F,3,0)),2) -> 8933 | L11: =ROUND(G11*K11,2) -> 8933 | O11: =ROUND(I11*L11,2) -> 62531 | P11: =IF($C11="Servicios Especiales",$D11&" - "&G11,$E11&" "&$F11&" - "&G11) -> Jabón de dispensador para manos 2 (Compra) - 1
B12: =B11+1 -> 5 | C12: Bienes de Aseo y Cafetería | D12: Limpiador multiusos 1 (Compra) | E12: Limpiador multiusos 1 (Compra) | G12: 1 | H12: Und | I12: 7 | J12: 7044 | K12: =ROUND(J12/(1-VLOOKUP("Total porcentaje:",'Solicitud de Cotización General'!D:F,3,0)),2) -> 7044 | L12: =ROUND(G12*K12,2) -> 7044 | O12: =ROUND(I12*L12,2) -> 49308 | P12: =IF($C12="Servicios Especiales",$D12&" - "&G12,$E12&" "&$F12&" - "&G12) -> Limpiador multiusos 1 (Compra) - 1
B13: =B12+1 -> 6 | C13: Bienes de Aseo y Cafetería | D13: Detergente multiusos en polvo (Compra) | E13: Detergente multiusos en polvo (Compra) | G13: 1 | H13: Und | I13: 7 | J13: 5720 | K13: =ROUND(J13/(1-VLOOKUP("Total porcentaje:",'Solicitud de Cotización General'!D:F,3,0)),2) -> 5720 | L13: =ROUND(G13*K13,2) -> 5720 | O13: =ROUND(I13*L13,2) -> 40040 | P13: =IF($C13="Servicios Especiales",$D13&" - "&G13,$E13&" "&$F13&" - "&G13) -> Detergente multiusos en polvo (Compra) - 1
B14: =B13+1 -> 7 | C14: Bienes de Aseo y Cafetería | D14: Limpiador desinfectante para uso general 1 (Compra) | E14: Limpiador desinfectante para uso general 1 (Compra) | G14: 1 | H14: Und | I14: 7 | J14: 7149 | K14: =ROUND(J14/(1-VLOOKUP("Total porcentaje:",'Solicitud de Cotización General'!D:F,3,0)),2) -> 7149 | L14: =ROUND(G14*K14,2) -> 7149 | O14: =ROUND(I14*L14,2) -> 50043 | P14: =IF($C14="Servicios Especiales",$D14&" - "&G14,$E14&" "&$F14&" - "&G14) -> Limpiador desinfectante para uso general 1 (Compra) - 1
B15: =B14+1 -> 8 | C15: Bienes de Aseo y Cafetería | D15: Blanqueador o hipoclorito 1 (Compra) | E15: Blanqueador o hipoclorito 1 (Compra) | G15: 1 | H15: Und | I15: 7 | J15: 6641 | K15: =ROUND(J15/(1-VLOOKUP("Total porcentaje:",'Solicitud de Cotización General'!D:F,3,0)),2) -> 6641 | L15: =ROUND(G15*K15,2) -> 6641 | O15: =ROUND(I15*L15,2) -> 46487 | P15: =IF($C15="Servicios Especiales",$D15&" - "&G15,$E15&" "&$F15&" - "&G15) -> Blanqueador o hipoclorito 1 (Compra) - 1
B16: =B15+1 -> 9 | C16: Bienes de Aseo y Cafetería | D16: Varsol ecológico 2 (Compra) | E16: Varsol ecológico 2 (Compra) | G16: 1 | H16: Und | I16: 7 | J16: 19528 | K16: =ROUND(J16/(1-VLOOKUP("Total porcentaje:",'Solicitud de Cotización General'!D:F,3,0)),2) -> 19528 | L16: =ROUND(G16*K16,2) -> 19528 | O16: =ROUND(I16*L16,2) -> 136696 | P16: =IF($C16="Servicios Especiales",$D16&" - "&G16,$E16&" "&$F16&" - "&G16) -> Varsol ecológico 2 (Compra) - 1
B17: =B16+1 -> 10 | C17: Bienes de Aseo y Cafetería | D17: Ambientador 1 (Compra) | E17: Ambientador 1 (Compra) | G17: 1 | H17: Und | I17: 7 | J17: 7229 | K17: =ROUND(J17/(1-VLOOKUP("Total porcentaje:",'Solicitud de Cotización General'!D:F,3,0)),2) -> 7229 | L17: =ROUND(G17*K17,2) -> 7229 | O17: =ROUND(I17*L17,2) -> 50603 | P17: =IF($C17="Servicios Especiales",$D17&" - "&G17,$E17&" "&$F17&" - "&G17) -> Ambientador 1 (Compra) - 1
B18: =B17+1 -> 11 | C18: Bienes de Aseo y Cafetería | D18: Esponjilla 1 (Compra) | E18: Esponjilla 1 (Compra) | G18: 2 | H18: Und | I18: 7 | J18: 779 | K18: =ROUND(J18/(1-VLOOKUP("Total porcentaje:",'Solicitud de Cotización General'!D:F,3,0)),2) -> 779 | L18: =ROUND(G18*K18,2) -> 1558 | O18: =ROUND(I18*L18,2) -> 10906 | P18: =IF($C18="Servicios Especiales",$D18&" - "&G18,$E18&" "&$F18&" - "&G18) -> Esponjilla 1 (Compra) - 2
B19: =B18+1 -> 12 | C19: Bienes de Aseo y Cafetería | D19: Escoba 3 (Compra) | E19: Escoba 3 (Compra) | G19: 1 | H19: Und | I19: 7 | J19: 4635 | K19: =ROUND(J19/(1-VLOOKUP("Total porcentaje:",'Solicitud de Cotización General'!D:F,3,0)),2) -> 4635 | L19: =ROUND(G19*K19,2) -> 4635 | O19: =ROUND(I19*L19,2) -> 32445 | P19: =IF($C19="Servicios Especiales",$D19&" - "&G19,$E19&" "&$F19&" - "&G19) -> Escoba 3 (Compra) - 1
B20: =B19+1 -> 13 | C20: Bienes de Aseo y Cafetería | D20: Escoba 4 (Compra) | E20: Escoba 4 (Compra) | G20: 1 | H20: Und | I20: 7 | J20: 4635 | K20: =ROUND(J20/(1-VLOOKUP("Total porcentaje:",'Solicitud de Cotización General'!D:F,3,0)),2) -> 4635 | L20: =ROUND(G20*K20,2) -> 4635 | O20: =ROUND(I20*L20,2) -> 32445 | P20: =IF($C20="Servicios Especiales",$D20&" - "&G20,$E20&" "&$F20&" - "&G20) -> Escoba 4 (Compra) - 1
B21: =B20+1 -> 14 | C21: Bienes de Aseo y Cafetería | D21: Mango madera escoba 1 (Compra) | E21: Mango madera escoba 1 (Compra) | G21: 2 | H21: Und | I21: 7 | J21: 2164 | K21: =ROUND(J21/(1-VLOOKUP("Total porcentaje:",'Solicitud de Cotización General'!D:F,3,0)),2) -> 2164 | L21: =ROUND(G21*K21,2) -> 4328 | O21: =ROUND(I21*L21,2) -> 30296 | P21: =IF($C21="Servicios Especiales",$D21&" - "&G21,$E21&" "&$F21&" - "&G21) -> Mango madera escoba 1 (Compra) - 2
B22: =B21+1 -> 15 | C22: Bienes de Aseo y Cafetería | D22: Trapero 4 (Compra) | E22: Trapero 4 (Compra) | G22: 1 | H22: Und | I22: 7 | J22: 7209 | K22: =ROUND(J22/(1-VLOOKUP("Total porcentaje:",'Solicitud de Cotización General'!D:F,3,0)),2) -> 7209 | L22: =ROUND(G22*K22,2) -> 7209 | O22: =ROUND(I22*L22,2) -> 50463 | P22: =IF($C22="Servicios Especiales",$D22&" - "&G22,$E22&" "&$F22&" - "&G22) -> Trapero 4 (Compra) - 1
B23: =B22+1 -> 16 | C23: Bienes de Aseo y Cafetería | D23: Bolsas plásticas 1 (Compra) | E23: Bolsas plásticas 1 (Compra) | G23: 1 | H23: Und | I23: 7 | J23: 717 | K23: =ROUND(J23/(1-VLOOKUP("Total porcentaje:",'Solicitud de Cotización General'!D:F,3,0)),2) -> 717 | L23: =ROUND(G23*K23,2) -> 717 | O23: =ROUND(I23*L23,2) -> 5019 | P23: =IF($C23="Servicios Especiales",$D23&" - "&G23,$E23&" "&$F23&" - "&G23) -> Bolsas plásticas 1 (Compra) - 1
B24: =B23+1 -> 17 | C24: Bienes de Aseo y Cafetería | D24: Bolsas plásticas 3 (Compra) | E24: Bolsas plásticas 3 (Compra) | G24: 1 | H24: Und | I24: 7 | J24: 868 | K24: =ROUND(J24/(1-VLOOKUP("Total porcentaje:",'Solicitud de Cotización General'!D:F,3,0)),2) -> 868 | L24: =ROUND(G24*K24,2) -> 868 | O24: =ROUND(I24*L24,2) -> 6076 | P24: =IF($C24="Servicios Especiales",$D24&" - "&G24,$E24&" "&$F24&" - "&G24) -> Bolsas plásticas 3 (Compra) - 1
B25: =B24+1 -> 18 | C25: Bienes de Aseo y Cafetería | D25: Bolsas plásticas 21 (Compra) | E25: Bolsas plásticas 21 (Compra) | G25: 4 | H25: Und | I25: 7 | J25: 5534 | K25: =ROUND(J25/(1-VLOOKUP("Total porcentaje:",'Solicitud de Cotización General'!D:F,3,0)),2) -> 5534 | L25: =ROUND(G25*K25,2) -> 22136 | O25: =ROUND(I25*L25,2) -> 154952 | P25: =IF($C25="Servicios Especiales",$D25&" - "&G25,$E25&" "&$F25&" - "&G25) -> Bolsas plásticas 21 (Compra) - 4
B26: =B25+1 -> 19 | C26: Bienes de Aseo y Cafetería | D26: Bolsas plásticas 22 (Compra) | E26: Bolsas plásticas 22 (Compra) | G26: 4 | H26: Und | I26: 7 | J26: 4227 | K26: =ROUND(J26/(1-VLOOKUP("Total porcentaje:",'Solicitud de Cotización General'!D:F,3,0)),2) -> 4227 | L26: =ROUND(G26*K26,2) -> 16908 | O26: =ROUND(I26*L26,2) -> 118356 | P26: =IF($C26="Servicios Especiales",$D26&" - "&G26,$E26&" "&$F26&" - "&G26) -> Bolsas plásticas 22 (Compra) - 4
B27: =B26+1 -> 20 | C27: Bienes de Aseo y Cafetería | D27: Bolsas plásticas 23 (Compra) | E27: Bolsas plásticas 23 (Compra) | G27: 4 | H27: Und | I27: 7 | J27: 4227 | K27: =ROUND(J27/(1-VLOOKUP("Total porcentaje:",'Solicitud de Cotización General'!D:F,3,0)),2) -> 4227 | L27: =ROUND(G27*K27,2) -> 16908 | O27: =ROUND(I27*L27,2) -> 118356 | P27: =IF($C27="Servicios Especiales",$D27&" - "&G27,$E27&" "&$F27&" - "&G27) -> Bolsas plásticas 23 (Compra) - 4
B28: =B27+1 -> 21 | C28: Bienes de Aseo y Cafetería | D28: Tapabocas 2 (Compra) | E28: Tapabocas 2 (Compra) | G28: 1 | H28: Und | I28: 7 | J28: 15586 | K28: =ROUND(J28/(1-VLOOKUP("Total porcentaje:",'Solicitud de Cotización General'!D:F,3,0)),2) -> 15586 | L28: =ROUND(G28*K28,2) -> 15586 | O28: =ROUND(I28*L28,2) -> 109102 | P28: =IF($C28="Servicios Especiales",$D28&" - "&G28,$E28&" "&$F28&" - "&G28) -> Tapabocas 2 (Compra) - 1
B29: =B28+1 -> 22 | C29: Bienes de Aseo y Cafetería | D29: Papel higiénico 3 (Compra) | E29: Papel higiénico 3 (Compra) | G29: 4 | H29: Und | I29: 7 | J29: 11164 | K29: =ROUND(J29/(1-VLOOKUP("Total porcentaje:",'Solicitud de Cotización General'!D:F,3,0)),2) -> 11164 | L29: =ROUND(G29*K29,2) -> 44656 | O29: =ROUND(I29*L29,2) -> 312592 | P29: =IF($C29="Servicios Especiales",$D29&" - "&G29,$E29&" "&$F29&" - "&G29) -> Papel higiénico 3 (Compra) - 4
B30: =B29+1 -> 23 | C30: Bienes de Aseo y Cafetería | D30: Toallas para manos 6 (Compra) | E30: Toallas para manos 6 (Compra) | G30: 8 | H30: Und | I30: 7 | J30: 6962 | K30: =ROUND(J30/(1-VLOOKUP("Total porcentaje:",'Solicitud de Cotización General'!D:F,3,0)),2) -> 6962 | L30: =ROUND(G30*K30,2) -> 55696 | O30: =ROUND(I30*L30,2) -> 389872 | P30: =IF($C30="Servicios Especiales",$D30&" - "&G30,$E30&" "&$F30&" - "&G30) -> Toallas para manos 6 (Compra) - 8
B31: =B30+1 -> 24 | C31: Bienes de Aseo y Cafetería | D31: Vasos biodegradables 1 (Compra) | E31: Vasos biodegradables 1 (Compra) | G31: 2 | H31: Und | I31: 7 | J31: 7600 | K31: =ROUND(J31/(1-VLOOKUP("Total porcentaje:",'Solicitud de Cotización General'!D:F,3,0)),2) -> 7600 | L31: =ROUND(G31*K31,2) -> 15200 | O31: =ROUND(I31*L31,2) -> 106400 | P31: =IF($C31="Servicios Especiales",$D31&" - "&G31,$E31&" "&$F31&" - "&G31) -> Vasos biodegradables 1 (Compra) - 2
B32: =B31+1 -> 25 | C32: Bienes de Aseo y Cafetería | D32: Vasos biodegradables 3 (Compra) | E32: Vasos biodegradables 3 (Compra) | G32: 1 | H32: Und | I32: 7 | J32: 10528 | K32: =ROUND(J32/(1-VLOOKUP("Total porcentaje:",'Solicitud de Cotización General'!D:F,3,0)),2) -> 10528 | L32: =ROUND(G32*K32,2) -> 10528 | O32: =ROUND(I32*L32,2) -> 73696 | P32: =IF($C32="Servicios Especiales",$D32&" - "&G32,$E32&" "&$F32&" - "&G32) -> Vasos biodegradables 3 (Compra) - 1
B33: =B32+1 -> 26 | C33: Bienes de Aseo y Cafetería | D33: Servilleta papel (Compra) | E33: Servilleta papel (Compra) | G33: 3 | H33: Und | I33: 7 | J33: 2292 | K33: =ROUND(J33/(1-VLOOKUP("Total porcentaje:",'Solicitud de Cotización General'!D:F,3,0)),2) -> 2292 | L33: =ROUND(G33*K33,2) -> 6876 | O33: =ROUND(I33*L33,2) -> 48132 | P33: =IF($C33="Servicios Especiales",$D33&" - "&G33,$E33&" "&$F33&" - "&G33) -> Servilleta papel (Compra) - 3
B34: =B33+1 -> 27 | C34: Bienes de Aseo y Cafetería | D34: Café 1 (Compra) | E34: Café 1 (Compra) | G34: 6 | H34: Und | I34: 7 | J34: 19115 | K34: =ROUND(J34/(1-VLOOKUP("Total porcentaje:",'Solicitud de Cotización General'!D:F,3,0)),2) -> 19115 | L34: =ROUND(G34*K34,2) -> 114690 | O34: =ROUND(I34*L34,2) -> 802830 | P34: =IF($C34="Servicios Especiales",$D34&" - "&G34,$E34&" "&$F34&" - "&G34) -> Café 1 (Compra) - 6
B35: =B34+1 -> 28 | C35: Bienes de Aseo y Cafetería | D35: Azúcar 1 (Compra) | E35: Azúcar 1 (Compra) | G35: 4 | H35: Und | I35: 7 | J35: 9761 | K35: =ROUND(J35/(1-VLOOKUP("Total porcentaje:",'Solicitud de Cotización General'!D:F,3,0)),2) -> 9761 | L35: =ROUND(G35*K35,2) -> 39044 | O35: =ROUND(I35*L35,2) -> 273308 | P35: =IF($C35="Servicios Especiales",$D35&" - "&G35,$E35&" "&$F35&" - "&G35) -> Azúcar 1 (Compra) - 4
B36: =B35+1 -> 29 | C36: Bienes de Aseo y Cafetería | D36: Aromática (Compra) | E36: Aromática (Compra) | G36: 3 | H36: Und | I36: 7 | J36: 1708 | K36: =ROUND(J36/(1-VLOOKUP("Total porcentaje:",'Solicitud de Cotización General'!D:F,3,0)),2) -> 1708 | L36: =ROUND(G36*K36,2) -> 5124 | O36: =ROUND(I36*L36,2) -> 35868 | P36: =IF($C36="Servicios Especiales",$D36&" - "&G36,$E36&" "&$F36&" - "&G36) -> Aromática (Compra) - 3
B37: =B36+1 -> 30 | C37: Bienes de Aseo y Cafetería | D37: Infusión frutal (Compra) | E37: Infusión frutal (Compra) | G37: 3 | H37: Und | I37: 7 | J37: 2424 | K37: =ROUND(J37/(1-VLOOKUP("Total porcentaje:",'Solicitud de Cotización General'!D:F,3,0)),2) -> 2424 | L37: =ROUND(G37*K37,2) -> 7272 | O37: =ROUND(I37*L37,2) -> 50904 | P37: =IF($C37="Servicios Especiales",$D37&" - "&G37,$E37&" "&$F37&" - "&G37) -> Infusión frutal (Compra) - 3
B38: =B37+1 -> 31 | C38: Bienes de Aseo y Cafetería | D38: Agua potable 4 (Compra) | E38: Agua potable 4 (Compra) | G38: 15 | H38: Und | I38: 7 | J38: 12460 | K38: =ROUND(J38/(1-VLOOKUP("Total porcentaje:",'Solicitud de Cotización General'!D:F,3,0)),2) -> 12460 | L38: =ROUND(G38*K38,2) -> 186900 | O38: =ROUND(I38*L38,2) -> 1308300 | P38: =IF($C38="Servicios Especiales",$D38&" - "&G38,$E38&" "&$F38&" - "&G38) -> Agua potable 4 (Compra) - 15
B39: =B38+1 -> 32 | C39: Bienes de Aseo y Cafetería | D39: Recogedor de basura 1 (Compra) | E39: Recogedor de basura 1 (Compra) | G39: 1 | H39: Und | I39: 7 | J39: 3169 | K39: =ROUND(J39/(1-VLOOKUP("Total porcentaje:",'Solicitud de Cotización General'!D:F,3,0)),2) -> 3169 | L39: =ROUND(G39*K39,2) -> 3169 | O39: =ROUND(I39*L39,2) -> 22183 | P39: =IF($C39="Servicios Especiales",$D39&" - "&G39,$E39&" "&$F39&" - "&G39) -> Recogedor de basura 1 (Compra) - 1
B40: 1. Si requiere agregue o elimine filas | M40: Recargo por Trabajo nocturno, extra, dominical y festivo | N40: =SUM(L8:L8) -> 2465868 | O40: =SUM(M8:M9) -> 0 | P40: =IF($C40="Servicios Especiales",$D40&" - "&G40,$E40&" "&$F40&" - "&G40) -> -
M41: Recargo por dotación especial | O41: =SUM(N8:N9) -> 0 | P41: -
M42: Subtotal | O42: =SUM(O8:O41) -> 21836010 | P42: -
C43: NOTA: para realizar la solicitud de cotización la Entidad Compradora debe cargar en la plantilla de cotización: 1. Este archivo del Excel con todo el detalle de las especificaciones del servicio. Este archivo se carga como un anexo en la sección "Anexos" de la plantilla. 2. Los ítems que requiere y que se generan en la plantilla creando el archivo CSV al seleccionar el botón "Generar Solicitud" de esta pestaña. Los ítems deben cargarse en la plantilla en la sección "Artículos y lotes" seleccionando "agregar nuevo" y luego "agregar desde CSV". | M43: % AIU | N43: =VLOOKUP("Porcentaje de AIU",Precios!$F:$K,6,0) -> 0.1 | O43: =ROUND(O42*N43,2) -> 2183601 | P43: -
M44: IVA | O44: =IF($D$3<>12,ROUND(IF(N43<10%,(O42*10%)*19%,(O42*N43)*19%),0),0) -> 414884 | P44: -
M45: Total | O45: =SUM(O42:O44) -> 24434495 | P45: -
P46: -
P47: -
P48: -
P49: -

Sheet Cotizacion Bienes de Aseo y Ca
A2: FORMATO DE COTIZACIÓN BIENES DE ASEO Y CAFETERÍA
A4: 3. Bienes de Aseo y Cafetería
A5: Regional | C5: =Cotizacion!D3 -> 13 | J5: Items | K5: Porcentaje
A6: Proveedor | C6: =Cotizacion!D4 -> 0 | F6: Total Items a cotizar | J6: =COUNTIF(E14:$E$421,">0") -> 30 | K6: 1
A7: Observaciones | F7: Items con descuento hasta 25% | J7: =COUNTIF(H14:$H$421,">"&0.2) -> 0 | K7: =IFERROR(J7/J6,0) -> 0
F8: Items con descuento hasta 20% | J8: =COUNTIFS(H14:$H$421,"<="&0.2,H14:$H$421,"<>0") -> 0 | K8: =IFERROR(J8/J6,0) -> 0
F9: Items pendientes de cotizar | J9: =J6-J7-J8 -> 30 | K9: =IFERROR(J9/J6,0) -> 1
A11: A. Insumos | J11: =IFERROR(IF(ISEVEN($J$6),IF($K$7<=0.5,0.2501,0.2),IF(($J$7-1)<((($J$6-1)/2)+1),0.2501,0.2)),0) -> 0.2501 | M11: Detalle Sede
A13: No. | B13: Bien | C13: Especificación | D13: Presentación | E13: Cantidad Mensual | F13: Precio unitario | G13: Precio Mínimo | H13: Descuento sobre precio mínimo | I13: Descuento % | J13: Precio Unitario con Descuento | K13: Total | L13: Minimo | M13: Sede 1
A14: 0 | B14: Jardineria mt2 | C14: Servicio especializado de jardinería en metros cuadrados. | D14: Metros cuadrados | E14: =SUM(M14:M14) -> 0 | F14: =IF(E14>0,(VLOOKUP($C$5&$C$6&B14,ConsolidadoServicios!$A:$K,11,0)),0) -> 0 | G14: =IF(E14>0,(VLOOKUP(B14,Minimos!$A:$B,2,0)),0) -> 0 | H14: =IF(E14>0,IF(I14>0,(G14-J14)/G14,0),0) -> 0 | J14: =ROUND((F14*(1-I14)),2) -> 0 | K14: =J14*E14 -> 0 | L14: =ROUND(VLOOKUP($C$5&B14,ConsolidadoServicios!P:Q,2,0)*80%,2) -> 0 | M14: ='Detalle Bienes de Aseo y Caf'!I14 -> 0
A15: 1 | B15: Jabón para loza 1 (Compra) | C15: - Con agente(s) tensoactivo(s) principal(es) con efecto limpiador y desengrasante en una concentración mínima del 8%. - Disponible en mínimo (2) dos fragancias - El envase debe estar correctamente etiquetado bajo los parámetros establecidos en el sistema globalmente armonizado (Decreto 1496 de 2018) indicando: nombre comercial del producto, pictogramas de los compuestos peligrosos si aplica e instrucciones de uso de acuerdo con los tiempos de transición descritos en el artículo 24 de la Resolución 773 de 2021. - Debe contener concentraciones de fósforo iguales o inferiores a 0.65% de fósforo (Resolución 0689 de 2016) | D15: Líquido, en recipiente plástico con capacidad mínima de 3.785 ml | E15: 0 | F15: =IF(E15>0,(VLOOKUP($C$5&$C$6&B15,ConsolidadoServicios!$A:$K,11,0)),0) -> 0 | G15: =IF(E15>0,(VLOOKUP(B15,Minimos!$A:$B,2,0)),0) -> 0 | H15: =IF(E15>0,IF(I15>0,(G15-J15)/G15,0),0) -> 0 | J15: =ROUND((F15*(1-I15)),2) -> 0 | K15: =J15*E15 -> 0 | L15: =ROUND(VLOOKUP($C$5&B15,ConsolidadoServicios!P:Q,2,0)*80%,2) -> 0 | M15: ='Detalle Bienes de Aseo y Caf'!I15 -> 0
A16: 2 | B16: Jabón para loza 2 (Compra) | C16: - Con agente(s) tensoactivo(s) principal(es) con efecto limpiador y desengrasante en una concentración mínima del 8%. - Disponible en mínimo (2) dos fragancias - El envase debe estar correctamente etiquetado bajo los parámetros establecidos en el sistema globalmente armonizado (Decreto 1496 de 2018) indicando: nombre comercial del producto, pictogramas de los compuestos peligrosos si aplica e instrucciones de uso de acuerdo con los tiempos de transición descritos en el artículo 24 de la Resolución 773 de 2021. - Debe contener concentraciones de fósforo iguales o inferiores a 0.65% de fósforo (Resolución 0689 de 2016) | D16: Líquido, en recipiente plástico de mínimo 500 ml | E16: 0 | F16: =IF(E16>0,(VLOOKUP($C$5&$C$6&B16,ConsolidadoServicios!$A:$K,11,0)),0) -> 0 | G16: =IF(E16>0,(VLOOKUP(B16,Minimos!$A:$B,2,0)),0) -> 0 | H16: =IF(E16>0,IF(I16>0,(G16-J16)/G16,0),0) -> 0 | J16: =ROUND((F16*(1-I16)),2) -> 0 | K16: =J16*E16 -> 0 | L16: =ROUND(VLOOKUP($C$5&B16,ConsolidadoServicios!P:Q,2,0)*80%,2) -> 0 | M16: ='Detalle Bienes de Aseo y Caf'!I16 -> 0
A17: 3 | B17: Jabón para loza 3 (Compra) | C17: - Con agente(s) tensoactivo(s) principal(es) con efecto limpiador y desengrasante en una concentración mínima del 15%. - Disponible en mínimo (2) dos fragancias - El envase debe estar correctamente etiquetados bajo los parámetros establecidos en el sistema globalmente armonizado (Decreto 1496 de 2018) indicando: nombre comercial del producto, pictogramas de los compuestos peligrosos si aplica e instrucciones de uso. - Debe contener concentraciones de fósforo iguales o inferiores a 0.65% de fósforo (Resolución 0689 de 2016) | D17: Crema, en recipiente plástico de mínimo 850 g | E17: 0 | F17: =IF(E17>0,(VLOOKUP($C$5&$C$6&B17,ConsolidadoServicios!$A:$K,11,0)),0) -> 0 | G17: =IF(E17>0,(VLOOKUP(B17,Minimos!$A:$B,2,0)),0) -> 0 | H17: 0 | J17: 0 | K17: 0 | L17: =ROUND(VLOOKUP($C$5&B17,ConsolidadoServicios!P:Q,2,0)*80%,2) -> 0 | M17: ='Detalle Bienes de Aseo y Caf'!I17 -> 0
A18: 4 | B18: Jabón para loza 4 (Compra) | C18: - Con agente(s) tensoactivo(s) con efecto limpiador y desengrasante. - Disponible en múltiples fragancias. - El envase debe estar correctamente etiquetado bajo los parámetros establecidos en el sistema globalmente armonizado (Decreto 1496 de 2018) indicando: nombre comercial del producto, pictogramas de los compuestos peligrosos si aplica e instrucciones de uso de acuerdo con los tiempos de transición descritos en el artículo 24 de la Resolución 773 de 2021. - Elaborado en material reciclable - Con etiqueta de amigable con el ambiente - Debe contener concentraciones de fósforo iguales o inferiores a 0.65% de fósforo (Resolución 0689 de 2016) | D18: Crema, en recipiente plástico de mínimo 1000 g | E18: 1 | F18: =IF(E18>0,(VLOOKUP($C$5&$C$6&B18,ConsolidadoServicios!$A:$K,11,0)),0) ->  | G18: =IF(E18>0,(VLOOKUP(B18,Minimos!$A:$B,2,0)),0) -> 6675 | H18: 0 | L18: =ROUND(VLOOKUP($C$5&B18,ConsolidadoServicios!P:Q,2,0)*80%,2) -> 0 | M18: ='Detalle Bienes de Aseo y Caf'!I18 -> 1
A19: 5 | B19: Jabón en barra (Compra) | C19: -Composición de ácidos grasos de mínimo 50%. - Debe contener concentraciones de fósforo iguales o inferiores a 0.65% de fósforo (Resolución 0689 de 2016) | D19: Barra, unidad con peso mínimo de 250 g en envoltura individual | E19: 0 | F19: =IF(E19>0,(VLOOKUP($C$5&$C$6&B19,ConsolidadoServicios!$A:$K,11,0)),0) -> 0 | G19: =IF(E19>0,(VLOOKUP(B19,Minimos!$A:$B,2,0)),0) -> 0 | H19: 0 | J19: 0 | K19: 0 | L19: =ROUND(VLOOKUP($C$5&B19,ConsolidadoServicios!P:Q,2,0)*80%,2) -> 0 | M19: ='Detalle Bienes de Aseo y Caf'!I19 -> 0
A20: 6 | B20: Jabón en barra azul (Compra) | C20: - Todo tipo de uso - Biodegradable - No debe contener PVC o Poliestireno expandido u otros plásticos de un solo uso tanto en el envase como en el embalaje. - Debe contener concentraciones de fósforo iguales o inferiores a 0.65% de fósforo (Resolución 0689 de 2016) | D20: Barra, unidad con peso mínimo de 250 g en envoltura individual | E20: 0 | F20: =IF(E20>0,(VLOOKUP($C$5&$C$6&B20,ConsolidadoServicios!$A:$K,11,0)),0) -> 0 | G20: =IF(E20>0,(VLOOKUP(B20,Minimos!$A:$B,2,0)),0) -> 0 | H20: 0 | J20: 0 | K20: 0 | L20: =ROUND(VLOOKUP($C$5&B20,ConsolidadoServicios!P:Q,2,0)*80%,2) -> 0 | M20: ='Detalle Bienes de Aseo y Caf'!I20 -> 0
A21: 7 | B21: Jabón abrasivo (Compra) | C21: -Con agente(s) tensoactivo(s) pincipal(es) con efecto limpiador, pulidor y desengrasante - Con agente activo mínimo del 5% - Debe contener concentraciones de fósforo iguales o inferiores a 0.65% de fósforo (Resolución 0689 de 2016) | D21: En polvo, en tarro de mínimo 500 g | E21: 0 | F21: =IF(E21>0,(VLOOKUP($C$5&$C$6&B21,ConsolidadoServicios!$A:$K,11,0)),0) -> 0 | G21: =IF(E21>0,(VLOOKUP(B21,Minimos!$A:$B,2,0)),0) -> 0 | H21: 0 | J21: 0 | K21: 0 | L21: =ROUND(VLOOKUP($C$5&B21,ConsolidadoServicios!P:Q,2,0)*80%,2) -> 0 | M21: ='Detalle Bienes de Aseo y Caf'!I21 -> 0
A22: 8 | B22: Jabón de tocador 1 (Compra) | C22: - Elaborado con grasas vegetales - Con agente humectante - pH modificar entre PH 5,5 a 7 - Disponible en mínimo (2) dos fragancias - Debe estar correctamente etiquetados bajo los parámetros indicando: nombre comercial del producto, pictogramas de los compuestos peligrosos e instrucciones de uso - Debe contener concentraciones de fósforo iguales o inferiores a 0.65% de fósforo (Resolución 0689 de 2016) | D22: Barra, unidad con peso mínimo de 125 g en envoltura individual | E22: 0 | F22: =IF(E22>0,(VLOOKUP($C$5&$C$6&B22,ConsolidadoServicios!$A:$K,11,0)),0) -> 0 | G22: =IF(E22>0,(VLOOKUP(B22,Minimos!$A:$B,2,0)),0) -> 0 | H22: 0 | J22: 0 | K22: 0 | L22: =ROUND(VLOOKUP($C$5&B22,ConsolidadoServicios!P:Q,2,0)*80%,2) -> 0 | M22: ='Detalle Bienes de Aseo y Caf'!I22 -> 0
A23: 9 | B23: Jabón de tocador 2 (Compra) | C23: - Jabón de tocador para manos en espuma - Líquido para manos en bolsa para dispensador spray y con boquilla especial de dispensador - Tapa tipo válvula, para dispensador, antibacterial y antiséptico - Con agente limpiador en una concentración mínima del 6% - Con agente humectante en una concentración mínima del 3% - Disponible en múltiples fragancias - Producto biodegradable basado en ingredientes orgánicos - El envase debe estar correctamente etiquetado bajo los parámetros establecidos en el sistema globalmente armonizado (Decreto 1496 de 2018) indicando: nombre comercial del producto, pictogramas de los compuestos peligrosos si aplica e instrucciones de uso de acuerdo con los tiempos de transición descritos en el artículo 24 de la Resolución 773 de 2021. - Elaborado en material reciclable - No debe contener PVC, Poliestireno expandido u otros plásticos de un solo uso tanto en el envase como en el embalaje. - Debe contener concentraciones de fósforo iguales o inferiores a 0.65% de fósforo (Resolución 0689 de 2016) | D23: Líquido, en bolsa con capacidad mínima de 800 ml | E23: 0 | F23: =IF(E23>0,(VLOOKUP($C$5&$C$6&B23,ConsolidadoServicios!$A:$K,11,0)),0) -> 0 | G23: =IF(E23>0,(VLOOKUP(B23,Minimos!$A:$B,2,0)),0) -> 0 | H23: 0 | J23: 0 | K23: 0 | L23: =ROUND(VLOOKUP($C$5&B23,ConsolidadoServicios!P:Q,2,0)*80%,2) -> 0 | M23: ='Detalle Bienes de Aseo y Caf'!I23 -> 0
A24: 10 | B24: Jabón de dispensador para manos 1 (Compra) | C24: - Con agente limpiador en una concentración mínima del 6% - Con agente humectante en una concentración mínima del 3% - pH entre 5,5 a 7 - Disponible en mínimo (2) dos fragancias - Debe contener concentraciones de fósforo iguales o inferiores a 0.65% de fósforo (Resolución 0689 de 2016) | D24: Líquido, en recipiente plástico con dispensador y capacidad mínima de 500 ml | E24: 0 | F24: =IF(E24>0,(VLOOKUP($C$5&$C$6&B24,ConsolidadoServicios!$A:$K,11,0)),0) -> 0 | G24: =IF(E24>0,(VLOOKUP(B24,Minimos!$A:$B,2,0)),0) -> 0 | H24: 0 | J24: 0 | K24: 0 | L24: =ROUND(VLOOKUP($C$5&B24,ConsolidadoServicios!P:Q,2,0)*80%,2) -> 0 | M24: ='Detalle Bienes de Aseo y Caf'!I24 -> 0
A25: 11 | B25: Jabón de dispensador para manos 2 (Compra) | C25: - Con agente limpiador en una concentración mínima del 6% - Con agente humectante en una concentración mínima del 3% - pH entre 5,5 a 7 - Disponible en mínimo (2) dos fragancias - Debe contener concentraciones de fósforo iguales o inferiores a 0.65% de fósforo (Resolución 0689 de 2016) | D25: Líquido, en recipiente plástico con capacidad mínima de 3.785 ml | E25: 1 | F25: =IF(E25>0,(VLOOKUP($C$5&$C$6&B25,ConsolidadoServicios!$A:$K,11,0)),0) ->  | G25: =IF(E25>0,(VLOOKUP(B25,Minimos!$A:$B,2,0)),0) -> 1848 | H25: 0 | L25: =ROUND(VLOOKUP($C$5&B25,ConsolidadoServicios!P:Q,2,0)*80%,2) -> 0 | M25: ='Detalle Bienes de Aseo y Caf'!I25 -> 1
A26: 12 | B26: Jabón de dispensador para manos 3 (Compra) | C26: - Con agente limpiador en una concentración mínima del 6%. - Con agente antibacterial en una concentración mínima del 0,2% - Con agente humectante en una concentración mínima del 3% - pH entre 5,5 a 7 - Disponible en mínimo (2) dos fragancias - Debe contener concentraciones de fósforo iguales o inferiores a 0.65% de fósforo (Resolución 0689 de 2016) | D26: Líquido, en recipiente plástico con capacidad mínima de 3.785 ml | E26: 0 | F26: =IF(E26>0,(VLOOKUP($C$5&$C$6&B26,ConsolidadoServicios!$A:$K,11,0)),0) -> 0 | G26: =IF(E26>0,(VLOOKUP(B26,Minimos!$A:$B,2,0)),0) -> 0 | H26: 0 | J26: 0 | K26: 0 | L26: =ROUND(VLOOKUP($C$5&B26,ConsolidadoServicios!P:Q,2,0)*80%,2) -> 0 | M26: ='Detalle Bienes de Aseo y Caf'!I26 -> 0
A27: 13 | B27: Gel antibacterial para manos (Compra) | C27: - Con agente antibacterial en una concentración mínima del 0,2% - Con agente humectante - pH entre 5, 5 a 7 - Con fragancia | D27: Gel, en recipiente plástico con capacidad mínima de 3.785 ml | E27: 0 | F27: =IF(E27>0,(VLOOKUP($C$5&$C$6&B27,ConsolidadoServicios!$A:$K,11,0)),0) -> 0 | G27: =IF(E27>0,(VLOOKUP(B27,Minimos!$A:$B,2,0)),0) -> 0 | H27: 0 | J27: 0 | K27: 0 | L27: =ROUND(VLOOKUP($C$5&B27,ConsolidadoServicios!P:Q,2,0)*80%,2) -> 0 | M27: ='Detalle Bienes de Aseo y Caf'!I27 -> 0
A28: 14 | B28: Dispensador de gel antibacterial para manos (Compra) | C28: - Material: Plástico - Tipo de instalación: De pared - Incluye Chazos y tornillos - Con visor para determinar el nivel del líquido - Con ventanilla en la parte superior para añadir el gel - Funcionamiento: Manual | D28: Recipiente con capacidad mínima de 500 ml (Unidad) | E28: 0 | F28: =IF(E28>0,(VLOOKUP($C$5&$C$6&B28,ConsolidadoServicios!$A:$K,11,0)),0) -> 0 | G28: =IF(E28>0,(VLOOKUP(B28,Minimos!$A:$B,2,0)),0) -> 0 | H28: 0 | J28: 0 | K28: 0 | L28: =ROUND(VLOOKUP($C$5&B28,ConsolidadoServicios!P:Q,2,0)*80%,2) -> 0 | M28: ='Detalle Bienes de Aseo y Caf'!I28 -> 0
A29: 15 | B29: Limpiador multiusos 1 (Compra) | C29: - Con agente(s) tensoactivo(s) principal(es) con efecto limpiador en una concentración mínima del 8% - Disponible en mínimo (2) dos fragancias - El envase debe estar correctamente etiquetado bajo los parámetros establecidos en el sistema globalmente armonizado (Decreto 1496 de 2018) indicando: nombre comercial del producto, pictogramas de los compuestos peligrosos si aplica e instrucciones de uso de acuerdo con los tiempos de transición descritos en el artículo 24 de la Resolución 773 de 2021. | D29: Líquido, en recipiente plástico con capacidad mínima de 3.785 ml | E29: 1 | F29: =IF(E29>0,(VLOOKUP($C$5&$C$6&B29,ConsolidadoServicios!$A:$K,11,0)),0) ->  | G29: =IF(E29>0,(VLOOKUP(B29,Minimos!$A:$B,2,0)),0) -> 7044 | H29: 0 | L29: =ROUND(VLOOKUP($C$5&B29,ConsolidadoServicios!P:Q,2,0)*80%,2) -> 0 | M29: ='Detalle Bienes de Aseo y Caf'!I29 -> 1
A30: 16 | B30: Limpiador multiusos 2 (Compra) | C30: - Con agente(s) tensoactivo(s) principal(es) con efecto limpiador y desengrasante en una concentración mínima del 8% - Disponible en mínimo (2) dos fragancias - El envase debe estar correctamente etiquetado bajo los parámetros establecidos en el sistema globalmente armonizado (Decreto 1496 de 2018) indicando: nombre comercial del producto, pictogramas de los compuestos peligrosos si aplica e instrucciones de uso de acuerdo con los tiempos de transición descritos en el artículo 24 de la Resolución 773 de 2021. | D30: Líquido, en recipiente plástico con capacidad mínima de 500 ml, con atomizador de pistola. | E30: 0 | F30: =IF(E30>0,(VLOOKUP($C$5&$C$6&B30,ConsolidadoServicios!$A:$K,11,0)),0) -> 0 | G30: =IF(E30>0,(VLOOKUP(B30,Minimos!$A:$B,2,0)),0) -> 0 | H30: 0 | J30: 0 | K30: 0 | L30: =ROUND(VLOOKUP($C$5&B30,ConsolidadoServicios!P:Q,2,0)*80%,2) -> 0 | M30: ='Detalle Bienes de Aseo y Caf'!I30 -> 0
A31: 17 | B31: Limpiador multiusos 3 (Compra) | C31: - Con agente(s) tensoactivo(s) principal(es) con efecto limpiador y desengrasante en una concentración mínima del 8% - Disponible en mínimo (2) dos fragancias - El envase debe estar correctamente etiquetado bajo los parámetros establecidos en el sistema globalmente armonizado (Decreto 1496 de 2018) indicando: nombre comercial del producto, pictogramas de los compuestos peligrosos si aplica e instrucciones de uso de acuerdo con los tiempos de transición descritos en el artículo 24 de la Resolución 773 de 2021. | D31: Líquido, en recipiente plástico de repuesto con capacidad mínima de 500 ml | E31: 0 | F31: =IF(E31>0,(VLOOKUP($C$5&$C$6&B31,ConsolidadoServicios!$A:$K,11,0)),0) -> 0 | G31: =IF(E31>0,(VLOOKUP(B31,Minimos!$A:$B,2,0)),0) -> 0 | H31: 0 | J31: 0 | K31: 0 | L31: =ROUND(VLOOKUP($C$5&B31,ConsolidadoServicios!P:Q,2,0)*80%,2) -> 0 | M31: ='Detalle Bienes de Aseo y Caf'!I31 -> 0
A32: 18 | B32: Limpiador desinfectante para pisos (Compra) | C32: - Apariencia: Líquido transparente - Color y olor: De acuerdo a la fragancia - Producto biodegradable que no afectas la capa de ozono - Solubilidad: Total en agua - PH: 7.5 - 8.5 - Composición: Tensoactivos, espesante, coadyuvante, colorante - El envase debe estar correctamente etiquetado bajo los parámetros establecidos en el sistema globalmente armonizado (Decreto 1496 de 2018) indicando: nombre comercial del producto, pictogramas de los compuestos peligrosos si aplica e instrucciones de uso de acuerdo con los tiempos de transición descritos en el artículo 24 de la Resolución 773 de 2021. - Elaborado en material reciclable - No debe contener PVC, poliestireno expandido u otros plásticos de un solo uso tanto en el envase como en el embalaje. | D32: Líquido, en garrafa con capacidad mínima de 3.785 ml | E32: 0 | F32: =IF(E32>0,(VLOOKUP($C$5&$C$6&B32,ConsolidadoServicios!$A:$K,11,0)),0) -> 0 | G32: =IF(E32>0,(VLOOKUP(B32,Minimos!$A:$B,2,0)),0) -> 0 | H32: 0 | J32: 0 | K32: 0 | L32: =ROUND(VLOOKUP($C$5&B32,ConsolidadoServicios!P:Q,2,0)*80%,2) -> 0 | M32: ='Detalle Bienes de Aseo y Caf'!I32 -> 0
A33: 19 | B33: Líquido desengrasante (Compra) | C33: - Con agente(s) tensoactivo(s) principal(es) con efecto limpiador y desengrasante en una concentración mínima del 10% - El envase debe estar correctamente etiquetado bajo los parámetros establecidos en el sistema globalmente armonizado (Decreto 1496 de 2018) indicando: nombre comercial del producto, pictogramas de los compuestos peligrosos si aplica e instrucciones de uso de acuerdo con los tiempos de transición descritos en el artículo 24 de la Resolución 773 de 2021. - Debe contener concentraciones de fósforo iguales o inferiores a 0.65% de fósforo (Resolución 0689 de 2016) | D33: Líquido, en recipiente plástico con capacidad mínima de 3.785 ml | E33: 0 | F33: =IF(E33>0,(VLOOKUP($C$5&$C$6&B33,ConsolidadoServicios!$A:$K,11,0)),0) -> 0 | G33: =IF(E33>0,(VLOOKUP(B33,Minimos!$A:$B,2,0)),0) -> 0 | H33: 0 | J33: 0 | K33: 0 | L33: =ROUND(VLOOKUP($C$5&B33,ConsolidadoServicios!P:Q,2,0)*80%,2) -> 0 | M33: ='Detalle Bienes de Aseo y Caf'!I33 -> 0
A34: 20 | B34: Crema desengrasante (Compra) | C34: - Disponible en múltiples fragancias - Limpia y desengrasa todos los metales, plásticos, gomas, vidrio, cerámica y madera - El envase debe estar correctamente etiquetado bajo los parámetros establecidos en el sistema globalmente armonizado (Decreto 1496 de 2018) indicando: nombre comercial del producto, pictogramas de los compuestos peligrosos si aplica e instrucciones de uso de acuerdo con los tiempos de transición descritos en el artículo 24 de la Resolución 773 de 2021. - Elaborado en material reciclable o biodegradable - No debe contener PVC o Poliestireno expandido u otros plásticos de un solo uso tanto en el envase como en el embalaje. | D34: Crema, en recipiente reciclable o biodegadable con capacidad mínima de 500 g | E34: 0 | F34: =IF(E34>0,(VLOOKUP($C$5&$C$6&B34,ConsolidadoServicios!$A:$K,11,0)),0) -> 0 | G34: =IF(E34>0,(VLOOKUP(B34,Minimos!$A:$B,2,0)),0) -> 0 | H34: 0 | J34: 0 | K34: 0 | L34: =ROUND(VLOOKUP($C$5&B34,ConsolidadoServicios!P:Q,2,0)*80%,2) -> 0 | M34: ='Detalle Bienes de Aseo y Caf'!I34 -> 0
A35: 21 | B35: Detergente multiusos en polvo (Compra) | C35: - Con agente tensoactivo de mínimo 60% de biodegradabilidad -Con efecto limpiador de mínimo 9%. - El envase del producto deberá estar correctamente etiquetado bajo los parámetros: nombre comercial del producto, pictogramas de los compuestos peligrosos e instrucciones de uso - Debe contener concentraciones de fósforo iguales o inferiores a 0.65% de fósforo (Resolución 0689 de 2016) | D35: Polvo, en bolsa plástica o recipiente plástico con un peso de 1.000 g | E35: 1 | F35: =IF(E35>0,(VLOOKUP($C$5&$C$6&B35,ConsolidadoServicios!$A:$K,11,0)),0) ->  | G35: =IF(E35>0,(VLOOKUP(B35,Minimos!$A:$B,2,0)),0) -> 5720 | H35: 0 | L35: =ROUND(VLOOKUP($C$5&B35,ConsolidadoServicios!P:Q,2,0)*80%,2) -> 0 | M35: ='Detalle Bienes de Aseo y Caf'!I35 -> 1
A36: 22 | B36: Limpiador desinfectante para uso general 1 (Compra) | C36: - Con agente(s) tensoactivo(s) con efecto antibacterial en una concentración mínima del 0,2% - Con agente(s) tensoactivo(s) con efecto limpiador y desengrasante en una concentración mínima del 1,5% - El envase debe estar correctamente etiquetado bajo los parámetros establecidos en el sistema globalmente armonizado (Decreto 1496 de 2018) indicando: nombre comercial del producto, pictogramas de los compuestos peligrosos si aplica e instrucciones de uso de acuerdo con los tiempos de transición descritos en el artículo 24 de la Resolución 773 de 2021. | D36: Líquido, en recipiente plástico con capacidad mínima de 3.785 ml | E36: 1 | F36: =IF(E36>0,(VLOOKUP($C$5&$C$6&B36,ConsolidadoServicios!$A:$K,11,0)),0) ->  | G36: =IF(E36>0,(VLOOKUP(B36,Minimos!$A:$B,2,0)),0) -> 7149 | H36: 0 | L36: =ROUND(VLOOKUP($C$5&B36,ConsolidadoServicios!P:Q,2,0)*80%,2) -> 0 | M36: ='Detalle Bienes de Aseo y Caf'!I36 -> 1
A37: 23 | B37: Limpiador desinfectante para uso general 2 (Compra) | C37: - Con agente(s) tensoactivo(s) con efecto antibacterial en una concentración mínima del 0,2% - Con agente(s) tensoactivo(s) con efecto limpiador y desengrasante en una concentración mínima del 1,5% - El envase debe estar correctamente etiquetado bajo los parámetros establecidos en el sistema globalmente armonizado (Decreto 1496 de 2018) indicando: nombre comercial del producto, pictogramas de los compuestos peligrosos si aplica e instrucciones de uso de acuerdo con los tiempos de transición descritos en el artículo 24 de la Resolución 773 de 2021. | D37: Líquido, en recipiente plástico con capacidad mínima de 500 ml, con atomizador de pistola. | E37: 0 | F37: =IF(E37>0,(VLOOKUP($C$5&$C$6&B37,ConsolidadoServicios!$A:$K,11,0)),0) -> 0 | G37: =IF(E37>0,(VLOOKUP(B37,Minimos!$A:$B,2,0)),0) -> 0 | H37: 0 | J37: 0 | K37: 0 | L37: =ROUND(VLOOKUP($C$5&B37,ConsolidadoServicios!P:Q,2,0)*80%,2) -> 0 | M37: ='Detalle Bienes de Aseo y Caf'!I37 -> 0
A38: 24 | B38: Limpiador desinfectante para uso general 3 (Compra) | C38: - Con agente(s) tensoactivo(s) con efecto antibacterial en una concentración mínima del 0,2% - Con agente(s) tensoactivo(s) con efecto limpiador y desengrasante en una concentración mínima del 1,5% - El envase debe estar correctamente etiquetado bajo los parámetros establecidos en el sistema globalmente armonizado (Decreto 1496 de 2018) indicando: nombre comercial del producto, pictogramas de los compuestos peligrosos si aplica e instrucciones de uso de acuerdo con los tiempos de transición descritos en el artículo 24 de la Resolución 773 de 2021. | D38: Líquido, en recipiente plástico con capacidad mínima de 500 ml | E38: 0 | F38: =IF(E38>0,(VLOOKUP($C$5&$C$6&B38,ConsolidadoServicios!$A:$K,11,0)),0) -> 0 | G38: =IF(E38>0,(VLOOKUP(B38,Minimos!$A:$B,2,0)),0) -> 0 | H38: 0 | J38: 0 | K38: 0 | L38: =ROUND(VLOOKUP($C$5&B38,ConsolidadoServicios!P:Q,2,0)*80%,2) -> 0 | M38: ='Detalle Bienes de Aseo y Caf'!I38 -> 0
A39: 25 | B39: Desinfectante de alto nivel de desinfección para uso hospitalario (Compra) | C39: - Con agentes bactericidas, fungicidas, tubercolicidas, esporicidas y virucidas. - Sin fragacia - El envase debe estar correctamente etiquetado bajo los parámetros establecidos en el sistema globalmente armonizado (Decreto 1496 de 2018) indicando: nombre comercial del producto, pictogramas de los compuestos peligrosos si aplica e instrucciones de uso de acuerdo con los tiempos de transición descritos en el artículo 24 de la Resolución 773 de 2021. | D39: Líquido, en recipiente plástico con capacidad mínima de 3.785 ml | E39: 0 | F39: =IF(E39>0,(VLOOKUP($C$5&$C$6&B39,ConsolidadoServicios!$A:$K,11,0)),0) -> 0 | G39: =IF(E39>0,(VLOOKUP(B39,Minimos!$A:$B,2,0)),0) -> 0 | H39: 0 | J39: 0 | K39: 0 | L39: =ROUND(VLOOKUP($C$5&B39,ConsolidadoServicios!P:Q,2,0)*80%,2) -> 0 | M39: ='Detalle Bienes de Aseo y Caf'!I39 -> 0
A40: 26 | B40: Pastilla desinfectante para sanitario (Compra) | C40: - Con agentes bactericidas, fungicidas y virucidas. | D40: Unidad con peso mínimo de 45 g | E40: 0 | F40: =IF(E40>0,(VLOOKUP($C$5&$C$6&B40,ConsolidadoServicios!$A:$K,11,0)),0) -> 0 | G40: =IF(E40>0,(VLOOKUP(B40,Minimos!$A:$B,2,0)),0) -> 0 | H40: 0 | J40: 0 | K40: 0 | L40: =ROUND(VLOOKUP($C$5&B40,ConsolidadoServicios!P:Q,2,0)*80%,2) -> 0 | M40: ='Detalle Bienes de Aseo y Caf'!I40 -> 0
A41: 27 | B41: Líquido para limpiar vidrios 1 (Compra) | C41: - Con agente(s) principal(es) con efecto limpiador y desengrasante en una concentración mínima del 4% - Disponible mínimo en dos (2) fragancias - El envase debe estar correctamente etiquetados bajo los parámetros establecidos en el sistema globalmente armonizado indicando: nombre comercial del producto, pictogramas de los compuestos peligrosos e instrucciones de uso | D41: Líquido, en recipiente plástico con capacidad mínima de 3.785 ml | E41: 0 | F41: =IF(E41>0,(VLOOKUP($C$5&$C$6&B41,ConsolidadoServicios!$A:$K,11,0)),0) -> 0 | G41: =IF(E41>0,(VLOOKUP(B41,Minimos!$A:$B,2,0)),0) -> 0 | H41: 0 | J41: 0 | K41: 0 | L41: =ROUND(VLOOKUP($C$5&B41,ConsolidadoServicios!P:Q,2,0)*80%,2) -> 0 | M41: ='Detalle Bienes de Aseo y Caf'!I41 -> 0
A42: 28 | B42: Líquido para limpiar vidrios 2 (Compra) | C42: - Con agente(s) principal(es) con efecto limpiador y desengrasante en una concentración mínima del 4% - Disponible mínimo en dos (2) fragancias - El envase debe estar correctamente etiquetado bajo los parámetros establecidos en el sistema globalmente armonizado (Decreto 1496 de 2018) indicando: nombre comercial del producto, pictogramas de los compuestos peligrosos si aplica e instrucciones de uso de acuerdo con los tiempos de transición descritos en el artículo 24 de la Resolución 773 de 2021. | D42: Líquido, en recipiente plástico con capacidad mínima de 500 ml, con atomizador de pistola. | E42: 0 | F42: =IF(E42>0,(VLOOKUP($C$5&$C$6&B42,ConsolidadoServicios!$A:$K,11,0)),0) -> 0 | G42: =IF(E42>0,(VLOOKUP(B42,Minimos!$A:$B,2,0)),0) -> 0 | H42: 0 | J42: 0 | K42: 0 | L42: =ROUND(VLOOKUP($C$5&B42,ConsolidadoServicios!P:Q,2,0)*80%,2) -> 0 | M42: ='Detalle Bienes de Aseo y Caf'!I42 -> 0
A43: 29 | B43: Líquido para limpiar vidrios 3 (Compra) | C43: - Con agente(s) principal(es) con efecto limpiador y desengrasante en una concentración mínima del 4% - Disponible mínimo en dos (2) fragancias - El envase debe estar correctamente etiquetado bajo los parámetros establecidos en el sistema globalmente armonizado (Decreto 1496 de 2018) indicando: nombre comercial del producto, pictogramas de los compuestos peligrosos si aplica e instrucciones de uso de acuerdo con los tiempos de transición descritos en el artículo 24 de la Resolución 773 de 2021. | D43: Líquido, en recipiente plástico de repuesto con capacidad mínima de 500 ml | E43: 0 | F43: =IF(E43>0,(VLOOKUP($C$5&$C$6&B43,ConsolidadoServicios!$A:$K,11,0)),0) -> 0 | G43: =IF(E43>0,(VLOOKUP(B43,Minimos!$A:$B,2,0)),0) -> 0 | H43: 0 | J43: 0 | K43: 0 | L43: =ROUND(VLOOKUP($C$5&B43,ConsolidadoServicios!P:Q,2,0)*80%,2) -> 0 | M43: ='Detalle Bienes de Aseo y Caf'!I43 -> 0
A44: 30 | B44: Blanqueador o hipoclorito 1 (Compra) | C44: - Solución con una concentración mínima del 5% - El envase del producto deberá estar correctamente etiquetado, indicando: nombre comercial del producto, pictogramas de los compuestos peligrosos e instrucciones de uso - El envase debe estar correctamente etiquetado bajo los parámetros establecidos en el sistema globalmente armonizado (Decreto 1496 de 2018) indicando: nombre comercial del producto, pictogramas de los compuestos peligrosos si aplica e instrucciones de uso de acuerdo con los tiempos de transición descritos en el artículo 24 de la Resolución 773 de 2021. | D44: Líquido, en recipiente plástico con capacidad mínima de 3.785 ml | E44: 1 | F44: =IF(E44>0,(VLOOKUP($C$5&$C$6&B44,ConsolidadoServicios!$A:$K,11,0)),0) ->  | G44: =IF(E44>0,(VLOOKUP(B44,Minimos!$A:$B,2,0)),0) -> 6641 | H44: 0 | L44: =ROUND(VLOOKUP($C$5&B44,ConsolidadoServicios!P:Q,2,0)*80%,2) -> 0 | M44: ='Detalle Bienes de Aseo y Caf'!I44 -> 1
A45: 31 | B45: Blanqueador o hipoclorito 2 (Compra) | C45: - Solución con una concentración mínima del 5% - El envase del producto deberá estar correctamente etiquetado, indicando: nombre comercial del producto, pictogramas de los compuestos peligrosos e instrucciones de uso - El envase debe estar correctamente etiquetado bajo los parámetros establecidos en el sistema globalmente armonizado (Decreto 1496 de 2018) indicando: nombre comercial del producto, pictogramas de los compuestos peligrosos si aplica e instrucciones de uso de acuerdo con los tiempos de transición descritos en el artículo 24 de la Resolución 773 de 2021. | D45: Líquido, en recipiente plástico con capacidad mínima de 1.000 ml | E45: 0 | F45: =IF(E45>0,(VLOOKUP($C$5&$C$6&B45,ConsolidadoServicios!$A:$K,11,0)),0) -> 0 | G45: =IF(E45>0,(VLOOKUP(B45,Minimos!$A:$B,2,0)),0) -> 0 | H45: 0 | J45: 0 | K45: 0 | L45: =ROUND(VLOOKUP($C$5&B45,ConsolidadoServicios!P:Q,2,0)*80%,2) -> 0 | M45: ='Detalle Bienes de Aseo y Caf'!I45 -> 0
A46: 32 | B46: Blanqueador o hipoclorito 3 (Compra) | C46: - Granulado con una concentración mínima del 90% - El envase del producto deberá estar correctamente etiquetado, indicando: nombre comercial del producto, pictogramas de los compuestos peligrosos e instrucciones de uso - El envase debe estar correctamente etiquetado bajo los parámetros establecidos en el sistema globalmente armonizado (Decreto 1496 de 2018) indicando: nombre comercial del producto, pictogramas de los compuestos peligrosos si aplica e instrucciones de uso de acuerdo con los tiempos de transición descritos en el artículo 24 de la Resolución 773 de 2021. | D46: ganulado, en bolsa plástica de mínimo 1.000 g | E46: 0 | F46: =IF(E46>0,(VLOOKUP($C$5&$C$6&B46,ConsolidadoServicios!$A:$K,11,0)),0) -> 0 | G46: =IF(E46>0,(VLOOKUP(B46,Minimos!$A:$B,2,0)),0) -> 0 | H46: 0 | J46: 0 | K46: 0 | L46: =ROUND(VLOOKUP($C$5&B46,ConsolidadoServicios!P:Q,2,0)*80%,2) -> 0 | M46: ='Detalle Bienes de Aseo y Caf'!I46 -> 0
A47: 33 | B47: Alcohol industrial 1 (Compra) | C47: - Solución acuosa de alcohol etílico desnaturalizado con una concentración mínima de 70% - Desnaturalizado | D47: Líquido, en recipiente plástico con capacidad mínima de 3.785 ml | E47: 0 | F47: =IF(E47>0,(VLOOKUP($C$5&$C$6&B47,ConsolidadoServicios!$A:$K,11,0)),0) -> 0 | G47: =IF(E47>0,(VLOOKUP(B47,Minimos!$A:$B,2,0)),0) -> 0 | H47: 0 | J47: 0 | K47: 0 | L47: =ROUND(VLOOKUP($C$5&B47,ConsolidadoServicios!P:Q,2,0)*80%,2) -> 0 | M47: ='Detalle Bienes de Aseo y Caf'!I47 -> 0
A48: 34 | B48: Alcohol industrial 2 (Compra) | C48: - Solución acuosa de alcohol etílico desnaturalizado con una concentración mínima de 70% - Desnaturalizado | D48: Líquido, en recipiente plástico con capacidad mínima de 1000ml | E48: 0 | F48: =IF(E48>0,(VLOOKUP($C$5&$C$6&B48,ConsolidadoServicios!$A:$K,11,0)),0) -> 0 | G48: =IF(E48>0,(VLOOKUP(B48,Minimos!$A:$B,2,0)),0) -> 0 | H48: 0 | J48: 0 | K48: 0 | L48: =ROUND(VLOOKUP($C$5&B48,ConsolidadoServicios!P:Q,2,0)*80%,2) -> 0 | M48: ='Detalle Bienes de Aseo y Caf'!I48 -> 0
A49: 35 | B49: Creolina 1 (Compra) | C49: - Solución con una concentración mínima de fenoles de 4% | D49: Líquido, en recipiente plástico con capacidad mínima de 500 ml | E49: 0 | F49: =IF(E49>0,(VLOOKUP($C$5&$C$6&B49,ConsolidadoServicios!$A:$K,11,0)),0) -> 0 | G49: =IF(E49>0,(VLOOKUP(B49,Minimos!$A:$B,2,0)),0) -> 0 | H49: 0 | J49: 0 | K49: 0 | L49: =ROUND(VLOOKUP($C$5&B49,ConsolidadoServicios!P:Q,2,0)*80%,2) -> 0 | M49: ='Detalle Bienes de Aseo y Caf'!I49 -> 0
A50: 36 | B50: Creolina 2 (Compra) | C50: - Solución con una concentración mínima de fenoles de 4% | D50: Líquido, en recipiente plástico con capacidad mínima de 3.785 ml | E50: 0 | F50: =IF(E50>0,(VLOOKUP($C$5&$C$6&B50,ConsolidadoServicios!$A:$K,11,0)),0) -> 0 | G50: =IF(E50>0,(VLOOKUP(B50,Minimos!$A:$B,2,0)),0) -> 0 | H50: 0 | J50: 0 | K50: 0 | L50: =ROUND(VLOOKUP($C$5&B50,ConsolidadoServicios!P:Q,2,0)*80%,2) -> 0 | M50: ='Detalle Bienes de Aseo y Caf'!I50 -> 0
A51: 37 | B51: Líquido para limpiar equipos de oficina 1 (Compra) | C51: - Con agente(s) principal(es) con efecto limpiador, desengrasante y desinfectante en una concentración mínima del 4% - El envase debe estar correctamente etiquetado bajo los parámetros establecidos en el sistema globalmente armonizado (Decreto 1496 de 2018) indicando: nombre comercial del producto, pictogramas de los compuestos peligrosos si aplica e instrucciones de uso de acuerdo con los tiempos de transición descritos en el artículo 24 de la Resolución 773 de 2021. | D51: Líquido, en recipiente plástico con capacidad mínima de 500 ml con atomizador | E51: 0 | F51: =IF(E51>0,(VLOOKUP($C$5&$C$6&B51,ConsolidadoServicios!$A:$K,11,0)),0) -> 0 | G51: =IF(E51>0,(VLOOKUP(B51,Minimos!$A:$B,2,0)),0) -> 0 | H51: 0 | J51: 0 | K51: 0 | L51: =ROUND(VLOOKUP($C$5&B51,ConsolidadoServicios!P:Q,2,0)*80%,2) -> 0 | M51: ='Detalle Bienes de Aseo y Caf'!I51 -> 0
A52: 38 | B52: Líquido para limpiar equipos de oficina 2 (Compra) | C52: - Con agente(s) principal(es) con efecto limpiador, desengrasante y desinfectante en una concentración mínima del 4% - El envase debe estar correctamente etiquetado bajo los parámetros establecidos en el sistema globalmente armonizado (Decreto 1496 de 2018) indicando: nombre comercial del producto, pictogramas de los compuestos peligrosos si aplica e instrucciones de uso de acuerdo con los tiempos de transición descritos en el artículo 24 de la Resolución 773 de 2021. | D52: Líquido, en recipiente plástico con capacidad mínima de 500 ml | E52: 0 | F52: =IF(E52>0,(VLOOKUP($C$5&$C$6&B52,ConsolidadoServicios!$A:$K,11,0)),0) -> 0 | G52: =IF(E52>0,(VLOOKUP(B52,Minimos!$A:$B,2,0)),0) -> 0 | H52: 0 | J52: 0 | K52: 0 | L52: =ROUND(VLOOKUP($C$5&B52,ConsolidadoServicios!P:Q,2,0)*80%,2) -> 0 | M52: ='Detalle Bienes de Aseo y Caf'!I52 -> 0
A53: 39 | B53: Champú para alfombras y tapizados 1 (Compra) | C53: - Con agente(s) principal(es) con efecto limpiador en una concentración mínima del 8% - El envase debe estar correctamente etiquetado: nombre comercial del producto, pictogramas de los compuestos peligrosos e instrucciones de uso | D53: Líquido, en recipiente plástico con capacidad mínima de 3.785 ml | E53: 0 | F53: =IF(E53>0,(VLOOKUP($C$5&$C$6&B53,ConsolidadoServicios!$A:$K,11,0)),0) -> 0 | G53: =IF(E53>0,(VLOOKUP(B53,Minimos!$A:$B,2,0)),0) -> 0 | H53: 0 | J53: 0 | K53: 0 | L53: =ROUND(VLOOKUP($C$5&B53,ConsolidadoServicios!P:Q,2,0)*80%,2) -> 0 | M53: ='Detalle Bienes de Aseo y Caf'!I53 -> 0
A54: 40 | B54: Champú para alfombras y tapizados 2 (Compra) | C54: - Con agente(s) principal(es) con efecto limpiador en una concentración mínima del 8% - Con agente espumante para la generación de espuma seca - El envase debe estar correctamente etiquetados: nombre comercial del producto, pictogramas de los compuestos peligrosos e instrucciones de uso | D54: Líquido, en recipiente plástico con capacidad mínima de 3.785 ml | E54: 0 | F54: =IF(E54>0,(VLOOKUP($C$5&$C$6&B54,ConsolidadoServicios!$A:$K,11,0)),0) -> 0 | G54: =IF(E54>0,(VLOOKUP(B54,Minimos!$A:$B,2,0)),0) -> 0 | H54: 0 | J54: 0 | K54: 0 | L54: =ROUND(VLOOKUP($C$5&B54,ConsolidadoServicios!P:Q,2,0)*80%,2) -> 0 | M54: ='Detalle Bienes de Aseo y Caf'!I54 -> 0
A55: 41 | B55: Lustrador de muebles (Compra) | C55: - Con agentes limpiadores y abrillantadores en una concentración mínima del 5% - El envase debe estar correctamente etiquetado bajo los parámetros establecidos en el sistema globalmente armonizado (Decreto 1496 de 2018) indicando: nombre comercial del producto, pictogramas de los compuestos peligrosos si aplica e instrucciones de uso de acuerdo con los tiempos de transición descritos en el artículo 24 de la Resolución 773 de 2021. | D55: Líquido, en recipiente plástico con capacidad mínima de 200 ml | E55: 0 | F55: =IF(E55>0,(VLOOKUP($C$5&$C$6&B55,ConsolidadoServicios!$A:$K,11,0)),0) -> 0 | G55: =IF(E55>0,(VLOOKUP(B55,Minimos!$A:$B,2,0)),0) -> 0 | H55: 0 | J55: 0 | K55: 0 | L55: =ROUND(VLOOKUP($C$5&B55,ConsolidadoServicios!P:Q,2,0)*80%,2) -> 0 | M55: ='Detalle Bienes de Aseo y Caf'!I55 -> 0
A56: 42 | B56: Líquido cubre rasguños para madera (Compra) | C56: - Con agentes limpiadores y abrillantadores en una concentración mínima del 5% - De color oscuro para coayudar a cubrir rasguños en maderas oscuras | D56: En recipiente plástico con capacidad mínima de 200 ml | E56: 0 | F56: =IF(E56>0,(VLOOKUP($C$5&$C$6&B56,ConsolidadoServicios!$A:$K,11,0)),0) -> 0 | G56: =IF(E56>0,(VLOOKUP(B56,Minimos!$A:$B,2,0)),0) -> 0 | H56: 0 | J56: 0 | K56: 0 | L56: =ROUND(VLOOKUP($C$5&B56,ConsolidadoServicios!P:Q,2,0)*80%,2) -> 0 | M56: ='Detalle Bienes de Aseo y Caf'!I56 -> 0
A57: 43 | B57: Crema para cuero (Compra) | C57: - Con agentes limpiadores y abrillantadores en una concentración mínima del 5% | D57: Crema, en recipiente plástico con capacidad mínima de 200 ml | E57: 0 | F57: =IF(E57>0,(VLOOKUP($C$5&$C$6&B57,ConsolidadoServicios!$A:$K,11,0)),0) -> 0 | G57: =IF(E57>0,(VLOOKUP(B57,Minimos!$A:$B,2,0)),0) -> 0 | H57: 0 | J57: 0 | K57: 0 | L57: =ROUND(VLOOKUP($C$5&B57,ConsolidadoServicios!P:Q,2,0)*80%,2) -> 0 | M57: ='Detalle Bienes de Aseo y Caf'!I57 -> 0
A58: 44 | B58: Cera polimérica (Compra) | C58: - Polimérica autobrillante. - Con polímeros acrílicos, nivelantes y plastificantes. - Neutra (para pisos de todos los colores) - Contenido mínimo de sólidos del 10% | D58: Líquido, en recipiente plástico con capacidad mínima de 3.785 ml | E58: 0 | F58: =IF(E58>0,(VLOOKUP($C$5&$C$6&B58,ConsolidadoServicios!$A:$K,11,0)),0) -> 0 | G58: =IF(E58>0,(VLOOKUP(B58,Minimos!$A:$B,2,0)),0) -> 0 | H58: 0 | J58: 0 | K58: 0 | L58: =ROUND(VLOOKUP($C$5&B58,ConsolidadoServicios!P:Q,2,0)*80%,2) -> 0 | M58: ='Detalle Bienes de Aseo y Caf'!I58 -> 0
A59: 45 | B59: Cera emulsionada Neutra (Compra) | C59: - Emulsionada - Neutra (para pisos de todos los colores) - Contenido mínimo de sólidos del 5% | D59: Líquido, en recipiente plástico con capacidad mínima de 3.785 ml | E59: 0 | F59: =IF(E59>0,(VLOOKUP($C$5&$C$6&B59,ConsolidadoServicios!$A:$K,11,0)),0) -> 0 | G59: =IF(E59>0,(VLOOKUP(B59,Minimos!$A:$B,2,0)),0) -> 0 | H59: 0 | J59: 0 | K59: 0 | L59: =ROUND(VLOOKUP($C$5&B59,ConsolidadoServicios!P:Q,2,0)*80%,2) -> 0 | M59: ='Detalle Bienes de Aseo y Caf'!I59 -> 0
A60: 46 | B60: Cera emulsionada roja (Compra) | C60: - Emulsionada - Roja - Contenido mínimo de sólidos del 5% - Antideslizante | D60: Líquido, en recipiente plástico con capacidad mínima de 3.785 ml | E60: 0 | F60: =IF(E60>0,(VLOOKUP($C$5&$C$6&B60,ConsolidadoServicios!$A:$K,11,0)),0) -> 0 | G60: =IF(E60>0,(VLOOKUP(B60,Minimos!$A:$B,2,0)),0) -> 0 | H60: 0 | J60: 0 | K60: 0 | L60: =ROUND(VLOOKUP($C$5&B60,ConsolidadoServicios!P:Q,2,0)*80%,2) -> 0 | M60: ='Detalle Bienes de Aseo y Caf'!I60 -> 0
A61: 47 | B61: Cera solvente (Compra) | C61: - Solvente - Contenido mínimo de sólidos del 10% | D61: Líquido, en recipiente plástico con capacidad mínima de 3.785 ml | E61: 0 | F61: =IF(E61>0,(VLOOKUP($C$5&$C$6&B61,ConsolidadoServicios!$A:$K,11,0)),0) -> 0 | G61: =IF(E61>0,(VLOOKUP(B61,Minimos!$A:$B,2,0)),0) -> 0 | H61: 0 | J61: 0 | K61: 0 | L61: =ROUND(VLOOKUP($C$5&B61,ConsolidadoServicios!P:Q,2,0)*80%,2) -> 0 | M61: ='Detalle Bienes de Aseo y Caf'!I61 -> 0
A62: 48 | B62: Sellante para pisos (Compra) | C62: - Polimérico autobrillante. - Con polímeros acrílicos, nivelantes y plastificantes. - Contenido mínimo de sólidos del 20% - El envase debe estar correctamente etiquetado bajo los parámetros establecidos en el sistema globalmente armonizado (Decreto 1496 de 2018) indicando: nombre comercial del producto, pictogramas de los compuestos peligrosos si aplica e instrucciones de uso de acuerdo con los tiempos de transición descritos en el artículo 24 de la Resolución 773 de 2021. | D62: Líquido, en recipiente plástico con capacidad mínima de 3.785 ml | E62: 0 | F62: =IF(E62>0,(VLOOKUP($C$5&$C$6&B62,ConsolidadoServicios!$A:$K,11,0)),0) -> 0 | G62: =IF(E62>0,(VLOOKUP(B62,Minimos!$A:$B,2,0)),0) -> 0 | H62: 0 | J62: 0 | K62: 0 | L62: =ROUND(VLOOKUP($C$5&B62,ConsolidadoServicios!P:Q,2,0)*80%,2) -> 0 | M62: ='Detalle Bienes de Aseo y Caf'!I62 -> 0
A63: 49 | B63: Mantenedor de pisos (Compra) | C63: - Polimérico autobrillante. - Con polímeros acrílicos, nivelantes y plastificantes. - Contenido mínimo de sólidos del 8% | D63: Líquido, en recipiente plástico con capacidad mínima de 3.785 ml | E63: 0 | F63: =IF(E63>0,(VLOOKUP($C$5&$C$6&B63,ConsolidadoServicios!$A:$K,11,0)),0) -> 0 | G63: =IF(E63>0,(VLOOKUP(B63,Minimos!$A:$B,2,0)),0) -> 0 | H63: 0 | J63: 0 | K63: 0 | L63: =ROUND(VLOOKUP($C$5&B63,ConsolidadoServicios!P:Q,2,0)*80%,2) -> 0 | M63: ='Detalle Bienes de Aseo y Caf'!I63 -> 0
A64: 50 | B64: Removedor de cera (Compra) | C64: - Con agente activo alcalino en una concentración mínima del 9% - pH entre 11 y 14 | D64: Líquido, en recipiente plástico con capacidad mínima de 3.785 ml | E64: 0 | F64: =IF(E64>0,(VLOOKUP($C$5&$C$6&B64,ConsolidadoServicios!$A:$K,11,0)),0) -> 0 | G64: =IF(E64>0,(VLOOKUP(B64,Minimos!$A:$B,2,0)),0) -> 0 | H64: 0 | J64: 0 | K64: 0 | L64: =ROUND(VLOOKUP($C$5&B64,ConsolidadoServicios!P:Q,2,0)*80%,2) -> 0 | M64: ='Detalle Bienes de Aseo y Caf'!I64 -> 0
A65: 51 | B65: Abrillantador para piso laminado (Compra) | C65: - Con agente(s) con efecto limpiador y brillador. | D65: Líquido, en recipiente plástico con capacidad mínima de 3.785 ml | E65: 0 | F65: =IF(E65>0,(VLOOKUP($C$5&$C$6&B65,ConsolidadoServicios!$A:$K,11,0)),0) -> 0 | G65: =IF(E65>0,(VLOOKUP(B65,Minimos!$A:$B,2,0)),0) -> 0 | H65: 0 | J65: 0 | K65: 0 | L65: =ROUND(VLOOKUP($C$5&B65,ConsolidadoServicios!P:Q,2,0)*80%,2) -> 0 | M65: ='Detalle Bienes de Aseo y Caf'!I65 -> 0
A66: 52 | B66: Jabón neutro para pisos 1 (Compra) | C66: - Jabón multiusos - PH Neutro, - No corrosivo ni tóxico - Debe contener concentraciones de fósforo iguales o inferiores a 0.65% de fósforo (Resolución 0689 de 2016) | D66: Líquido, en recipiente plástico con capacidad mínima de 3.785 ml | E66: 0 | F66: =IF(E66>0,(VLOOKUP($C$5&$C$6&B66,ConsolidadoServicios!$A:$K,11,0)),0) -> 0 | G66: =IF(E66>0,(VLOOKUP(B66,Minimos!$A:$B,2,0)),0) -> 0 | H66: 0 | J66: 0 | K66: 0 | L66: =ROUND(VLOOKUP($C$5&B66,ConsolidadoServicios!P:Q,2,0)*80%,2) -> 0 | M66: ='Detalle Bienes de Aseo y Caf'!I66 -> 0
A67: 53 | B67: Jabón neutro para pisos 2 (Compra) | C67: - Jabón neutro biodegradable multiusos - PH Neutro - No es corrosivo ni tóxico - Color: Azul claro - El envase debe estar correctamente etiquetado bajo los parámetros establecidos en el sistema globalmente armonizado (Decreto 1496 de 2018) indicando: nombre comercial del producto, pictogramas de los compuestos peligrosos si aplica e instrucciones de uso de acuerdo con los tiempos de transición descritos en el artículo 24 de la Resolución 773 de 2021. - Elaborado en material reciclable, no debe contener PVC, Poliestireno expandido u otros plásticos de un solo uso tanto en el envase como en el embalaje. - Debe contener concentraciones de fósforo iguales o inferiores a 0.65% de fósforo (Resolución 0689 de 2016) | D67: Líquido, en cuñete con capacidad de 20 L | E67: 0 | F67: =IF(E67>0,(VLOOKUP($C$5&$C$6&B67,ConsolidadoServicios!$A:$K,11,0)),0) -> 0 | G67: =IF(E67>0,(VLOOKUP(B67,Minimos!$A:$B,2,0)),0) -> 0 | H67: 0 | J67: 0 | K67: 0 | L67: =ROUND(VLOOKUP($C$5&B67,ConsolidadoServicios!P:Q,2,0)*80%,2) -> 0 | M67: ='Detalle Bienes de Aseo y Caf'!I67 -> 0
A68: 54 | B68: Varsol ecológico 1 (Compra) | C68: - Solución con agentes desinfectantes, desmanchadores y desengrasantes en concentración mínima del 15%. - Biodegradable mínimo en un 95% | D68: Líquido, en recipiente plástico con capacidad mínima de 1000 ml | E68: 0 | F68: =IF(E68>0,(VLOOKUP($C$5&$C$6&B68,ConsolidadoServicios!$A:$K,11,0)),0) -> 0 | G68: =IF(E68>0,(VLOOKUP(B68,Minimos!$A:$B,2,0)),0) -> 0 | H68: 0 | J68: 0 | K68: 0 | L68: =ROUND(VLOOKUP($C$5&B68,ConsolidadoServicios!P:Q,2,0)*80%,2) -> 0 | M68: ='Detalle Bienes de Aseo y Caf'!I68 -> 0
A69: 55 | B69: Varsol ecológico 2 (Compra) | C69: - Solución con agentes desinfectantes, desmanchadores y desengrasantes en concentración mínima del 15%. - Biodegradable mínimo en un 95% | D69: Líquido, en recipiente plástico con capacidad mínima de 3.785 ml | E69: 1 | F69: =IF(E69>0,(VLOOKUP($C$5&$C$6&B69,ConsolidadoServicios!$A:$K,11,0)),0) ->  | G69: =IF(E69>0,(VLOOKUP(B69,Minimos!$A:$B,2,0)),0) -> 19528 | H69: 0 | L69: =ROUND(VLOOKUP($C$5&B69,ConsolidadoServicios!P:Q,2,0)*80%,2) -> 0 | M69: ='Detalle Bienes de Aseo y Caf'!I69 -> 1
A70: 56 | B70: Desmanchador multiusos (Compra) | C70: - Con agente(s) tensoactivo(s) con efecto limpiador y desengrasante - Para superficies de todo tipo. | D70: Crema, en bolsa plástica de mínimo 500 g | E70: 0 | F70: =IF(E70>0,(VLOOKUP($C$5&$C$6&B70,ConsolidadoServicios!$A:$K,11,0)),0) -> 0 | G70: =IF(E70>0,(VLOOKUP(B70,Minimos!$A:$B,2,0)),0) -> 0 | H70: 0 | J70: 0 | K70: 0 | L70: =ROUND(VLOOKUP($C$5&B70,ConsolidadoServicios!P:Q,2,0)*80%,2) -> 0 | M70: ='Detalle Bienes de Aseo y Caf'!I70 -> 0
A71: 57 | B71: Brillametal en crema (Compra) | C71: - Con agentes con efecto limpiador, pulidor y brillador. - Para todo tipo de metales - El envase del producto deberá estar correctamente etiquetado, indicando: nombre comercial del producto, pictogramas de los compuestos peligrosos e instrucciones de uso | D71: En crema de mínimo 70 g | E71: 0 | F71: =IF(E71>0,(VLOOKUP($C$5&$C$6&B71,ConsolidadoServicios!$A:$K,11,0)),0) -> 0 | G71: =IF(E71>0,(VLOOKUP(B71,Minimos!$A:$B,2,0)),0) -> 0 | H71: 0 | J71: 0 | K71: 0 | L71: =ROUND(VLOOKUP($C$5&B71,ConsolidadoServicios!P:Q,2,0)*80%,2) -> 0 | M71: ='Detalle Bienes de Aseo y Caf'!I71 -> 0
A72: 58 | B72: Brillametal líquido (Compra) | C72: - Con agentes con efecto limpiador, pulidor y brillador. - Para todo tipo de metales | D72: Líquido , en recipiente plástico con capacidad mínima de 200 ml | E72: 0 | F72: =IF(E72>0,(VLOOKUP($C$5&$C$6&B72,ConsolidadoServicios!$A:$K,11,0)),0) -> 0 | G72: =IF(E72>0,(VLOOKUP(B72,Minimos!$A:$B,2,0)),0) -> 0 | H72: 0 | J72: 0 | K72: 0 | L72: =ROUND(VLOOKUP($C$5&B72,ConsolidadoServicios!P:Q,2,0)*80%,2) -> 0 | M72: ='Detalle Bienes de Aseo y Caf'!I72 -> 0
A73: 59 | B73: Betún (Compra) | C73: - Contenido mínimo de sólidos del 30% - Color negro - No debe contener ningún material que sea cancerígeno ( Clasificación 1 y 2a por la IARC), Mutagénico, Tóxico, Contaminante peligroso del aire o que sea agotador de la capa de ozono - El envase debe estar correctamente etiquetado bajo los parámetros establecidos en el sistema globalmente armonizado (Decreto 1496 de 2018) indicando: nombre comercial del producto, pictogramas de los compuestos peligrosos si aplica e instrucciones de uso de acuerdo con los tiempos de transición descritos en el artículo 24 de la Resolución 773 de 2021. | D73: Tarro de mínimo 100 g | E73: 0 | F73: =IF(E73>0,(VLOOKUP($C$5&$C$6&B73,ConsolidadoServicios!$A:$K,11,0)),0) -> 0 | G73: =IF(E73>0,(VLOOKUP(B73,Minimos!$A:$B,2,0)),0) -> 0 | H73: 0 | J73: 0 | K73: 0 | L73: =ROUND(VLOOKUP($C$5&B73,ConsolidadoServicios!P:Q,2,0)*80%,2) -> 0 | M73: ='Detalle Bienes de Aseo y Caf'!I73 -> 0
A74: 60 | B74: Ambientador 1 (Compra) | C74: - Solución con alcohol etílico y solventes. - Con fragancia en una concentración del 1,5% - En múltiples fragancias - El envase debe estar correctamente etiquetado bajo los parámetros establecidos en el sistema globalmente armonizado (Decreto 1496 de 2018) indicando: nombre comercial del producto, pictogramas de los compuestos peligrosos si aplica e instrucciones de uso de acuerdo con los tiempos de transición descritos en el artículo 24 de la Resolución 773 de 2021. | D74: Líquido, en recipiente plástico con capacidad mínima de 3.785 ml | E74: 1 | F74: =IF(E74>0,(VLOOKUP($C$5&$C$6&B74,ConsolidadoServicios!$A:$K,11,0)),0) ->  | G74: =IF(E74>0,(VLOOKUP(B74,Minimos!$A:$B,2,0)),0) -> 7229 | H74: 0 | L74: =ROUND(VLOOKUP($C$5&B74,ConsolidadoServicios!P:Q,2,0)*80%,2) -> 0 | M74: ='Detalle Bienes de Aseo y Caf'!I74 -> 1
A75: 61 | B75: Ambientador 2 (Compra) | C75: - Solución con alcohol etílico y solventes. - Con fragancia en una concentración del 1,5% - En múltiples fragancias - libre de CFC - Envase correctamente etiquetado bajo los parámetros establecidos indicando: nombre comercial del producto, pictogramas de los compuestos peligrosos e instrucciones de uso. - Elaborado en material reciclable | D75: Líquido, en aerosol seguro para la capa de ozono con capacidad mínima de 400 ml | E75: 0 | F75: =IF(E75>0,(VLOOKUP($C$5&$C$6&B75,ConsolidadoServicios!$A:$K,11,0)),0) -> 0 | G75: =IF(E75>0,(VLOOKUP(B75,Minimos!$A:$B,2,0)),0) -> 0 | H75: 0 | J75: 0 | K75: 0 | L75: =ROUND(VLOOKUP($C$5&B75,ConsolidadoServicios!P:Q,2,0)*80%,2) -> 0 | M75: ='Detalle Bienes de Aseo y Caf'!I75 -> 0
A76: 62 | B76: Insecticida 1 (Compra) | C76: - Para eliminar insectos rastreros. - Con acción residual hasta por 4 semanas o de larga duración - Sin fuertes olores químicos - Libre de CFC - El envase del producto deberá estar correctamente etiquetado, indicando: nombre comercial del producto, pictogramas de los compuestos peligrosos e instrucciones de uso | D76: Líquido, en aerosol seguro para la capa de ozono con capacidad mínima de 350 ml | E76: 0 | F76: =IF(E76>0,(VLOOKUP($C$5&$C$6&B76,ConsolidadoServicios!$A:$K,11,0)),0) -> 0 | G76: =IF(E76>0,(VLOOKUP(B76,Minimos!$A:$B,2,0)),0) -> 0 | H76: 0 | J76: 0 | K76: 0 | L76: =ROUND(VLOOKUP($C$5&B76,ConsolidadoServicios!P:Q,2,0)*80%,2) -> 0 | M76: ='Detalle Bienes de Aseo y Caf'!I76 -> 0
A77: 63 | B77: Insecticida 2 (Compra) | C77: - Para eliminar insectos voladores - Con acción residual hasta por 4 semanas o de larga duración - Sin fuertes olores químicos - Libre de CFC - El envase del producto deberá estar correctamente etiquetado, indicando: nombre comercial del producto, pictogramas de los compuestos peligrosos e instrucciones de uso | D77: Líquido, en aerosol seguro para la capa de ozono con capacidad mínima de 350 ml | E77: 0 | F77: =IF(E77>0,(VLOOKUP($C$5&$C$6&B77,ConsolidadoServicios!$A:$K,11,0)),0) -> 0 | G77: =IF(E77>0,(VLOOKUP(B77,Minimos!$A:$B,2,0)),0) -> 0 | H77: 0 | J77: 0 | K77: 0 | L77: =ROUND(VLOOKUP($C$5&B77,ConsolidadoServicios!P:Q,2,0)*80%,2) -> 0 | M77: ='Detalle Bienes de Aseo y Caf'!I77 -> 0
A78: 64 | B78: Limpiones 1 (Compra) | C78: - En tela de toalla fileteada - Color blanco sin estampado - Tamaño mínimo de 45cm de largo por 45cm de ancho. | D78: Unidad | E78: =SUM(M78:M78) -> 0 | F78: =IF(E78>0,(VLOOKUP($C$5&$C$6&B78,ConsolidadoServicios!$A:$K,11,0)),0) -> 0 | G78: =IF(E78>0,(VLOOKUP(B78,Minimos!$A:$B,2,0)),0) -> 0 | H78: 0 | J78: 0 | K78: 0 | L78: =ROUND(VLOOKUP($C$5&B78,ConsolidadoServicios!P:Q,2,0)*80%,2) -> 0 | M78: ='Detalle Bienes de Aseo y Caf'!I78 -> 0
A79: 65 | B79: Limpiones 2 (Compra) | C79: - En tela de toalla fileteada - Color blanco sin estampado -Tamaño mínimo de 100 cm de largo por 70 cm de ancho | D79: Unidad | E79: 0 | F79: =IF(E79>0,(VLOOKUP($C$5&$C$6&B79,ConsolidadoServicios!$A:$K,11,0)),0) -> 0 | G79: =IF(E79>0,(VLOOKUP(B79,Minimos!$A:$B,2,0)),0) -> 0 | H79: 0 | J79: 0 | K79: 0 | L79: =ROUND(VLOOKUP($C$5&B79,ConsolidadoServicios!P:Q,2,0)*80%,2) -> 0 | M79: ='Detalle Bienes de Aseo y Caf'!I79 -> 0
A80: 66 | B80: Limpiones 3 (Compra) | C80: - En tela fileteada - Color blanco sin estampado - Tamaño mínimo de 45 cm de largo por 45 cm de ancho | D80: Unidad | E80: 0 | F80: =IF(E80>0,(VLOOKUP($C$5&$C$6&B80,ConsolidadoServicios!$A:$K,11,0)),0) -> 0 | G80: =IF(E80>0,(VLOOKUP(B80,Minimos!$A:$B,2,0)),0) -> 0 | H80: =IF(E80>0,IF(I80>0,(G80-J80)/G80,0),0) -> 0 | J80: =ROUND((F80*(1-I80)),2) -> 0 | K80: =J80*E80 -> 0 | L80: =ROUND(VLOOKUP($C$5&B80,ConsolidadoServicios!P:Q,2,0)*80%,2) -> 0 | M80: ='Detalle Bienes de Aseo y Caf'!I80 -> 0
A81: 67 | B81: Limpiones 4 (Compra) | C81: - En tela fileteada - Color blanco sin estampado -Tamaño mínimo de 100 cm de largo por 70 cm de ancho | D81: Unidad | E81: 0 | F81: =IF(E81>0,(VLOOKUP($C$5&$C$6&B81,ConsolidadoServicios!$A:$K,11,0)),0) -> 0 | G81: =IF(E81>0,(VLOOKUP(B81,Minimos!$A:$B,2,0)),0) -> 0 | H81: 0 | J81: 0 | K81: 0 | L81: =ROUND(VLOOKUP($C$5&B81,ConsolidadoServicios!P:Q,2,0)*80%,2) -> 0 | M81: ='Detalle Bienes de Aseo y Caf'!I81 -> 0
A82: 68 | B82: Limpiones 5 (Compra) | C82: - En tela tipo galleta fileteada - Color blanco o beige sin estampado -Tamaño mínimo de 100 cm de largo por 70 cm de ancho | D82: Unidad | E82: 0 | F82: =IF(E82>0,(VLOOKUP($C$5&$C$6&B82,ConsolidadoServicios!$A:$K,11,0)),0) -> 0 | G82: =IF(E82>0,(VLOOKUP(B82,Minimos!$A:$B,2,0)),0) -> 0 | H82: 0 | J82: 0 | K82: 0 | L82: =ROUND(VLOOKUP($C$5&B82,ConsolidadoServicios!P:Q,2,0)*80%,2) -> 0 | M82: ='Detalle Bienes de Aseo y Caf'!I82 -> 0
A83: 69 | B83: Bayetilla 1 (Compra) | C83: - En tela fileteada - 100% algodón y fibra natural - Color blanco sin estampado -Tamaño mínimo de 100 cm de largo por 70 cm de ancho | D83: Unidad | E83: 0 | F83: =IF(E83>0,(VLOOKUP($C$5&$C$6&B83,ConsolidadoServicios!$A:$K,11,0)),0) -> 0 | G83: =IF(E83>0,(VLOOKUP(B83,Minimos!$A:$B,2,0)),0) -> 0 | H83: 0 | J83: 0 | K83: 0 | L83: =ROUND(VLOOKUP($C$5&B83,ConsolidadoServicios!P:Q,2,0)*80%,2) -> 0 | M83: ='Detalle Bienes de Aseo y Caf'!I83 -> 0
A84: 70 | B84: Bayetilla 2 (Compra) | C84: - En tela fileteada - 100% algodón y fibra natural - Color rojo sin estampado -Tamaño mínimo de 100 cm de largo por 70 cm de ancho | D84: Unidad | E84: 0 | F84: =IF(E84>0,(VLOOKUP($C$5&$C$6&B84,ConsolidadoServicios!$A:$K,11,0)),0) -> 0 | G84: =IF(E84>0,(VLOOKUP(B84,Minimos!$A:$B,2,0)),0) -> 0 | H84: 0 | J84: 0 | K84: 0 | L84: =ROUND(VLOOKUP($C$5&B84,ConsolidadoServicios!P:Q,2,0)*80%,2) -> 0 | M84: ='Detalle Bienes de Aseo y Caf'!I84 -> 0
A85: 71 | B85: Toalla en tela blanca para pisos por metro (repuesto de haraganes) (Compra) | C85: - Elaborado en microfibras - Color blanco - Tamaño mínimo de 100 cm de largo por 70 cm de ancho | D85: Unidad | E85: 0 | F85: =IF(E85>0,(VLOOKUP($C$5&$C$6&B85,ConsolidadoServicios!$A:$K,11,0)),0) -> 0 | G85: =IF(E85>0,(VLOOKUP(B85,Minimos!$A:$B,2,0)),0) -> 0 | H85: 0 | J85: 0 | K85: 0 | L85: =ROUND(VLOOKUP($C$5&B85,ConsolidadoServicios!P:Q,2,0)*80%,2) -> 0 | M85: ='Detalle Bienes de Aseo y Caf'!I85 -> 0
A86: 72 | B86: Paño absorbente multiusos 1 (Compra) | C86: - Retira el polvo sin dejar residuos ni pelusas - Antibacterial reutilizable - Tela con microporos - Tamaño mínimo de 60 cm de largo por 33 cm de ancho | D86: Paquete X 6 unidades | E86: 0 | F86: =IF(E86>0,(VLOOKUP($C$5&$C$6&B86,ConsolidadoServicios!$A:$K,11,0)),0) -> 0 | G86: =IF(E86>0,(VLOOKUP(B86,Minimos!$A:$B,2,0)),0) -> 0 | H86: 0 | J86: 0 | K86: 0 | L86: =ROUND(VLOOKUP($C$5&B86,ConsolidadoServicios!P:Q,2,0)*80%,2) -> 0 | M86: ='Detalle Bienes de Aseo y Caf'!I86 -> 0
A87: 73 | B87: Paño absorbente multiusos 2 (Compra) | C87: - Retira el polvo sin dejar residuos ni pelusas - Antibacterial reutilizable - Tela con microporos - Tamaño mínimo de 25 cm de largo por 45 cm de ancho | D87: Rollo X 40 unidades | E87: 0 | F87: =IF(E87>0,(VLOOKUP($C$5&$C$6&B87,ConsolidadoServicios!$A:$K,11,0)),0) -> 0 | G87: =IF(E87>0,(VLOOKUP(B87,Minimos!$A:$B,2,0)),0) -> 0 | H87: 0 | J87: 0 | K87: 0 | L87: =ROUND(VLOOKUP($C$5&B87,ConsolidadoServicios!P:Q,2,0)*80%,2) -> 0 | M87: ='Detalle Bienes de Aseo y Caf'!I87 -> 0
A88: 74 | B88: Estopa (Compra) | C88: - Hecha 100% de hilos de algodón blanco peinado. -Suave al tacto, para lustrar - No debe contener PVC o Poliestireno expandido u otros plásticos de un solo uso tanto en el envase como en el embalaje. | D88: Bolsa de mínimo 400 g | E88: 0 | F88: =IF(E88>0,(VLOOKUP($C$5&$C$6&B88,ConsolidadoServicios!$A:$K,11,0)),0) -> 0 | G88: =IF(E88>0,(VLOOKUP(B88,Minimos!$A:$B,2,0)),0) -> 0 | H88: 0 | J88: 0 | K88: 0 | L88: =ROUND(VLOOKUP($C$5&B88,ConsolidadoServicios!P:Q,2,0)*80%,2) -> 0 | M88: ='Detalle Bienes de Aseo y Caf'!I88 -> 0
A89: 75 | B89: Esponjilla 1 (Compra) | C89: - Espuma enmallada - Tamaño mínimo de 7 cm de largo por 10 cm de ancho | D89: Unidad | E89: 2 | F89: =IF(E89>0,(VLOOKUP($C$5&$C$6&B89,ConsolidadoServicios!$A:$K,11,0)),0) ->  | G89: =IF(E89>0,(VLOOKUP(B89,Minimos!$A:$B,2,0)),0) -> 779 | H89: 0 | L89: =ROUND(VLOOKUP($C$5&B89,ConsolidadoServicios!P:Q,2,0)*80%,2) -> 0 | M89: ='Detalle Bienes de Aseo y Caf'!I89 -> 2
A90: 76 | B90: Esponjilla 2 (Compra) | C90: - Doble uso (material de esponjilla blanda y abrasiva) - Tamaño mínimo de 7 cm de largo por 10 cm de ancho - No debe contener PVC o Poliestireno expandido u otros plásticos de un solo uso tanto en el envase como en el embalaje | D90: Unidad | E90: 0 | F90: =IF(E90>0,(VLOOKUP($C$5&$C$6&B90,ConsolidadoServicios!$A:$K,11,0)),0) -> 0 | G90: =IF(E90>0,(VLOOKUP(B90,Minimos!$A:$B,2,0)),0) -> 0 | H90: 0 | J90: 0 | K90: 0 | L90: =ROUND(VLOOKUP($C$5&B90,ConsolidadoServicios!P:Q,2,0)*80%,2) -> 0 | M90: ='Detalle Bienes de Aseo y Caf'!I90 -> 0
A91: 77 | B91: Esponjilla 3 (Compra) | C91: - Abrasiva - Tamaño mínimo de 9 cm de largo por 12 cm de | D91: Unidad | E91: 0 | F91: =IF(E91>0,(VLOOKUP($C$5&$C$6&B91,ConsolidadoServicios!$A:$K,11,0)),0) -> 0 | G91: =IF(E91>0,(VLOOKUP(B91,Minimos!$A:$B,2,0)),0) -> 0 | H91: 0 | J91: 0 | K91: 0 | L91: =ROUND(VLOOKUP($C$5&B91,ConsolidadoServicios!P:Q,2,0)*80%,2) -> 0 | M91: ='Detalle Bienes de Aseo y Caf'!I91 -> 0
A92: 78 | B92: Esponjilla 4 (Compra) | C92: - Elaborada con fibra de acero inoxidable para dar brillo - Tamaño mínimo de 5 cm de largo por 5 cm de ancho | D92: Paquete X 6 unidades | E92: 0 | F92: =IF(E92>0,(VLOOKUP($C$5&$C$6&B92,ConsolidadoServicios!$A:$K,11,0)),0) -> 0 | G92: =IF(E92>0,(VLOOKUP(B92,Minimos!$A:$B,2,0)),0) -> 0 | H92: 0 | J92: 0 | K92: 0 | L92: =ROUND(VLOOKUP($C$5&B92,ConsolidadoServicios!P:Q,2,0)*80%,2) -> 0 | M92: ='Detalle Bienes de Aseo y Caf'!I92 -> 0
A93: 79 | B93: Esponjilla 5 (Compra) | C93: - Elaborada con alambre de acero inoxidable - Tamaño mínimo de 7 cm de largo por 10 cm de ancho | D93: Unidad | E93: 0 | F93: =IF(E93>0,(VLOOKUP($C$5&$C$6&B93,ConsolidadoServicios!$A:$K,11,0)),0) -> 0 | G93: =IF(E93>0,(VLOOKUP(B93,Minimos!$A:$B,2,0)),0) -> 0 | H93: 0 | J93: 0 | K93: 0 | L93: =ROUND(VLOOKUP($C$5&B93,ConsolidadoServicios!P:Q,2,0)*80%,2) -> 0 | M93: ='Detalle Bienes de Aseo y Caf'!I93 -> 0
A94: 80 | B94: Esponjilla 6 (Compra) | C94: - Espuma enmallada - Tamaño mínimo de 7 cm de largo por 10 cm de ancho - No debe contener PVC o Poliestireno expandido u otros plásticos de un solo uso tanto en el envase como en el embalaje. | D94: Unidad | E94: 0 | F94: =IF(E94>0,(VLOOKUP($C$5&$C$6&B94,ConsolidadoServicios!$A:$K,11,0)),0) -> 0 | G94: =IF(E94>0,(VLOOKUP(B94,Minimos!$A:$B,2,0)),0) -> 0 | H94: 0 | J94: 0 | K94: 0 | L94: =ROUND(VLOOKUP($C$5&B94,ConsolidadoServicios!P:Q,2,0)*80%,2) -> 0 | M94: ='Detalle Bienes de Aseo y Caf'!I94 -> 0
A95: 81 | B95: Esponjilla 7 (Compra) | C95: - Abrasiva - Tamaño mínimo de 9 cm de largo por 12 cm de ancho - No debe contener PVC o Poliestireno expandido u otros plásticos de un solo uso tanto en el envase como en el embalaje. | D95: Unidad | E95: 0 | F95: =IF(E95>0,(VLOOKUP($C$5&$C$6&B95,ConsolidadoServicios!$A:$K,11,0)),0) -> 0 | G95: =IF(E95>0,(VLOOKUP(B95,Minimos!$A:$B,2,0)),0) -> 0 | H95: 0 | J95: 0 | K95: 0 | L95: =ROUND(VLOOKUP($C$5&B95,ConsolidadoServicios!P:Q,2,0)*80%,2) -> 0 | M95: ='Detalle Bienes de Aseo y Caf'!I95 -> 0
A96: 82 | B96: Escoba 1 (Compra) | C96: - Cerdas suaves elaboradas con PET calibre entre 0,3 y 0,4 mm. - Área de barrido mínima de 25 cm de largo por 8 cm de ancho por 10 cm de alto - Material de base en plástico con acople tipo rosca | D96: Unidad | E96: 0 | F96: =IF(E96>0,(VLOOKUP($C$5&$C$6&B96,ConsolidadoServicios!$A:$K,11,0)),0) -> 0 | G96: =IF(E96>0,(VLOOKUP(B96,Minimos!$A:$B,2,0)),0) -> 0 | H96: 0 | J96: 0 | K96: 0 | L96: =ROUND(VLOOKUP($C$5&B96,ConsolidadoServicios!P:Q,2,0)*80%,2) -> 0 | M96: ='Detalle Bienes de Aseo y Caf'!I96 -> 0
A97: 83 | B97: Escoba 2 (Compra) | C97: - Cerdas duras elaboradas con PET calibre entre 0,4 y 0,6 mm. - Área de barrido mínima de 25 cm de largo por 8 cm de ancho por 10 cm de alto - Material de base en plástico con acople tipo rosca | D97: Unidad | E97: 0 | F97: =IF(E97>0,(VLOOKUP($C$5&$C$6&B97,ConsolidadoServicios!$A:$K,11,0)),0) -> 0 | G97: =IF(E97>0,(VLOOKUP(B97,Minimos!$A:$B,2,0)),0) -> 0 | H97: 0 | J97: 0 | K97: 0 | L97: =ROUND(VLOOKUP($C$5&B97,ConsolidadoServicios!P:Q,2,0)*80%,2) -> 0 | M97: ='Detalle Bienes de Aseo y Caf'!I97 -> 0
A98: 84 | B98: Escoba 3 (Compra) | C98: - Cerdas suaves elaboradas con PET calibre entre 0,3 y 0,4 mm. - Área de barrido mínima de 35 cm de largo por 8 cm de ancho por 10 cm de alto - Material de base en plástico con acople tipo rosca | D98: Unidad | E98: 1 | F98: =IF(E98>0,(VLOOKUP($C$5&$C$6&B98,ConsolidadoServicios!$A:$K,11,0)),0) ->  | G98: =IF(E98>0,(VLOOKUP(B98,Minimos!$A:$B,2,0)),0) -> 4308 | H98: 0 | L98: =ROUND(VLOOKUP($C$5&B98,ConsolidadoServicios!P:Q,2,0)*80%,2) -> 0 | M98: ='Detalle Bienes de Aseo y Caf'!I98 -> 1
A99: 85 | B99: Escoba 4 (Compra) | C99: - Cerdas duras elaboradas con PET calibre entre 0,4 y 0,6 mm. - Área de barrido mínima de 35 cm de largo por 8 cm de ancho por 10 cm de alto - Material de base en plástico con acople tipo rosca | D99: Unidad | E99: 1 | F99: =IF(E99>0,(VLOOKUP($C$5&$C$6&B99,ConsolidadoServicios!$A:$K,11,0)),0) ->  | G99: =IF(E99>0,(VLOOKUP(B99,Minimos!$A:$B,2,0)),0) -> 4271 | H99: 0 | L99: =ROUND(VLOOKUP($C$5&B99,ConsolidadoServicios!P:Q,2,0)*80%,2) -> 0 | M99: ='Detalle Bienes de Aseo y Caf'!I99 -> 1
A100: 86 | B100: Escoba 5 (Compra) | C100: - Cerdas suaves elaboradas con PET calibre entre 0,3 y 0,4 mm. - Área de barrido mínima de 35 cm de largo por 8 cm de ancho por 10 cm de alto - Mango de madera proveniente de explotación forestal sostenible certificada ( FSC, PEFC o equivalentes) y/o Mango y Fibra de plástico (reciclado o nuevo) de polipropileno (PP) o polietileno (PE) y/o cabo metálico que no contenga material plastificado - No debe contener PVC u otros plásticos con cloro. - Cabo de madera 140cm elaborada con fibra natural, con soporte para colgar, con capucha plástica protectora que evita que se desprendan las fibras o se deformen | D100: Unidad | E100: 0 | F100: =IF(E100>0,(VLOOKUP($C$5&$C$6&B100,ConsolidadoServicios!$A:$K,11,0)),0) -> 0 | G100: =IF(E100>0,(VLOOKUP(B100,Minimos!$A:$B,2,0)),0) -> 0 | H100: 0 | J100: 0 | K100: 0 | L100: =ROUND(VLOOKUP($C$5&B100,ConsolidadoServicios!P:Q,2,0)*80%,2) -> 0 | M100: ='Detalle Bienes de Aseo y Caf'!I100 -> 0
A101: 87 | B101: Mango metálico escoba 1 (Compra) | C101: - Extensión mínima de 140 cm -Acople plástico o rosca para palos de escoba | D101: Unidad | E101: 0 | F101: =IF(E101>0,(VLOOKUP($C$5&$C$6&B101,ConsolidadoServicios!$A:$K,11,0)),0) -> 0 | G101: =IF(E101>0,(VLOOKUP(B101,Minimos!$A:$B,2,0)),0) -> 0 | H101: 0 | J101: 0 | K101: 0 | L101: =ROUND(VLOOKUP($C$5&B101,ConsolidadoServicios!P:Q,2,0)*80%,2) -> 0 | M101: ='Detalle Bienes de Aseo y Caf'!I101 -> 0
A102: 88 | B102: Mango madera escoba 1 (Compra) | C102: - Extensión mínima de 140 cm -Acople plástico o rosca para palos de escoba | D102: Unidad | E102: 2 | F102: =IF(E102>0,(VLOOKUP($C$5&$C$6&B102,ConsolidadoServicios!$A:$K,11,0)),0) ->  | G102: =IF(E102>0,(VLOOKUP(B102,Minimos!$A:$B,2,0)),0) -> 2164 | H102: 0 | L102: =ROUND(VLOOKUP($C$5&B102,ConsolidadoServicios!P:Q,2,0)*80%,2) -> 0 | M102: ='Detalle Bienes de Aseo y Caf'!I102 -> 2
A103: 89 | B103: Cepillos 1 (Compra) | C103: - Tipo plancha, con mango de plástico - Cuerpo elaborado en plástico - Cerdas duras en fibra plástica - Tamaño mínimo de 15 cm de largo por 5cm de ancho por 6 cm de alto. | D103: Unidad | E103: 0 | F103: =IF(E103>0,(VLOOKUP($C$5&$C$6&B103,ConsolidadoServicios!$A:$K,11,0)),0) -> 0 | G103: =IF(E103>0,(VLOOKUP(B103,Minimos!$A:$B,2,0)),0) -> 0 | H103: 0 | J103: 0 | K103: 0 | L103: =ROUND(VLOOKUP($C$5&B103,ConsolidadoServicios!P:Q,2,0)*80%,2) -> 0 | M103: ='Detalle Bienes de Aseo y Caf'!I103 -> 0
A104: 90 | B104: Cepillos 2 (Compra) | C104: - Para pisos - Cuerpo elaborado en plástico - Cerdas duras en fibra plástica - Tamaño mínimo de 23 cm de largo por 6 cm de ancho por 7 cm de alto. - Mango metálico con una extensión mínima de 140 cm | D104: Unidad | E104: 0 | F104: =IF(E104>0,(VLOOKUP($C$5&$C$6&B104,ConsolidadoServicios!$A:$K,11,0)),0) -> 0 | G104: =IF(E104>0,(VLOOKUP(B104,Minimos!$A:$B,2,0)),0) -> 0 | H104: 0 | J104: 0 | K104: 0 | L104: =ROUND(VLOOKUP($C$5&B104,ConsolidadoServicios!P:Q,2,0)*80%,2) -> 0 | M104: ='Detalle Bienes de Aseo y Caf'!I104 -> 0
A105: 91 | B105: Cepillos 3 (Compra) | C105: - Para pisos - Cuerpo elaborado en plástico - Cerdas duras en fibra plástica - Tamaño mínimo de 35 cm de largo por 6 cm de ancho por 7 cm de alto. - Mango metálico con una extensión mínima de 140 cm | D105: Unidad | E105: 0 | F105: =IF(E105>0,(VLOOKUP($C$5&$C$6&B105,ConsolidadoServicios!$A:$K,11,0)),0) -> 0 | G105: =IF(E105>0,(VLOOKUP(B105,Minimos!$A:$B,2,0)),0) -> 0 | H105: 0 | J105: 0 | K105: 0 | L105: =ROUND(VLOOKUP($C$5&B105,ConsolidadoServicios!P:Q,2,0)*80%,2) -> 0 | M105: ='Detalle Bienes de Aseo y Caf'!I105 -> 0
A106: 92 | B106: Trapero 1 (Compra) | C106: - Elaborado con hilaza de algodón natural - Mecha con peso mínimo 250 gr y extensión mínima de 32 cm de largo - Material de base en plástico con acople tipo rosca | D106: Unidad | E106: 0 | F106: =IF(E106>0,(VLOOKUP($C$5&$C$6&B106,ConsolidadoServicios!$A:$K,11,0)),0) -> 0 | G106: =IF(E106>0,(VLOOKUP(B106,Minimos!$A:$B,2,0)),0) -> 0 | H106: 0 | J106: 0 | K106: 0 | L106: =ROUND(VLOOKUP($C$5&B106,ConsolidadoServicios!P:Q,2,0)*80%,2) -> 0 | M106: ='Detalle Bienes de Aseo y Caf'!I106 -> 0
A107: 93 | B107: Trapero 2 (Compra) | C107: - Elaborado con hilaza de algodón natural - Mecha con peso mínimo de 350 gr y extensión mínima de 32 cm de largo - Material de base en plástico con acople tipo rosca | D107: Unidad | E107: 0 | F107: =IF(E107>0,(VLOOKUP($C$5&$C$6&B107,ConsolidadoServicios!$A:$K,11,0)),0) -> 0 | G107: =IF(E107>0,(VLOOKUP(B107,Minimos!$A:$B,2,0)),0) -> 0 | H107: 0 | J107: 0 | K107: 0 | L107: =ROUND(VLOOKUP($C$5&B107,ConsolidadoServicios!P:Q,2,0)*80%,2) -> 0 | M107: ='Detalle Bienes de Aseo y Caf'!I107 -> 0
A108: 94 | B108: Trapero 3 (Compra) | C108: - Elaborado con hilaza de algodón natural - Mecha con peso mínimo de 435 gr y extensión mínima de 32 cm de largo - Material de base en plástico con acople tipo rosca | D108: Unidad | E108: 0 | F108: =IF(E108>0,(VLOOKUP($C$5&$C$6&B108,ConsolidadoServicios!$A:$K,11,0)),0) -> 0 | G108: =IF(E108>0,(VLOOKUP(B108,Minimos!$A:$B,2,0)),0) -> 0 | H108: 0 | J108: 0 | K108: 0 | L108: =ROUND(VLOOKUP($C$5&B108,ConsolidadoServicios!P:Q,2,0)*80%,2) -> 0 | M108: ='Detalle Bienes de Aseo y Caf'!I108 -> 0
A109: 95 | B109: Trapero 4 (Compra) | C109: - Trapero en hilo encabado o con cabo en madera - Mecha con peso mínimo de 400 gr y extensión mínima de 1.40 cm de largo - Mango de madera proveniente de explotación forestal sostenible certificada ( FSC, PEFC o equivalentes) y/o cabo metálico que no contenga material plastificado - Fibras en tela , algodón o pabilo de fibra de Rayón. - No debe contener PVC o Poliestireno expandido u otros plásticos de un solo uso tanto en el envase como en el embalaje. | D109: Unidad | E109: 1 | F109: =IF(E109>0,(VLOOKUP($C$5&$C$6&B109,ConsolidadoServicios!$A:$K,11,0)),0) ->  | G109: =IF(E109>0,(VLOOKUP(B109,Minimos!$A:$B,2,0)),0) -> 5260 | H109: 0 | L109: =ROUND(VLOOKUP($C$5&B109,ConsolidadoServicios!P:Q,2,0)*80%,2) -> 0 | M109: ='Detalle Bienes de Aseo y Caf'!I109 -> 1
A110: 96 | B110: Mango metálico trapero (Compra) | C110: - Extensión mínima de 140 cm - Acople plástico o rosca para palos de escoba | D110: Unidad | E110: 0 | F110: =IF(E110>0,(VLOOKUP($C$5&$C$6&B110,ConsolidadoServicios!$A:$K,11,0)),0) -> 0 | G110: =IF(E110>0,(VLOOKUP(B110,Minimos!$A:$B,2,0)),0) -> 0 | H110: 0 | J110: 0 | K110: 0 | L110: =ROUND(VLOOKUP($C$5&B110,ConsolidadoServicios!P:Q,2,0)*80%,2) -> 0 | M110: ='Detalle Bienes de Aseo y Caf'!I110 -> 0
A111: 97 | B111: Mango madera trapero (Compra) | C111: - Extensión mínima de 140 cm - Acople plástico o rosca para palos de escoba | D111: Unidad | E111: 0 | F111: =IF(E111>0,(VLOOKUP($C$5&$C$6&B111,ConsolidadoServicios!$A:$K,11,0)),0) -> 0 | G111: =IF(E111>0,(VLOOKUP(B111,Minimos!$A:$B,2,0)),0) -> 0 | H111: 0 | J111: 0 | K111: 0 | L111: =ROUND(VLOOKUP($C$5&B111,ConsolidadoServicios!P:Q,2,0)*80%,2) -> 0 | M111: ='Detalle Bienes de Aseo y Caf'!I111 -> 0
A112: 98 | B112: Cepillo para sanitario (churrusco) (Compra) | C112: - Cerdas duras elaboradas en fibras plásticas - Extensión mínima de las cerdas es de 2,5 cm - Base y mango elaborados en plástico - Mango con longitud mínima de 33 cm | D112: Unidad | E112: 0 | F112: =IF(E112>0,(VLOOKUP($C$5&$C$6&B112,ConsolidadoServicios!$A:$K,11,0)),0) -> 0 | G112: =IF(E112>0,(VLOOKUP(B112,Minimos!$A:$B,2,0)),0) -> 0 | H112: 0 | J112: 0 | K112: 0 | L112: =ROUND(VLOOKUP($C$5&B112,ConsolidadoServicios!P:Q,2,0)*80%,2) -> 0 | M112: ='Detalle Bienes de Aseo y Caf'!I112 -> 0
A113: 99 | B113: Pads 1 (Compra) | C113: - Para brillo - Diámetro mínimo de 16 pulgadas - Rojo o blanco | D113: Unidad | E113: 0 | F113: =IF(E113>0,(VLOOKUP($C$5&$C$6&B113,ConsolidadoServicios!$A:$K,11,0)),0) -> 0 | G113: =IF(E113>0,(VLOOKUP(B113,Minimos!$A:$B,2,0)),0) -> 0 | H113: 0 | J113: 0 | K113: 0 | L113: =ROUND(VLOOKUP($C$5&B113,ConsolidadoServicios!P:Q,2,0)*80%,2) -> 0 | M113: ='Detalle Bienes de Aseo y Caf'!I113 -> 0
A114: 100 | B114: Pads 2 (Compra) | C114: - Para remoción - Diámetro mínimo de 16 pulgadas - Café o negro | D114: Unidad | E114: 0 | F114: =IF(E114>0,(VLOOKUP($C$5&$C$6&B114,ConsolidadoServicios!$A:$K,11,0)),0) -> 0 | G114: =IF(E114>0,(VLOOKUP(B114,Minimos!$A:$B,2,0)),0) -> 0 | H114: 0 | J114: 0 | K114: 0 | L114: =ROUND(VLOOKUP($C$5&B114,ConsolidadoServicios!P:Q,2,0)*80%,2) -> 0 | M114: ='Detalle Bienes de Aseo y Caf'!I114 -> 0
A115: 101 | B115: Pads 3 (Compra) | C115: - Para brillo - Diámetro mínimo de 20 pulgadas - Rojo o blanco | D115: Unidad | E115: 0 | F115: =IF(E115>0,(VLOOKUP($C$5&$C$6&B115,ConsolidadoServicios!$A:$K,11,0)),0) -> 0 | G115: =IF(E115>0,(VLOOKUP(B115,Minimos!$A:$B,2,0)),0) -> 0 | H115: 0 | J115: 0 | K115: 0 | L115: =ROUND(VLOOKUP($C$5&B115,ConsolidadoServicios!P:Q,2,0)*80%,2) -> 0 | M115: ='Detalle Bienes de Aseo y Caf'!I115 -> 0
A116: 102 | B116: Pads 4 (Compra) | C116: - Para remoción - Diámetro mínimo de 20 pulgadas - Café o negro | D116: Unidad | E116: 0 | F116: =IF(E116>0,(VLOOKUP($C$5&$C$6&B116,ConsolidadoServicios!$A:$K,11,0)),0) -> 0 | G116: =IF(E116>0,(VLOOKUP(B116,Minimos!$A:$B,2,0)),0) -> 0 | H116: 0 | J116: 0 | K116: 0 | L116: =ROUND(VLOOKUP($C$5&B116,ConsolidadoServicios!P:Q,2,0)*80%,2) -> 0 | M116: ='Detalle Bienes de Aseo y Caf'!I116 -> 0
A117: 103 | B117: Pads 5 (Compra) | C117: - Pad de fibras para máquinas de baja densidad para lavado suave de mantención, remueve marcas, suciedad y derrames. - Diámetro: 17" - Color: blanco. - No debe contener PVC o Poliestireno expandido u otros plásticos de un solo uso tanto en el envase como en el embalaje. | D117: Unidad | E117: 0 | F117: =IF(E117>0,(VLOOKUP($C$5&$C$6&B117,ConsolidadoServicios!$A:$K,11,0)),0) -> 0 | G117: =IF(E117>0,(VLOOKUP(B117,Minimos!$A:$B,2,0)),0) -> 0 | H117: 0 | J117: 0 | K117: 0 | L117: =ROUND(VLOOKUP($C$5&B117,ConsolidadoServicios!P:Q,2,0)*80%,2) -> 0 | M117: ='Detalle Bienes de Aseo y Caf'!I117 -> 0
A118: 104 | B118: Boneth 1 (Compra) | C118: - Diámetro mínimo de 16 pulgadas - Elaborado en hilaza de algodón | D118: Unidad | E118: 0 | F118: =IF(E118>0,(VLOOKUP($C$5&$C$6&B118,ConsolidadoServicios!$A:$K,11,0)),0) -> 0 | G118: =IF(E118>0,(VLOOKUP(B118,Minimos!$A:$B,2,0)),0) -> 0 | H118: 0 | J118: 0 | K118: 0 | L118: =ROUND(VLOOKUP($C$5&B118,ConsolidadoServicios!P:Q,2,0)*80%,2) -> 0 | M118: ='Detalle Bienes de Aseo y Caf'!I118 -> 0
A119: 105 | B119: Boneth 2 (Compra) | C119: - Diámetro mínimo de 20 pulgadas - Elaborado en hilaza de algodón | D119: Unidad | E119: 0 | F119: =IF(E119>0,(VLOOKUP($C$5&$C$6&B119,ConsolidadoServicios!$A:$K,11,0)),0) -> 0 | G119: =IF(E119>0,(VLOOKUP(B119,Minimos!$A:$B,2,0)),0) -> 0 | H119: 0 | J119: 0 | K119: 0 | L119: =ROUND(VLOOKUP($C$5&B119,ConsolidadoServicios!P:Q,2,0)*80%,2) -> 0 | M119: ='Detalle Bienes de Aseo y Caf'!I119 -> 0
A120: 106 | B120: Bolsas plásticas 1 (Compra) | C120: - Elaborada en polietileno de baja densidad - De color negro - Calibre de mínimo 1 - Tamaño de 40 cm de ancho por 55 cm de largo | D120: Paquete de mínimo 6 | E120: 1 | F120: =IF(E120>0,(VLOOKUP($C$5&$C$6&B120,ConsolidadoServicios!$A:$K,11,0)),0) ->  | G120: =IF(E120>0,(VLOOKUP(B120,Minimos!$A:$B,2,0)),0) -> 717 | H120: 0 | L120: =ROUND(VLOOKUP($C$5&B120,ConsolidadoServicios!P:Q,2,0)*80%,2) -> 0 | M120: ='Detalle Bienes de Aseo y Caf'!I120 -> 1
A121: 107 | B121: Bolsas plásticas 2 (Compra) | C121: - Elaborada en polietileno de baja densidad - De color verde - Calibre de mínimo 1 - Tamaño de 40 cm de ancho por 55 cm de largo | D121: Paquete de mínimo 6 | E121: 0 | F121: =IF(E121>0,(VLOOKUP($C$5&$C$6&B121,ConsolidadoServicios!$A:$K,11,0)),0) -> 0 | G121: =IF(E121>0,(VLOOKUP(B121,Minimos!$A:$B,2,0)),0) -> 0 | H121: 0 | J121: 0 | K121: 0 | L121: =ROUND(VLOOKUP($C$5&B121,ConsolidadoServicios!P:Q,2,0)*80%,2) -> 0 | M121: ='Detalle Bienes de Aseo y Caf'!I121 -> 0
A122: 108 | B122: Bolsas plásticas 3 (Compra) | C122: - Elaborada en polietileno de baja densidad - De color blanco - Calibre de mínimo 1 - Tamaño de 40 cm de ancho por 55 cm de largo | D122: Paquete de mínimo 6 | E122: 1 | F122: =IF(E122>0,(VLOOKUP($C$5&$C$6&B122,ConsolidadoServicios!$A:$K,11,0)),0) ->  | G122: =IF(E122>0,(VLOOKUP(B122,Minimos!$A:$B,2,0)),0) -> 868 | H122: 0 | L122: =ROUND(VLOOKUP($C$5&B122,ConsolidadoServicios!P:Q,2,0)*80%,2) -> 0 | M122: ='Detalle Bienes de Aseo y Caf'!I122 -> 1
A123: 109 | B123: Bolsas plásticas 4 (Compra) | C123: - Elaborada en polietileno de baja densidad - De color rojo - Calibre de mínimo 1 - Tamaño de 40 cm de ancho por 55 cm de largo - Con impresión de aviso de riesgo biológico | D123: Paquete de mínimo 6 | E123: 0 | F123: =IF(E123>0,(VLOOKUP($C$5&$C$6&B123,ConsolidadoServicios!$A:$K,11,0)),0) -> 0 | G123: =IF(E123>0,(VLOOKUP(B123,Minimos!$A:$B,2,0)),0) -> 0 | H123: 0 | J123: 0 | K123: 0 | L123: =ROUND(VLOOKUP($C$5&B123,ConsolidadoServicios!P:Q,2,0)*80%,2) -> 0 | M123: ='Detalle Bienes de Aseo y Caf'!I123 -> 0
A124: 110 | B124: Bolsas plásticas 5 (Compra) | C124: - Elaborada en polietileno de baja densidad - De color azul - Calibre de mínimo 1 - Tamaño de 40 cm de ancho por 55 cm de largo | D124: Paquete de mínimo 6 | E124: 0 | F124: =IF(E124>0,(VLOOKUP($C$5&$C$6&B124,ConsolidadoServicios!$A:$K,11,0)),0) -> 0 | G124: =IF(E124>0,(VLOOKUP(B124,Minimos!$A:$B,2,0)),0) -> 0 | H124: 0 | J124: 0 | K124: 0 | L124: =ROUND(VLOOKUP($C$5&B124,ConsolidadoServicios!P:Q,2,0)*80%,2) -> 0 | M124: ='Detalle Bienes de Aseo y Caf'!I124 -> 0
A125: 111 | B125: Bolsas plásticas 7 (Compra) | C125: - Elaborada en polietileno de baja densidad - De color amarillo - Calibre de mínimo 1 - Tamaño de 40 cm de ancho por 55 cm de largo | D125: Paquete de mínimo 6 | E125: 0 | F125: =IF(E125>0,(VLOOKUP($C$5&$C$6&B125,ConsolidadoServicios!$A:$K,11,0)),0) -> 0 | G125: =IF(E125>0,(VLOOKUP(B125,Minimos!$A:$B,2,0)),0) -> 0 | H125: 0 | J125: 0 | K125: 0 | L125: =ROUND(VLOOKUP($C$5&B125,ConsolidadoServicios!P:Q,2,0)*80%,2) -> 0 | M125: ='Detalle Bienes de Aseo y Caf'!I125 -> 0
A126: 112 | B126: Bolsas plásticas 8 (Compra) | C126: - Elaborada en polietileno de baja densidad - De color negro -Calibre de mínimo 2 - Tamaño de 60 cm de ancho por 70 cm de largo | D126: Paquete de mínimo 6 | E126: 0 | F126: =IF(E126>0,(VLOOKUP($C$5&$C$6&B126,ConsolidadoServicios!$A:$K,11,0)),0) -> 0 | G126: =IF(E126>0,(VLOOKUP(B126,Minimos!$A:$B,2,0)),0) -> 0 | H126: 0 | J126: 0 | K126: 0 | L126: =ROUND(VLOOKUP($C$5&B126,ConsolidadoServicios!P:Q,2,0)*80%,2) -> 0 | M126: ='Detalle Bienes de Aseo y Caf'!I126 -> 0
A127: 113 | B127: Bolsas plásticas 9 (Compra) | C127: - Elaborada en polietileno de baja densidad - De color verde - Calibre de mínimo 2 - Tamaño de 60 cm de ancho por 70 cm de largo | D127: Paquete de mínimo 6 | E127: 0 | F127: =IF(E127>0,(VLOOKUP($C$5&$C$6&B127,ConsolidadoServicios!$A:$K,11,0)),0) -> 0 | G127: =IF(E127>0,(VLOOKUP(B127,Minimos!$A:$B,2,0)),0) -> 0 | H127: 0 | J127: 0 | K127: 0 | L127: =ROUND(VLOOKUP($C$5&B127,ConsolidadoServicios!P:Q,2,0)*80%,2) -> 0 | M127: ='Detalle Bienes de Aseo y Caf'!I127 -> 0
A128: 114 | B128: Bolsas plásticas 10 (Compra) | C128: - Elaborada en polietileno de baja densidad - De color blanco - Calibre de mínimo 2 - Tamaño de 60 cm de ancho por 70 cm de largo | D128: Paquete de mínimo 6 | E128: 0 | F128: =IF(E128>0,(VLOOKUP($C$5&$C$6&B128,ConsolidadoServicios!$A:$K,11,0)),0) -> 0 | G128: =IF(E128>0,(VLOOKUP(B128,Minimos!$A:$B,2,0)),0) -> 0 | H128: 0 | J128: 0 | K128: 0 | L128: =ROUND(VLOOKUP($C$5&B128,ConsolidadoServicios!P:Q,2,0)*80%,2) -> 0 | M128: ='Detalle Bienes de Aseo y Caf'!I128 -> 0
A129: 115 | B129: Bolsas plásticas 11 (Compra) | C129: - Elaborada en polietileno de baja densidad - De color rojo - Calibre de mínimo 2 - Tamaño de 60 cm de ancho por 70 cm de largo - Con impresión de aviso de riesgo biológico | D129: Paquete de mínimo 6 | E129: 0 | F129: =IF(E129>0,(VLOOKUP($C$5&$C$6&B129,ConsolidadoServicios!$A:$K,11,0)),0) -> 0 | G129: =IF(E129>0,(VLOOKUP(B129,Minimos!$A:$B,2,0)),0) -> 0 | H129: 0 | J129: 0 | K129: 0 | L129: =ROUND(VLOOKUP($C$5&B129,ConsolidadoServicios!P:Q,2,0)*80%,2) -> 0 | M129: ='Detalle Bienes de Aseo y Caf'!I129 -> 0
A130: 116 | B130: Bolsas plásticas 12 (Compra) | C130: - Elaborada en polietileno de baja densidad - De color azul - Calibre de mínimo 2 - Tamaño de 60 cm de ancho por 70 cm de largo | D130: Paquete de mínimo 6 | E130: 0 | F130: =IF(E130>0,(VLOOKUP($C$5&$C$6&B130,ConsolidadoServicios!$A:$K,11,0)),0) -> 0 | G130: =IF(E130>0,(VLOOKUP(B130,Minimos!$A:$B,2,0)),0) -> 0 | H130: 0 | J130: 0 | K130: 0 | L130: =ROUND(VLOOKUP($C$5&B130,ConsolidadoServicios!P:Q,2,0)*80%,2) -> 0 | M130: ='Detalle Bienes de Aseo y Caf'!I130 -> 0
A131: 117 | B131: Bolsas plásticas 14 (Compra) | C131: - Elaborada en polietileno de baja densidad - De color amarillo - Calibre de mínimo 2 - Tamaño de 60 cm de ancho por 70 cm de largo | D131: Paquete de mínimo 6 | E131: 0 | F131: =IF(E131>0,(VLOOKUP($C$5&$C$6&B131,ConsolidadoServicios!$A:$K,11,0)),0) -> 0 | G131: =IF(E131>0,(VLOOKUP(B131,Minimos!$A:$B,2,0)),0) -> 0 | H131: 0 | J131: 0 | K131: 0 | L131: =ROUND(VLOOKUP($C$5&B131,ConsolidadoServicios!P:Q,2,0)*80%,2) -> 0 | M131: ='Detalle Bienes de Aseo y Caf'!I131 -> 0
A132: 118 | B132: Bolsas plásticas 15 (Compra) | C132: - Elaborada en polietileno de baja densidad - De color negro - Calibre de mínimo 2 - Tamaño de 70 cm de ancho por 90 cm de largo | D132: Paquete de mínimo 6 | E132: 0 | F132: =IF(E132>0,(VLOOKUP($C$5&$C$6&B132,ConsolidadoServicios!$A:$K,11,0)),0) -> 0 | G132: =IF(E132>0,(VLOOKUP(B132,Minimos!$A:$B,2,0)),0) -> 0 | H132: 0 | J132: 0 | K132: 0 | L132: =ROUND(VLOOKUP($C$5&B132,ConsolidadoServicios!P:Q,2,0)*80%,2) -> 0 | M132: ='Detalle Bienes de Aseo y Caf'!I132 -> 0
A133: 119 | B133: Bolsas plásticas 16 (Compra) | C133: - Elaborada en polietileno de baja densidad - De color verde - Calibre de mínimo 2 - Tamaño de 70 cm de ancho por 90 cm de largo | D133: Paquete de mínimo 6 | E133: 0 | F133: =IF(E133>0,(VLOOKUP($C$5&$C$6&B133,ConsolidadoServicios!$A:$K,11,0)),0) -> 0 | G133: =IF(E133>0,(VLOOKUP(B133,Minimos!$A:$B,2,0)),0) -> 0 | H133: 0 | J133: 0 | K133: 0 | L133: =ROUND(VLOOKUP($C$5&B133,ConsolidadoServicios!P:Q,2,0)*80%,2) -> 0 | M133: ='Detalle Bienes de Aseo y Caf'!I133 -> 0
A134: 120 | B134: Bolsas plásticas 17 (Compra) | C134: - Elaborada en polietileno de baja densidad - De color blanco - Calibre de mínimo 2 - Tamaño de 70 cm de ancho por 90 cm de largo | D134: Paquete de mínimo 6 | E134: 0 | F134: =IF(E134>0,(VLOOKUP($C$5&$C$6&B134,ConsolidadoServicios!$A:$K,11,0)),0) -> 0 | G134: =IF(E134>0,(VLOOKUP(B134,Minimos!$A:$B,2,0)),0) -> 0 | H134: 0 | J134: 0 | K134: 0 | L134: =ROUND(VLOOKUP($C$5&B134,ConsolidadoServicios!P:Q,2,0)*80%,2) -> 0 | M134: ='Detalle Bienes de Aseo y Caf'!I134 -> 0
A135: 121 | B135: Bolsas plásticas 18 (Compra) | C135: - Elaborada en polietileno de baja densidad - De color rojo - Calibre de mínimo 2 - Tamaño de 70 cm de ancho por 90 cm de largo - Con impresión de aviso de riesgo biológico | D135: Paquete de mínimo 6 | E135: 0 | F135: =IF(E135>0,(VLOOKUP($C$5&$C$6&B135,ConsolidadoServicios!$A:$K,11,0)),0) -> 0 | G135: =IF(E135>0,(VLOOKUP(B135,Minimos!$A:$B,2,0)),0) -> 0 | H135: 0 | J135: 0 | K135: 0 | L135: =ROUND(VLOOKUP($C$5&B135,ConsolidadoServicios!P:Q,2,0)*80%,2) -> 0 | M135: ='Detalle Bienes de Aseo y Caf'!I135 -> 0
A136: 122 | B136: Bolsas plásticas 19 (Compra) | C136: - Elaborada en polietileno de baja densidad - De color azul - Calibre de mínimo 2 - Tamaño de 70 cm de ancho por 90 cm de largo | D136: Paquete de mínimo 6 | E136: 0 | F136: =IF(E136>0,(VLOOKUP($C$5&$C$6&B136,ConsolidadoServicios!$A:$K,11,0)),0) -> 0 | G136: =IF(E136>0,(VLOOKUP(B136,Minimos!$A:$B,2,0)),0) -> 0 | H136: 0 | J136: 0 | K136: 0 | L136: =ROUND(VLOOKUP($C$5&B136,ConsolidadoServicios!P:Q,2,0)*80%,2) -> 0 | M136: ='Detalle Bienes de Aseo y Caf'!I136 -> 0
A137: 123 | B137: Bolsas plásticas 20 (Compra) | C137: - Elaborada en polietileno de baja densidad - De color amarillo - Calibre de mínimo 2 - Tamaño de 70 cm de ancho por 90 cm de largo | D137: Paquete de mínimo 6 | E137: 0 | F137: =IF(E137>0,(VLOOKUP($C$5&$C$6&B137,ConsolidadoServicios!$A:$K,11,0)),0) -> 0 | G137: =IF(E137>0,(VLOOKUP(B137,Minimos!$A:$B,2,0)),0) -> 0 | H137: 0 | J137: 0 | K137: 0 | L137: =ROUND(VLOOKUP($C$5&B137,ConsolidadoServicios!P:Q,2,0)*80%,2) -> 0 | M137: ='Detalle Bienes de Aseo y Caf'!I137 -> 0
A138: 124 | B138: Bolsas plásticas 21 (Compra) | C138: - Elaborada en polietileno de baja densidad - De color negro - Calibre de mínimo 3 - Tamaño de 80 cm de ancho por 110 cm de largo | D138: Paquete de mínimo 6 | E138: 4 | F138: =IF(E138>0,(VLOOKUP($C$5&$C$6&B138,ConsolidadoServicios!$A:$K,11,0)),0) ->  | G138: =IF(E138>0,(VLOOKUP(B138,Minimos!$A:$B,2,0)),0) -> 2217 | H138: 0 | L138: =ROUND(VLOOKUP($C$5&B138,ConsolidadoServicios!P:Q,2,0)*80%,2) -> 0 | M138: ='Detalle Bienes de Aseo y Caf'!I138 -> 4
A139: 125 | B139: Bolsas plásticas 22 (Compra) | C139: - Elaborada en polietileno de baja densidad - De color verde - Calibre de mínimo 3 - Tamaño de 80 cm de ancho por 110 cm de largo | D139: Paquete de mínimo 6 | E139: 4 | F139: =IF(E139>0,(VLOOKUP($C$5&$C$6&B139,ConsolidadoServicios!$A:$K,11,0)),0) ->  | G139: =IF(E139>0,(VLOOKUP(B139,Minimos!$A:$B,2,0)),0) -> 3514 | H139: 0 | L139: =ROUND(VLOOKUP($C$5&B139,ConsolidadoServicios!P:Q,2,0)*80%,2) -> 0 | M139: ='Detalle Bienes de Aseo y Caf'!I139 -> 4
A140: 126 | B140: Bolsas plásticas 23 (Compra) | C140: - Elaborada en polietileno de baja densidad - De color blanco -Calibre de mínimo 3 - Tamaño de 80 cm de ancho por 110 cm de largo | D140: Paquete de mínimo 6 | E140: 4 | F140: =IF(E140>0,(VLOOKUP($C$5&$C$6&B140,ConsolidadoServicios!$A:$K,11,0)),0) ->  | G140: =IF(E140>0,(VLOOKUP(B140,Minimos!$A:$B,2,0)),0) -> 4102 | H140: 0 | L140: =ROUND(VLOOKUP($C$5&B140,ConsolidadoServicios!P:Q,2,0)*80%,2) -> 0 | M140: ='Detalle Bienes de Aseo y Caf'!I140 -> 4
A141: 127 | B141: Bolsas plásticas 24 (Compra) | C141: - Elaborada en polietileno de baja densidad - De color rojo -Calibre de mínimo 3 - Tamaño de 80 cm de ancho por 110 cm de largo - Con impresión de aviso de riesgo biológico | D141: Paquete de mínimo 6 | E141: 0 | F141: =IF(E141>0,(VLOOKUP($C$5&$C$6&B141,ConsolidadoServicios!$A:$K,11,0)),0) -> 0 | G141: =IF(E141>0,(VLOOKUP(B141,Minimos!$A:$B,2,0)),0) -> 0 | H141: 0 | J141: 0 | K141: 0 | L141: =ROUND(VLOOKUP($C$5&B141,ConsolidadoServicios!P:Q,2,0)*80%,2) -> 0 | M141: ='Detalle Bienes de Aseo y Caf'!I141 -> 0
A142: 128 | B142: Bolsas plásticas 25 (Compra) | C142: - Elaborada en polietileno de baja densidad - De color azul -Calibre de mínimo 3 - Tamaño de 80 cm de ancho por 110 cm de largo | D142: Paquete de mínimo 6 | E142: =SUM(M142:M142) -> 0 | F142: =IF(E142>0,(VLOOKUP($C$5&$C$6&B142,ConsolidadoServicios!$A:$K,11,0)),0) -> 0 | G142: =IF(E142>0,(VLOOKUP(B142,Minimos!$A:$B,2,0)),0) -> 0 | H142: 0 | J142: 0 | K142: 0 | L142: =ROUND(VLOOKUP($C$5&B142,ConsolidadoServicios!P:Q,2,0)*80%,2) -> 0 | M142: ='Detalle Bienes de Aseo y Caf'!I142 -> 0
A143: 129 | B143: Bolsas plásticas 26 (Compra) | C143: - Elaborada en polietileno de baja densidad - De color amarilla -Calibre de mínimo 3 - Tamaño de 80 cm de ancho por 110 cm de largo | D143: Paquete de mínimo 6 | E143: 0 | F143: =IF(E143>0,(VLOOKUP($C$5&$C$6&B143,ConsolidadoServicios!$A:$K,11,0)),0) -> 0 | G143: =IF(E143>0,(VLOOKUP(B143,Minimos!$A:$B,2,0)),0) -> 0 | H143: 0 | J143: 0 | K143: 0 | L143: =ROUND(VLOOKUP($C$5&B143,ConsolidadoServicios!P:Q,2,0)*80%,2) -> 0 | M143: ='Detalle Bienes de Aseo y Caf'!I143 -> 0
A144: 130 | B144: Guantes 1 (Compra) | C144: - Tipo doméstico - Elaborados en látex - Calibre mínimo de 18 - Tallas 7 a 9 o S a XL - Color amarillo | D144: Par | E144: 0 | F144: =IF(E144>0,(VLOOKUP($C$5&$C$6&B144,ConsolidadoServicios!$A:$K,11,0)),0) -> 0 | G144: =IF(E144>0,(VLOOKUP(B144,Minimos!$A:$B,2,0)),0) -> 0 | H144: =IF(E144>0,IF(I144>0,(G144-J144)/G144,0),0) -> 0 | J144: =ROUND((F144*(1-I144)),2) -> 0 | K144: =J144*E144 -> 0 | L144: =ROUND(VLOOKUP($C$5&B144,ConsolidadoServicios!P:Q,2,0)*80%,2) -> 0 | M144: ='Detalle Bienes de Aseo y Caf'!I144 -> 0
A145: 131 | B145: Guantes 2 (Compra) | C145: - Tipo doméstico - Elaborados en látex - Calibre mínimo de 18 - Tallas 7 a 9 o S a XL - Color negro | D145: Par | E145: 0 | F145: =IF(E145>0,(VLOOKUP($C$5&$C$6&B145,ConsolidadoServicios!$A:$K,11,0)),0) -> 0 | G145: =IF(E145>0,(VLOOKUP(B145,Minimos!$A:$B,2,0)),0) -> 0 | H145: 0 | J145: 0 | K145: 0 | L145: =ROUND(VLOOKUP($C$5&B145,ConsolidadoServicios!P:Q,2,0)*80%,2) -> 0 | M145: ='Detalle Bienes de Aseo y Caf'!I145 -> 0
A146: 132 | B146: Guantes 3 (Compra) | C146: - Tipo doméstico - Elaborados en látex - Calibre mínimo de 25 - Tallas 7 a 9 o S a XL - Color negro | D146: Par | E146: 0 | F146: =IF(E146>0,(VLOOKUP($C$5&$C$6&B146,ConsolidadoServicios!$A:$K,11,0)),0) -> 0 | G146: =IF(E146>0,(VLOOKUP(B146,Minimos!$A:$B,2,0)),0) -> 0 | H146: 0 | J146: 0 | K146: 0 | L146: =ROUND(VLOOKUP($C$5&B146,ConsolidadoServicios!P:Q,2,0)*80%,2) -> 0 | M146: ='Detalle Bienes de Aseo y Caf'!I146 -> 0
A147: 133 | B147: Guantes 4 (Compra) | C147: - Tipo doméstico - Elaborados en látex - Calibre mínimo de 25 - Tallas 7 a 9 o S a XL - Color rojo | D147: Par | E147: 0 | F147: =IF(E147>0,(VLOOKUP($C$5&$C$6&B147,ConsolidadoServicios!$A:$K,11,0)),0) -> 0 | G147: =IF(E147>0,(VLOOKUP(B147,Minimos!$A:$B,2,0)),0) -> 0 | H147: 0 | J147: 0 | K147: 0 | L147: =ROUND(VLOOKUP($C$5&B147,ConsolidadoServicios!P:Q,2,0)*80%,2) -> 0 | M147: ='Detalle Bienes de Aseo y Caf'!I147 -> 0
A148: 134 | B148: Guantes 5 (Compra) | C148: - Tipo industrial - Elaborados en látex - Calibre mínimo de 35 - Tallas 7 a 9 o S a XL - Color negro | D148: Par | E148: 0 | F148: =IF(E148>0,(VLOOKUP($C$5&$C$6&B148,ConsolidadoServicios!$A:$K,11,0)),0) -> 0 | G148: =IF(E148>0,(VLOOKUP(B148,Minimos!$A:$B,2,0)),0) -> 0 | H148: 0 | J148: 0 | K148: 0 | L148: =ROUND(VLOOKUP($C$5&B148,ConsolidadoServicios!P:Q,2,0)*80%,2) -> 0 | M148: ='Detalle Bienes de Aseo y Caf'!I148 -> 0
A149: 135 | B149: Guantes 6 (Compra) | C149: - Elaborados en látex desechable (tipo cirugía) - Empovaldos - Tallas XS a XXL | D149: Caja de mínimo 100 unidades | E149: 0 | F149: =IF(E149>0,(VLOOKUP($C$5&$C$6&B149,ConsolidadoServicios!$A:$K,11,0)),0) -> 0 | G149: =IF(E149>0,(VLOOKUP(B149,Minimos!$A:$B,2,0)),0) -> 0 | H149: 0 | J149: 0 | K149: 0 | L149: =ROUND(VLOOKUP($C$5&B149,ConsolidadoServicios!P:Q,2,0)*80%,2) -> 0 | M149: ='Detalle Bienes de Aseo y Caf'!I149 -> 0
A150: 136 | B150: Guantes 7 (Compra) | C150: - Elaborados en carnaza - Tallas 7 a 9 o S a XL | D150: Par | E150: 0 | F150: =IF(E150>0,(VLOOKUP($C$5&$C$6&B150,ConsolidadoServicios!$A:$K,11,0)),0) -> 0 | G150: =IF(E150>0,(VLOOKUP(B150,Minimos!$A:$B,2,0)),0) -> 0 | H150: 0 | J150: 0 | K150: 0 | L150: =ROUND(VLOOKUP($C$5&B150,ConsolidadoServicios!P:Q,2,0)*80%,2) -> 0 | M150: ='Detalle Bienes de Aseo y Caf'!I150 -> 0
A151: 137 | B151: Guantes 8 (Compra) | C151: - Tipo mosquetero - Calibre mínimo de 40 - Tallas 7 a 9 o S a XL - Color negro | D151: Par | E151: 0 | F151: =IF(E151>0,(VLOOKUP($C$5&$C$6&B151,ConsolidadoServicios!$A:$K,11,0)),0) -> 0 | G151: =IF(E151>0,(VLOOKUP(B151,Minimos!$A:$B,2,0)),0) -> 0 | H151: 0 | J151: 0 | K151: 0 | L151: =ROUND(VLOOKUP($C$5&B151,ConsolidadoServicios!P:Q,2,0)*80%,2) -> 0 | M151: ='Detalle Bienes de Aseo y Caf'!I151 -> 0
A152: 138 | B152: Guantes 9 (Compra) | C152: - Elaborados en hilaza - Tallas 7 a 9 o S a XL | D152: Par | E152: 0 | F152: =IF(E152>0,(VLOOKUP($C$5&$C$6&B152,ConsolidadoServicios!$A:$K,11,0)),0) -> 0 | G152: =IF(E152>0,(VLOOKUP(B152,Minimos!$A:$B,2,0)),0) -> 0 | H152: 0 | J152: 0 | K152: 0 | L152: =ROUND(VLOOKUP($C$5&B152,ConsolidadoServicios!P:Q,2,0)*80%,2) -> 0 | M152: ='Detalle Bienes de Aseo y Caf'!I152 -> 0
A153: 139 | B153: Tapabocas 1 (Compra) | C153: - Elaborado en tela no tejida - Desechable - Con tiras elásticas | D153: Caja de mínimo 50 unidades | E153: 0 | F153: =IF(E153>0,(VLOOKUP($C$5&$C$6&B153,ConsolidadoServicios!$A:$K,11,0)),0) -> 0 | G153: =IF(E153>0,(VLOOKUP(B153,Minimos!$A:$B,2,0)),0) -> 0 | H153: 0 | J153: 0 | K153: 0 | L153: =ROUND(VLOOKUP($C$5&B153,ConsolidadoServicios!P:Q,2,0)*80%,2) -> 0 | M153: ='Detalle Bienes de Aseo y Caf'!I153 -> 0
A154: 140 | B154: Tapabocas 2 (Compra) | C154: - Elaborado en tela no tejida de Polipropileno y Poliéster - Desechable - Con tiras elásticas - Con soporte nasal | D154: Caja de mínimo 50 unidades | E154: 1 | F154: =IF(E154>0,(VLOOKUP($C$5&$C$6&B154,ConsolidadoServicios!$A:$K,11,0)),0) ->  | G154: =IF(E154>0,(VLOOKUP(B154,Minimos!$A:$B,2,0)),0) -> 15586 | H154: 0 | L154: =ROUND(VLOOKUP($C$5&B154,ConsolidadoServicios!P:Q,2,0)*80%,2) -> 0 | M154: ='Detalle Bienes de Aseo y Caf'!I154 -> 1
A155: 141 | B155: Papel higiénico 1 (Compra) | C155: - Rollo con longitud mínima de 20 metros - Doble hoja blanca - Sin fragancia | D155: Rollo | E155: 0 | F155: =IF(E155>0,(VLOOKUP($C$5&$C$6&B155,ConsolidadoServicios!$A:$K,11,0)),0) -> 0 | G155: =IF(E155>0,(VLOOKUP(B155,Minimos!$A:$B,2,0)),0) -> 0 | H155: 0 | J155: 0 | K155: 0 | L155: =ROUND(VLOOKUP($C$5&B155,ConsolidadoServicios!P:Q,2,0)*80%,2) -> 0 | M155: ='Detalle Bienes de Aseo y Caf'!I155 -> 0
A156: 142 | B156: Papel higiénico 2 (Compra) | C156: - Rollo con longitud mínima de 250 metros - Doble hoja de color natural - Sin fragancia | D156: Rollo | E156: 0 | F156: =IF(E156>0,(VLOOKUP($C$5&$C$6&B156,ConsolidadoServicios!$A:$K,11,0)),0) -> 0 | G156: =IF(E156>0,(VLOOKUP(B156,Minimos!$A:$B,2,0)),0) -> 0 | H156: 0 | J156: 0 | K156: 0 | L156: =ROUND(VLOOKUP($C$5&B156,ConsolidadoServicios!P:Q,2,0)*80%,2) -> 0 | M156: ='Detalle Bienes de Aseo y Caf'!I156 -> 0
A157: 143 | B157: Papel higiénico 3 (Compra) | C157: - Rollo con longitud mínima de 250 metros - Doble hoja blanca - Sin fragancia | D157: Rollo | E157: 4 | F157: =IF(E157>0,(VLOOKUP($C$5&$C$6&B157,ConsolidadoServicios!$A:$K,11,0)),0) ->  | G157: =IF(E157>0,(VLOOKUP(B157,Minimos!$A:$B,2,0)),0) -> 11164 | H157: 0 | L157: =ROUND(VLOOKUP($C$5&B157,ConsolidadoServicios!P:Q,2,0)*80%,2) -> 0 | M157: ='Detalle Bienes de Aseo y Caf'!I157 -> 4
A158: 144 | B158: Papel higiénico 4 (Compra) | C158: - Rollo con longitud mínima de 400 metros - Hoja sencilla de color natural - Sinfragancia | D158: Rollo | E158: 0 | F158: =IF(E158>0,(VLOOKUP($C$5&$C$6&B158,ConsolidadoServicios!$A:$K,11,0)),0) -> 0 | G158: =IF(E158>0,(VLOOKUP(B158,Minimos!$A:$B,2,0)),0) -> 0 | H158: 0 | J158: 0 | K158: 0 | L158: =ROUND(VLOOKUP($C$5&B158,ConsolidadoServicios!P:Q,2,0)*80%,2) -> 0 | M158: ='Detalle Bienes de Aseo y Caf'!I158 -> 0
A159: 145 | B159: Papel higiénico 5 (Compra) | C159: - Rollo con longitud mínima de 400 metros - Hoja sencilla de color blanco - Sin fragancia | D159: Rollo | E159: 0 | F159: =IF(E159>0,(VLOOKUP($C$5&$C$6&B159,ConsolidadoServicios!$A:$K,11,0)),0) -> 0 | G159: =IF(E159>0,(VLOOKUP(B159,Minimos!$A:$B,2,0)),0) -> 0 | H159: 0 | J159: 0 | K159: 0 | L159: =ROUND(VLOOKUP($C$5&B159,ConsolidadoServicios!P:Q,2,0)*80%,2) -> 0 | M159: ='Detalle Bienes de Aseo y Caf'!I159 -> 0
A160: 146 | B160: Toallas para manos 1 (Compra) | C160: - Rollo con longitud mínima de 100 metros - Doble hoja con un tamaño mínimo 15 cm de ancho - Disponibles en color blanco | D160: Rollo | E160: 0 | F160: =IF(E160>0,(VLOOKUP($C$5&$C$6&B160,ConsolidadoServicios!$A:$K,11,0)),0) -> 0 | G160: =IF(E160>0,(VLOOKUP(B160,Minimos!$A:$B,2,0)),0) -> 0 | H160: 0 | J160: 0 | K160: 0 | L160: =ROUND(VLOOKUP($C$5&B160,ConsolidadoServicios!P:Q,2,0)*80%,2) -> 0 | M160: ='Detalle Bienes de Aseo y Caf'!I160 -> 0
A161: 147 | B161: Toallas para manos 2 (Compra) | C161: - Rollo con longitud mínima de 100 metros - Doble hoja con un tamaño mínimo 15 cm de ancho - Disponibles en color natural | D161: Rollo | E161: 0 | F161: =IF(E161>0,(VLOOKUP($C$5&$C$6&B161,ConsolidadoServicios!$A:$K,11,0)),0) -> 0 | G161: =IF(E161>0,(VLOOKUP(B161,Minimos!$A:$B,2,0)),0) -> 0 | H161: 0 | J161: 0 | K161: 0 | L161: =ROUND(VLOOKUP($C$5&B161,ConsolidadoServicios!P:Q,2,0)*80%,2) -> 0 | M161: ='Detalle Bienes de Aseo y Caf'!I161 -> 0
A162: 148 | B162: Toallas para manos 3 (Compra) | C162: - Rollo con longitud mínima de 150 metros - Doble hoja con un tamaño mínimo 15 cm de ancho - Disponibles en color blanco - Sin olor o fragancia | D162: Rollo | E162: 0 | F162: =IF(E162>0,(VLOOKUP($C$5&$C$6&B162,ConsolidadoServicios!$A:$K,11,0)),0) -> 0 | G162: =IF(E162>0,(VLOOKUP(B162,Minimos!$A:$B,2,0)),0) -> 0 | H162: 0 | J162: 0 | K162: 0 | L162: =ROUND(VLOOKUP($C$5&B162,ConsolidadoServicios!P:Q,2,0)*80%,2) -> 0 | M162: ='Detalle Bienes de Aseo y Caf'!I162 -> 0
A163: 149 | B163: Toallas para manos 4 (Compra) | C163: - Rollo con longitud mínima de 150 metros - Doble hoja con un tamaño mínimo 15 cm de ancho - Disponibles en color natural - Sin fragancia | D163: Rollo | E163: 0 | F163: =IF(E163>0,(VLOOKUP($C$5&$C$6&B163,ConsolidadoServicios!$A:$K,11,0)),0) -> 0 | G163: =IF(E163>0,(VLOOKUP(B163,Minimos!$A:$B,2,0)),0) -> 0 | H163: 0 | J163: 0 | K163: 0 | L163: =ROUND(VLOOKUP($C$5&B163,ConsolidadoServicios!P:Q,2,0)*80%,2) -> 0 | M163: ='Detalle Bienes de Aseo y Caf'!I163 -> 0
A164: 150 | B164: Toallas para manos 5 (Compra) | C164: - Toallas interdobladas, paquete con mínimo 150 unidades - Doble hoja con un tamaño mínimo de 20 cm de largo por 15 cm de ancho - Hoja color natural | D164: Unidad | E164: 0 | F164: =IF(E164>0,(VLOOKUP($C$5&$C$6&B164,ConsolidadoServicios!$A:$K,11,0)),0) -> 0 | G164: =IF(E164>0,(VLOOKUP(B164,Minimos!$A:$B,2,0)),0) -> 0 | H164: 0 | J164: 0 | K164: 0 | L164: =ROUND(VLOOKUP($C$5&B164,ConsolidadoServicios!P:Q,2,0)*80%,2) -> 0 | M164: ='Detalle Bienes de Aseo y Caf'!I164 -> 0
A165: 151 | B165: Toallas para manos 6 (Compra) | C165: - Toallas interdobladas, paquete con mínimo 150 unidades - Doble hoja con un tamaño mínimo de 20 cm de largo por 15 cm de ancho - Hoja color blanco | D165: Unidad | E165: 8 | F165: =IF(E165>0,(VLOOKUP($C$5&$C$6&B165,ConsolidadoServicios!$A:$K,11,0)),0) ->  | G165: =IF(E165>0,(VLOOKUP(B165,Minimos!$A:$B,2,0)),0) -> 6962 | H165: 0 | L165: =ROUND(VLOOKUP($C$5&B165,ConsolidadoServicios!P:Q,2,0)*80%,2) -> 0 | M165: ='Detalle Bienes de Aseo y Caf'!I165 -> 8
A166: 152 | B166: Toallas para manos 7 (Compra) | C166: - Toallas con precorte - Rollo con longitud mínima de 100 metros - Doble hoja con tamaño mínimo de 15 cms de ancho - Color Blanco - Sin fragancia | D166: Unidad | E166: 0 | F166: =IF(E166>0,(VLOOKUP($C$5&$C$6&B166,ConsolidadoServicios!$A:$K,11,0)),0) -> 0 | G166: =IF(E166>0,(VLOOKUP(B166,Minimos!$A:$B,2,0)),0) -> 0 | H166: 0 | J166: 0 | K166: 0 | L166: =ROUND(VLOOKUP($C$5&B166,ConsolidadoServicios!P:Q,2,0)*80%,2) -> 0 | M166: ='Detalle Bienes de Aseo y Caf'!I166 -> 0
A167: 153 | B167: Toallas para manos 8 (Compra) | C167: - Toallas con precorte - Rollo con longitud mínima de 100 metros - Doble hoja con tamaño mínimo de 15 cms de ancho - Color Natural - Sin fragancia | D167: Unidad | E167: 0 | F167: =IF(E167>0,(VLOOKUP($C$5&$C$6&B167,ConsolidadoServicios!$A:$K,11,0)),0) -> 0 | G167: =IF(E167>0,(VLOOKUP(B167,Minimos!$A:$B,2,0)),0) -> 0 | H167: 0 | J167: 0 | K167: 0 | L167: =ROUND(VLOOKUP($C$5&B167,ConsolidadoServicios!P:Q,2,0)*80%,2) -> 0 | M167: ='Detalle Bienes de Aseo y Caf'!I167 -> 0
A168: 154 | B168: Pañuelos (Compra) | C168: - Doble hoja - Color blanco | D168: Caja de mínimo 50 unidades | E168: 0 | F168: =IF(E168>0,(VLOOKUP($C$5&$C$6&B168,ConsolidadoServicios!$A:$K,11,0)),0) -> 0 | G168: =IF(E168>0,(VLOOKUP(B168,Minimos!$A:$B,2,0)),0) -> 0 | H168: 0 | J168: 0 | K168: 0 | L168: =ROUND(VLOOKUP($C$5&B168,ConsolidadoServicios!P:Q,2,0)*80%,2) -> 0 | M168: ='Detalle Bienes de Aseo y Caf'!I168 -> 0
A169: 155 | B169: Vasos biodegradables 1 (Compra) | C169: - Elaborado en cartón 97% biodegradable - Capacidad mínima de 4 oz | D169: Paquete de mínimo 50 unidades | E169: 2 | F169: =IF(E169>0,(VLOOKUP($C$5&$C$6&B169,ConsolidadoServicios!$A:$K,11,0)),0) ->  | G169: =IF(E169>0,(VLOOKUP(B169,Minimos!$A:$B,2,0)),0) -> 5190 | H169: 0 | L169: =ROUND(VLOOKUP($C$5&B169,ConsolidadoServicios!P:Q,2,0)*80%,2) -> 0 | M169: ='Detalle Bienes de Aseo y Caf'!I169 -> 2
A170: 156 | B170: Vasos biodegradables 2 (Compra) | C170: - Elaborado en cartón 97% biodegradable - Capacidad mínima de 6 oz | D170: Paquete de mínimo 50 | E170: 0 | F170: =IF(E170>0,(VLOOKUP($C$5&$C$6&B170,ConsolidadoServicios!$A:$K,11,0)),0) -> 0 | G170: =IF(E170>0,(VLOOKUP(B170,Minimos!$A:$B,2,0)),0) -> 0 | H170: 0 | J170: 0 | K170: 0 | L170: =ROUND(VLOOKUP($C$5&B170,ConsolidadoServicios!P:Q,2,0)*80%,2) -> 0 | M170: ='Detalle Bienes de Aseo y Caf'!I170 -> 0
A171: 157 | B171: Vasos biodegradables 3 (Compra) | C171: - Elaborado en cartón 97% biodegradable - Capacidad mínima de 9 oz | D171: Paquete de mínimo 40 unidades | E171: 1 | F171: =IF(E171>0,(VLOOKUP($C$5&$C$6&B171,ConsolidadoServicios!$A:$K,11,0)),0) ->  | G171: =IF(E171>0,(VLOOKUP(B171,Minimos!$A:$B,2,0)),0) -> 7965 | H171: 0 | L171: =ROUND(VLOOKUP($C$5&B171,ConsolidadoServicios!P:Q,2,0)*80%,2) -> 0 | M171: ='Detalle Bienes de Aseo y Caf'!I171 -> 1
A172: 158 | B172: Vasos biodegradables 4 (Compra) | C172: - Capacidad mínima de 9 onzas - Sin tapa - Liso - Biodegradable y compostable. - Elaborado en polyboard (cartón) y/ocon la fibra de caña de azúcar o almidón de maíz | D172: Paquete de mínimo 50 unidades | E172: 0 | F172: =IF(E172>0,(VLOOKUP($C$5&$C$6&B172,ConsolidadoServicios!$A:$K,11,0)),0) -> 0 | G172: =IF(E172>0,(VLOOKUP(B172,Minimos!$A:$B,2,0)),0) -> 0 | H172: 0 | J172: 0 | K172: 0 | L172: =ROUND(VLOOKUP($C$5&B172,ConsolidadoServicios!P:Q,2,0)*80%,2) -> 0 | M172: ='Detalle Bienes de Aseo y Caf'!I172 -> 0
A173: 159 | B173: Mezclador 1 (Compra) | C173: - Mezcladores elaborados en madera y/o apartir de recursos renovables como la caña de azucar y/o almidón de maíz - Longitud mínima de 11 cm | D173: Paquete de mínimo 500 | E173: 0 | F173: =IF(E173>0,(VLOOKUP($C$5&$C$6&B173,ConsolidadoServicios!$A:$K,11,0)),0) -> 0 | G173: =IF(E173>0,(VLOOKUP(B173,Minimos!$A:$B,2,0)),0) -> 0 | H173: 0 | J173: 0 | K173: 0 | L173: =ROUND(VLOOKUP($C$5&B173,ConsolidadoServicios!P:Q,2,0)*80%,2) -> 0 | M173: ='Detalle Bienes de Aseo y Caf'!I173 -> 0
A174: 160 | B174: Servilleta papel (Compra) | C174: - Tipo cafetería - Dobe hoja - Color blanco - Dimensiones mínimas de 21,5 cm de largo y 14 cm de ancho - 100% Biodegradable - Elaborado a base de papel reciclado no clorado - No debe contener PVC o Poliestireno expandido u otros plásticos de un solo uso tanto en el envase como en el embalaje. | D174: Paquete de mínimo 100 unidades | E174: 3 | F174: =IF(E174>0,(VLOOKUP($C$5&$C$6&B174,ConsolidadoServicios!$A:$K,11,0)),0) ->  | G174: =IF(E174>0,(VLOOKUP(B174,Minimos!$A:$B,2,0)),0) -> 2292 | H174: 0 | L174: =ROUND(VLOOKUP($C$5&B174,ConsolidadoServicios!P:Q,2,0)*80%,2) -> 0 | M174: ='Detalle Bienes de Aseo y Caf'!I174 -> 3
A175: 161 | B175: Filtro para greca 1 (Compra) | C175: - Elaborada en tela - Para greca - Capacidad de media libra - No debe contener PVC o Poliestireno expandido u otros plásticos de un solo uso tanto en el envase como en el embalaje | D175: Unidad | E175: 0 | F175: =IF(E175>0,(VLOOKUP($C$5&$C$6&B175,ConsolidadoServicios!$A:$K,11,0)),0) -> 0 | G175: =IF(E175>0,(VLOOKUP(B175,Minimos!$A:$B,2,0)),0) -> 0 | H175: 0 | J175: 0 | K175: 0 | L175: =ROUND(VLOOKUP($C$5&B175,ConsolidadoServicios!P:Q,2,0)*80%,2) -> 0 | M175: ='Detalle Bienes de Aseo y Caf'!I175 -> 0
A176: 162 | B176: Filtro para greca 2 (Compra) | C176: - Elaborada en tela - Para greca - Capacidad de una 1 libra - No debe contener PVC o Poliestireno expandido u otros plásticos de un solo uso tanto en el envase como en el embalaje. | D176: Unidad | E176: 0 | F176: =IF(E176>0,(VLOOKUP($C$5&$C$6&B176,ConsolidadoServicios!$A:$K,11,0)),0) -> 0 | G176: =IF(E176>0,(VLOOKUP(B176,Minimos!$A:$B,2,0)),0) -> 0 | H176: 0 | J176: 0 | K176: 0 | L176: =ROUND(VLOOKUP($C$5&B176,ConsolidadoServicios!P:Q,2,0)*80%,2) -> 0 | M176: ='Detalle Bienes de Aseo y Caf'!I176 -> 0
A177: 163 | B177: Filtro para greca 3 (Compra) | C177: - Elaborada en tela - Para greca - Capacidad de dos 2 libras - No debe contener PVC o Poliestireno expandido u otros plásticos de un solo uso tanto en el envase como en el embalaje. | D177: Unidad | E177: 0 | F177: =IF(E177>0,(VLOOKUP($C$5&$C$6&B177,ConsolidadoServicios!$A:$K,11,0)),0) -> 0 | G177: =IF(E177>0,(VLOOKUP(B177,Minimos!$A:$B,2,0)),0) -> 0 | H177: 0 | J177: 0 | K177: 0 | L177: =ROUND(VLOOKUP($C$5&B177,ConsolidadoServicios!P:Q,2,0)*80%,2) -> 0 | M177: ='Detalle Bienes de Aseo y Caf'!I177 -> 0
A178: 164 | B178: Churrusco para tubos de greca (Compra) | C178: - Cepillo para lavado y fregado de grecas. - No debe contener PVC, Poliestireno expandido u otros plásticos de un solo uso tanto en el envase como en el embalaje. - Base y mango elaborados en alambre | D178: Unidad | E178: 0 | F178: =IF(E178>0,(VLOOKUP($C$5&$C$6&B178,ConsolidadoServicios!$A:$K,11,0)),0) -> 0 | G178: =IF(E178>0,(VLOOKUP(B178,Minimos!$A:$B,2,0)),0) -> 0 | H178: 0 | J178: 0 | K178: 0 | L178: =ROUND(VLOOKUP($C$5&B178,ConsolidadoServicios!P:Q,2,0)*80%,2) -> 0 | M178: ='Detalle Bienes de Aseo y Caf'!I178 -> 0
A179: 165 | B179: Papel Aluminio 1 (Compra) | C179: - Longitud mínima del rollo de 40 metros - Ancho mínimo del rollo de 27 cm | D179: Caja de carton con un 1 rollo de mínimo 40 metros de largo y 27 cm de ancho | E179: 0 | F179: =IF(E179>0,(VLOOKUP($C$5&$C$6&B179,ConsolidadoServicios!$A:$K,11,0)),0) -> 0 | G179: =IF(E179>0,(VLOOKUP(B179,Minimos!$A:$B,2,0)),0) -> 0 | H179: 0 | J179: 0 | K179: 0 | L179: =ROUND(VLOOKUP($C$5&B179,ConsolidadoServicios!P:Q,2,0)*80%,2) -> 0 | M179: ='Detalle Bienes de Aseo y Caf'!I179 -> 0
A180: 166 | B180: Papel Aluminio 2 (Compra) | C180: - Longitud mínima del rollo de 100 metros - Ancho mínimo del rollo de 27 cm | D180: Caja de carton con un 1 rollo de mínimo 100 metros de largo y 27 cm de ancho | E180: 0 | F180: =IF(E180>0,(VLOOKUP($C$5&$C$6&B180,ConsolidadoServicios!$A:$K,11,0)),0) -> 0 | G180: =IF(E180>0,(VLOOKUP(B180,Minimos!$A:$B,2,0)),0) -> 0 | H180: 0 | J180: 0 | K180: 0 | L180: =ROUND(VLOOKUP($C$5&B180,ConsolidadoServicios!P:Q,2,0)*80%,2) -> 0 | M180: ='Detalle Bienes de Aseo y Caf'!I180 -> 0
A181: 167 | B181: Película transparente para alimentos (Compra) | C181: - Longitud mínima del rollo de 50 metros - Ancho mínimo del rollo de 27 cm | D181: Caja de carton con un 1 rollo | E181: 0 | F181: =IF(E181>0,(VLOOKUP($C$5&$C$6&B181,ConsolidadoServicios!$A:$K,11,0)),0) -> 0 | G181: =IF(E181>0,(VLOOKUP(B181,Minimos!$A:$B,2,0)),0) -> 0 | H181: 0 | J181: 0 | K181: 0 | L181: =ROUND(VLOOKUP($C$5&B181,ConsolidadoServicios!P:Q,2,0)*80%,2) -> 0 | M181: ='Detalle Bienes de Aseo y Caf'!I181 -> 0
A182: 168 | B182: Termo para café 1 (Compra) | C182: - Elaborado en plástico - Capacidad mínima de 1 litro | D182: Unidad | E182: 0 | F182: =IF(E182>0,(VLOOKUP($C$5&$C$6&B182,ConsolidadoServicios!$A:$K,11,0)),0) -> 0 | G182: =IF(E182>0,(VLOOKUP(B182,Minimos!$A:$B,2,0)),0) -> 0 | H182: 0 | J182: 0 | K182: 0 | L182: =ROUND(VLOOKUP($C$5&B182,ConsolidadoServicios!P:Q,2,0)*80%,2) -> 0 | M182: ='Detalle Bienes de Aseo y Caf'!I182 -> 0
A183: 169 | B183: Termo para café 2 (Compra) | C183: - Térmico, con bomba tipo dispensador. Portatil. - Bomba manual para dispensar la bebida. - Acero inoxidable y plastico. - Agarradera plastica, tapa con empaque, bomba manual. - Capacidad mínima de 3 litros | D183: Unidad | E183: 0 | F183: =IF(E183>0,(VLOOKUP($C$5&$C$6&B183,ConsolidadoServicios!$A:$K,11,0)),0) -> 0 | G183: =IF(E183>0,(VLOOKUP(B183,Minimos!$A:$B,2,0)),0) -> 0 | H183: 0 | J183: 0 | K183: 0 | L183: =ROUND(VLOOKUP($C$5&B183,ConsolidadoServicios!P:Q,2,0)*80%,2) -> 0 | M183: ='Detalle Bienes de Aseo y Caf'!I183 -> 0
A184: 170 | B184: Café 1 (Compra) | C184: - 100% café tostado y molido. - Tostión media. - Puntaje en taza mayor o igual a 80 puntos catación SCA y/o Denominación de Origen (Anexo 6) - Empacada en bolsa de polipropileno aluminizada resistente a la humedad y al oxígeno. - Debe cumplir con las Resoluciones 333 de 2011 y 2674 de 2013 hasta la entrada en vigencia de la Resolución 810 de 2021 y aquellas que la modifiquen, adicionen o deroguen. | D184: Libra | E184: 6 | F184: =IF(E184>0,(VLOOKUP($C$5&$C$6&B184,ConsolidadoServicios!$A:$K,11,0)),0) ->  | G184: =IF(E184>0,(VLOOKUP(B184,Minimos!$A:$B,2,0)),0) -> 19115 | H184: 0 | L184: =ROUND(VLOOKUP($C$5&B184,ConsolidadoServicios!P:Q,2,0)*80%,2) -> 0 | M184: ='Detalle Bienes de Aseo y Caf'!I184 -> 6
A185: 171 | B185: Café 2 (Compra) | C185: - Tostión media - Descafeinado - Empacado en bolsa de polipropileno aluminizada resistente a la humedad y al oxigeno - Debe cumplir con las Resoluciones 333 de 2011 y 2674 de 2013 y aquellas que la modifiquen, adicionen o deroguen. | D185: Libra | E185: 0 | F185: =IF(E185>0,(VLOOKUP($C$5&$C$6&B185,ConsolidadoServicios!$A:$K,11,0)),0) -> 0 | G185: =IF(E185>0,(VLOOKUP(B185,Minimos!$A:$B,2,0)),0) -> 0 | H185: 0 | J185: 0 | K185: 0 | L185: =ROUND(VLOOKUP($C$5&B185,ConsolidadoServicios!P:Q,2,0)*80%,2) -> 0 | M185: ='Detalle Bienes de Aseo y Caf'!I185 -> 0
A186: 172 | B186: Café 3 (Compra) | C186: - Instantáneo, para máquinas automáticas - Tostión media - Empacada en bolsa de polipropileno aluminizada resistente a la humedad y al oxígeno. - Debe cumplir con las Resoluciones 333 de 2011 y 2674 de 2013 hasta la entrada en vigencia de la Resolución 810 de 2021 y aquellas que la modifiquen, adicionen o deroguen. | D186: Bolsa de mínimo 500 g | E186: 0 | F186: =IF(E186>0,(VLOOKUP($C$5&$C$6&B186,ConsolidadoServicios!$A:$K,11,0)),0) -> 0 | G186: =IF(E186>0,(VLOOKUP(B186,Minimos!$A:$B,2,0)),0) -> 0 | H186: 0 | J186: 0 | K186: 0 | L186: =ROUND(VLOOKUP($C$5&B186,ConsolidadoServicios!P:Q,2,0)*80%,2) -> 0 | M186: ='Detalle Bienes de Aseo y Caf'!I186 -> 0
A187: 173 | B187: Café Social (Compra) | C187: - Diferentes tostiones - Puntaje en taza mayor o igual a a 82 puntos catación SCA y/o orgánico y/o artesanal y/o con Denominación de Origen - Empacada en bolsa de polipropileno aluminizada resistente a la humedad y al oxígeno. - Debe cumplir con las Resoluciones 333 de 2011 y 2674 de 2013 hasta la entrada en vigencia de la Resolución 810 de 2021 y aquellas que la modifiquen, adicionen o deroguen | D187: Bolsa de mínimo 500 g | E187: 0 | F187: =IF(E187>0,(VLOOKUP($C$5&$C$6&B187,ConsolidadoServicios!$A:$K,11,0)),0) -> 0 | G187: =IF(E187>0,(VLOOKUP(B187,Minimos!$A:$B,2,0)),0) -> 0 | H187: 0 | J187: 0 | K187: 0 | L187: =ROUND(VLOOKUP($C$5&B187,ConsolidadoServicios!P:Q,2,0)*80%,2) -> 0 | M187: ='Detalle Bienes de Aseo y Caf'!I187 -> 0
A188: 174 | B188: Crema para café (Compra) | C188: - No láctea - Debe cumplir con Resolución 333 de 2011 sobre rotulado y etiquetado nutricional y las normas que la modifiquen | D188: Bolsas de mínimo 100 sobres de mínimo 4 g | E188: 0 | F188: =IF(E188>0,(VLOOKUP($C$5&$C$6&B188,ConsolidadoServicios!$A:$K,11,0)),0) -> 0 | G188: =IF(E188>0,(VLOOKUP(B188,Minimos!$A:$B,2,0)),0) -> 0 | H188: 0 | J188: 0 | K188: 0 | L188: =ROUND(VLOOKUP($C$5&B188,ConsolidadoServicios!P:Q,2,0)*80%,2) -> 0 | M188: ='Detalle Bienes de Aseo y Caf'!I188 -> 0
A189: 175 | B189: Azúcar 1 (Compra) | C189: - Blanca - Empaque elaborado en materiales atóxicos - Debe cumplir con Resolución 333 de 2011 sobre rotulado y etiquetado nutricional y las normas que la modifiquen | D189: Bolsa de mínimo 200 sobres o tubipacks de 5 g | E189: 4 | F189: =IF(E189>0,(VLOOKUP($C$5&$C$6&B189,ConsolidadoServicios!$A:$K,11,0)),0) ->  | G189: =IF(E189>0,(VLOOKUP(B189,Minimos!$A:$B,2,0)),0) -> 9265 | H189: 0 | L189: =ROUND(VLOOKUP($C$5&B189,ConsolidadoServicios!P:Q,2,0)*80%,2) -> 0 | M189: ='Detalle Bienes de Aseo y Caf'!I189 -> 4
A190: 176 | B190: Azúcar 2 (Compra) | C190: - Blanca - Empaque elaborado en materiales atóxicos - Debe cumplir con Resolución 333 de 2011 sobre rotulado y etiquetado nutricional y las normas que la modifiquen | D190: Bolsa de mínimo 200 sobres o tubipacks de 3,5 g | E190: 0 | F190: =IF(E190>0,(VLOOKUP($C$5&$C$6&B190,ConsolidadoServicios!$A:$K,11,0)),0) -> 0 | G190: =IF(E190>0,(VLOOKUP(B190,Minimos!$A:$B,2,0)),0) -> 0 | H190: 0 | J190: 0 | K190: 0 | L190: =ROUND(VLOOKUP($C$5&B190,ConsolidadoServicios!P:Q,2,0)*80%,2) -> 0 | M190: ='Detalle Bienes de Aseo y Caf'!I190 -> 0
A191: 177 | B191: Azúcar 3 (Compra) | C191: - Blanca - Empaque elaborado en materiales atóxicos - Debe cumplir con Resolución 333 de 2011 sobre rotulado y etiquetado nutricional y las normas que la modifiquen | D191: Libra | E191: 0 | F191: =IF(E191>0,(VLOOKUP($C$5&$C$6&B191,ConsolidadoServicios!$A:$K,11,0)),0) -> 0 | G191: =IF(E191>0,(VLOOKUP(B191,Minimos!$A:$B,2,0)),0) -> 0 | H191: 0 | J191: 0 | K191: 0 | L191: =ROUND(VLOOKUP($C$5&B191,ConsolidadoServicios!P:Q,2,0)*80%,2) -> 0 | M191: ='Detalle Bienes de Aseo y Caf'!I191 -> 0
A192: 178 | B192: Azúcar 4 (Compra) | C192: - Morena - Empaque elaborado en materiales atóxicos - Debe cumplir con Resolución 333 de 2011 sobre rotulado y etiquetado nutricional y las normas que la modifiquen | D192: Libra | E192: 0 | F192: =IF(E192>0,(VLOOKUP($C$5&$C$6&B192,ConsolidadoServicios!$A:$K,11,0)),0) -> 0 | G192: =IF(E192>0,(VLOOKUP(B192,Minimos!$A:$B,2,0)),0) -> 0 | H192: 0 | J192: 0 | K192: 0 | L192: =ROUND(VLOOKUP($C$5&B192,ConsolidadoServicios!P:Q,2,0)*80%,2) -> 0 | M192: ='Detalle Bienes de Aseo y Caf'!I192 -> 0
A193: 179 | B193: Endulzante (Compra) | C193: - Sin calorías - Empaque elaborado en materiales atóxicos - Debe cumplir con Resolución 333 de 2011 sobre rotulado y etiquetado nutricional y las normas que la modifiquen | D193: Caja de mínimo 100 sobres | E193: 0 | F193: =IF(E193>0,(VLOOKUP($C$5&$C$6&B193,ConsolidadoServicios!$A:$K,11,0)),0) -> 0 | G193: =IF(E193>0,(VLOOKUP(B193,Minimos!$A:$B,2,0)),0) -> 0 | H193: 0 | J193: 0 | K193: 0 | L193: =ROUND(VLOOKUP($C$5&B193,ConsolidadoServicios!P:Q,2,0)*80%,2) -> 0 | M193: ='Detalle Bienes de Aseo y Caf'!I193 -> 0
A194: 180 | B194: Panela (Compra) | C194: - Panela instantánes pulverizada, deshidratada - Debe cumplir con la NTC 1311 sobreo productos agrícolas - Empaque elaborado en materiales atóxicos - Debe cumplir con la Resolucion 779 de 2006 - Debe cumplir con Resolución 333 de 2011 sobre rotulado y etiquetado nutricional y las normas que la modifiquen | D194: Bolsa de mínimo 100 sobres de mínimo 5 g | E194: 0 | F194: =IF(E194>0,(VLOOKUP($C$5&$C$6&B194,ConsolidadoServicios!$A:$K,11,0)),0) -> 0 | G194: =IF(E194>0,(VLOOKUP(B194,Minimos!$A:$B,2,0)),0) -> 0 | H194: 0 | J194: 0 | K194: 0 | L194: =ROUND(VLOOKUP($C$5&B194,ConsolidadoServicios!P:Q,2,0)*80%,2) -> 0 | M194: ='Detalle Bienes de Aseo y Caf'!I194 -> 0
A195: 181 | B195: Sal 1 (Compra) | C195: - Refinada, con un 99,9% de pureza - Con adiciones de yodo y flúor - Debe cumplir con Resolución 333 de 2011 sobre rotulado y etiquetado nutricional y las normas que la modifiquen | D195: Libra (500 g) | E195: 0 | F195: =IF(E195>0,(VLOOKUP($C$5&$C$6&B195,ConsolidadoServicios!$A:$K,11,0)),0) -> 0 | G195: =IF(E195>0,(VLOOKUP(B195,Minimos!$A:$B,2,0)),0) -> 0 | H195: 0 | J195: 0 | K195: 0 | L195: =ROUND(VLOOKUP($C$5&B195,ConsolidadoServicios!P:Q,2,0)*80%,2) -> 0 | M195: ='Detalle Bienes de Aseo y Caf'!I195 -> 0
A196: 182 | B196: Sal 2 (Compra) | C196: - Refinada, con un 99,9% de pureza - Con adiciones de yodo y flúor - Debe cumplir con Resolución 333 de 2011 sobre rotulado y etiquetado nutricional y las normas que la modifiquen | D196: 1 kg (1.000 g) | E196: 0 | F196: =IF(E196>0,(VLOOKUP($C$5&$C$6&B196,ConsolidadoServicios!$A:$K,11,0)),0) -> 0 | G196: =IF(E196>0,(VLOOKUP(B196,Minimos!$A:$B,2,0)),0) -> 0 | H196: 0 | J196: 0 | K196: 0 | L196: =ROUND(VLOOKUP($C$5&B196,ConsolidadoServicios!P:Q,2,0)*80%,2) -> 0 | M196: ='Detalle Bienes de Aseo y Caf'!I196 -> 0
A197: 183 | B197: Sal 3 (Compra) | C197: - Refinada, con un 99,9% de pureza - Con adiciones de yodo y flúor - Debe cumplir con Resolución 333 de 2011 sobre rotulado y etiquetado nutricional y las normas que la modifiquen | D197: Salero de mínimo 130 g | E197: 0 | F197: =IF(E197>0,(VLOOKUP($C$5&$C$6&B197,ConsolidadoServicios!$A:$K,11,0)),0) -> 0 | G197: =IF(E197>0,(VLOOKUP(B197,Minimos!$A:$B,2,0)),0) -> 0 | H197: 0 | J197: 0 | K197: 0 | L197: =ROUND(VLOOKUP($C$5&B197,ConsolidadoServicios!P:Q,2,0)*80%,2) -> 0 | M197: ='Detalle Bienes de Aseo y Caf'!I197 -> 0
A198: 184 | B198: Aromática (Compra) | C198: - Para infusión - Cajas disponbiles en mínimo tres (3) sabores - 100% naturales | D198: Cajas de mínimo 20 en sobres. | E198: 3 | F198: =IF(E198>0,(VLOOKUP($C$5&$C$6&B198,ConsolidadoServicios!$A:$K,11,0)),0) ->  | G198: =IF(E198>0,(VLOOKUP(B198,Minimos!$A:$B,2,0)),0) -> 1708 | H198: 0 | L198: =ROUND(VLOOKUP($C$5&B198,ConsolidadoServicios!P:Q,2,0)*80%,2) -> 0 | M198: ='Detalle Bienes de Aseo y Caf'!I198 -> 3
A199: 185 | B199: Aromática de panela (Compra) | C199: - Para infusión - Cajas disponbiles en sabor limón, yerbabuena, canela y naranja - Panela 100% natural y ecológica - Embalaje en cartón corrugado - Debe cumplir con la NTC 1311 sobre productos agrícolas - Empaque elaborado en materiales atóxicos - Debe cumplir con la Resolucion 779 de 2006 - Debe cumplir con Resolución 333 de 2011 sobre rotulado y etiquetado nutricional y las normas que la modifiquen. - Uso: Panela instantánea soluble al agua - Azúcares reductores expresados en glucosa, mínimo 5,74%; azúcares no reductores expresados en sacarosa, máximo 90%; proteínas, mínimo 0,2%; cenizas, mínimo 1%; humedad, máximo 5%; plomo expresado como As en mg/kg, máximo 0,1; - No debe contener PVC o Poliestireno expandido u otros plásticos de un solo uso tanto en el envase como en el embalaje. | D199: Cajas de mínimo 20 en sobres. | E199: 0 | F199: =IF(E199>0,(VLOOKUP($C$5&$C$6&B199,ConsolidadoServicios!$A:$K,11,0)),0) -> 0 | G199: =IF(E199>0,(VLOOKUP(B199,Minimos!$A:$B,2,0)),0) -> 0 | H199: 0 | J199: 0 | K199: 0 | L199: =ROUND(VLOOKUP($C$5&B199,ConsolidadoServicios!P:Q,2,0)*80%,2) -> 0 | M199: ='Detalle Bienes de Aseo y Caf'!I199 -> 0
A200: 186 | B200: Bebida de frutas (Compra) | C200: - En jarabe - Cajas disponbiles en mínimo tres (3) sabores | D200: Caja de mínimo 20 sobres | E200: 0 | F200: =IF(E200>0,(VLOOKUP($C$5&$C$6&B200,ConsolidadoServicios!$A:$K,11,0)),0) -> 0 | G200: =IF(E200>0,(VLOOKUP(B200,Minimos!$A:$B,2,0)),0) -> 0 | H200: 0 | J200: 0 | K200: 0 | L200: =ROUND(VLOOKUP($C$5&B200,ConsolidadoServicios!P:Q,2,0)*80%,2) -> 0 | M200: ='Detalle Bienes de Aseo y Caf'!I200 -> 0
A201: 187 | B201: Bebida de panela (Compra) | C201: - Bebida instantánea granulada - Cajas disponbiles en mínimo tres (3) sabores | D201: Caja de mínimo 25 sobres | E201: 0 | F201: =IF(E201>0,(VLOOKUP($C$5&$C$6&B201,ConsolidadoServicios!$A:$K,11,0)),0) -> 0 | G201: =IF(E201>0,(VLOOKUP(B201,Minimos!$A:$B,2,0)),0) -> 0 | H201: 0 | J201: 0 | K201: 0 | L201: =ROUND(VLOOKUP($C$5&B201,ConsolidadoServicios!P:Q,2,0)*80%,2) -> 0 | M201: ='Detalle Bienes de Aseo y Caf'!I201 -> 0
A202: 188 | B202: Té (Compra) | C202: - Para infusión - Cajas disponbiles en mínimo tres (3) sabores - 100% naturales | D202: Caja x 20 mínimo sobres | E202: 0 | F202: =IF(E202>0,(VLOOKUP($C$5&$C$6&B202,ConsolidadoServicios!$A:$K,11,0)),0) -> 0 | G202: =IF(E202>0,(VLOOKUP(B202,Minimos!$A:$B,2,0)),0) -> 0 | H202: 0 | J202: 0 | K202: 0 | L202: =ROUND(VLOOKUP($C$5&B202,ConsolidadoServicios!P:Q,2,0)*80%,2) -> 0 | M202: ='Detalle Bienes de Aseo y Caf'!I202 -> 0
A203: 189 | B203: Infusión frutal (Compra) | C203: - Para infusión - 100% naturales - Sabores surtidos | D203: Caja x 20 mínimo sobres | E203: 3 | F203: =IF(E203>0,(VLOOKUP($C$5&$C$6&B203,ConsolidadoServicios!$A:$K,11,0)),0) ->  | G203: =IF(E203>0,(VLOOKUP(B203,Minimos!$A:$B,2,0)),0) -> 2424 | H203: 0 | L203: =ROUND(VLOOKUP($C$5&B203,ConsolidadoServicios!P:Q,2,0)*80%,2) -> 0 | M203: ='Detalle Bienes de Aseo y Caf'!I203 -> 3
A204: 190 | B204: Agua potable 1 (Compra) | C204: - Agua potable purificada sin gas | D204: Botella plástica de mínimo 250 ml | E204: 0 | F204: =IF(E204>0,(VLOOKUP($C$5&$C$6&B204,ConsolidadoServicios!$A:$K,11,0)),0) -> 0 | G204: =IF(E204>0,(VLOOKUP(B204,Minimos!$A:$B,2,0)),0) -> 0 | H204: 0 | J204: 0 | K204: 0 | L204: =ROUND(VLOOKUP($C$5&B204,ConsolidadoServicios!P:Q,2,0)*80%,2) -> 0 | M204: ='Detalle Bienes de Aseo y Caf'!I204 -> 0
... 218 more rows

Sheet Cotizacion
B1: COTIZACIÓN ASEO Y CAFETERIA
B2: =+'Solicitud de Cotización General'!A4 -> Versión: 42 ---- 14/05/2024
B3: Región de Cobertura: | D3: ='Solicitud de Cotización General'!H9 -> 13
B4: Nombre del Proveedor:
B6: Paquete de Servicios | J6: Valores
B7: Item | C7: Categoría | D7: Servicio | E7: Característica 1 | F7: Disponibilidad | G7: Cantidad | H7: Unidad | I7: Vigencia / Unidad | J7: Valor unitario | K7: Descuento % | L7: Precio Unitario con Descuento | M7: Nuevo precio cláusula 8 | N7: Valor Mensual / Valor X Unidad | O7: Recargo por Trabajo nocturno, extra, dominical y festivo | P7: Recargo por dotación especial | Q7: Valor Total | R7: NomCoupa
A8: =AND(L8>=2465868,K8>=0,K8<=1) ->  | B8: 1 | C8: Servicio de Personal | D8: Operario de aseo y cafetería | E8: Operario de aseo y cafetería | F8: Tiempo Completo | G8: 1 | H8: Mes | I8: 7 | J8: =VLOOKUP($D$3&$D$4&D8,ConsolidadoServicios!$A:$K,11,0) ->  | L8: =J8*(1-K8) ->  | M8: =ROUND(L8/(1-VLOOKUP("Total porcentaje:",Cotizacion!$E:$G,3,0)),2) ->  | N8: =G8*M8 ->  | Q8: =I8*N8 ->  | R8: NomCoupa
A9: =AND(L9>=1578155,K9>=0,K9<=1) ->  | B9: 2 | C9: Servicio de Personal | D9: Operario de aseo y cafetería MT | E9: Operario de aseo y cafetería MT | F9: Medio Tiempo | G9: 0 | H9: Mes | I9: 7 | J9: =VLOOKUP($D$3&$D$4&D9,ConsolidadoServicios!$A:$K,11,0) ->  | L9: =J9*(1-K9) ->  | M9: =ROUND(L9/(1-VLOOKUP("Total porcentaje:",Cotizacion!$E:$G,3,0)),2) ->  | N9: =G9*M9 ->  | Q9: =I9*N9 ->  | R9: NomCoupa
B10: 3 | C10: Bienes de Aseo y Cafetería | D10: Jabón para loza 4 (Compra) | E10: Jabón para loza 4 (Compra) | G10: 1 | H10: Und | I10: 7 | J10: =VLOOKUP($D$3&$D$4&D10,ConsolidadoServicios!$A:$K,11,0) ->  | K10: =VLOOKUP(D10,'Cotizacion Bienes de Aseo y Ca'!B:K,8,FALSE) -> 0 | L10: =J10*(1-K10) ->  | M10: =ROUND(L10/(1-VLOOKUP("Total porcentaje:",Cotizacion!$E:$G,3,0)),2) ->  | N10: =G10*M10 ->  | Q10: =I10*N10 ->  | R10: NomCoupa
B11: 4 | C11: Bienes de Aseo y Cafetería | D11: Jabón de dispensador para manos 2 (Compra) | E11: Jabón de dispensador para manos 2 (Compra) | G11: 1 | H11: Und | I11: 7 | J11: =VLOOKUP($D$3&$D$4&D11,ConsolidadoServicios!$A:$K,11,0) ->  | K11: =VLOOKUP(D11,'Cotizacion Bienes de Aseo y Ca'!B:K,8,FALSE) -> 0 | L11: =J11*(1-K11) ->  | M11: =ROUND(L11/(1-VLOOKUP("Total porcentaje:",Cotizacion!$E:$G,3,0)),2) ->  | N11: =G11*M11 ->  | Q11: =I11*N11 ->  | R11: NomCoupa
B12: 5 | C12: Bienes de Aseo y Cafetería | D12: Limpiador multiusos 1 (Compra) | E12: Limpiador multiusos 1 (Compra) | G12: 1 | H12: Und | I12: 7 | J12: =VLOOKUP($D$3&$D$4&D12,ConsolidadoServicios!$A:$K,11,0) ->  | K12: =VLOOKUP(D12,'Cotizacion Bienes de Aseo y Ca'!B:K,8,FALSE) -> 0 | L12: =J12*(1-K12) ->  | M12: =ROUND(L12/(1-VLOOKUP("Total porcentaje:",Cotizacion!$E:$G,3,0)),2) ->  | N12: =G12*M12 ->  | Q12: =I12*N12 ->  | R12: NomCoupa
B13: 6 | C13: Bienes de Aseo y Cafetería | D13: Detergente multiusos en polvo (Compra) | E13: Detergente multiusos en polvo (Compra) | G13: 1 | H13: Und | I13: 7 | J13: =VLOOKUP($D$3&$D$4&D13,ConsolidadoServicios!$A:$K,11,0) ->  | K13: =VLOOKUP(D13,'Cotizacion Bienes de Aseo y Ca'!B:K,8,FALSE) -> 0 | L13: =J13*(1-K13) ->  | M13: =ROUND(L13/(1-VLOOKUP("Total porcentaje:",Cotizacion!$E:$G,3,0)),2) ->  | N13: =G13*M13 ->  | Q13: =I13*N13 ->  | R13: NomCoupa
B14: 7 | C14: Bienes de Aseo y Cafetería | D14: Limpiador desinfectante para uso general 1 (Compra) | E14: Limpiador desinfectante para uso general 1 (Compra) | G14: 1 | H14: Und | I14: 7 | J14: =VLOOKUP($D$3&$D$4&D14,ConsolidadoServicios!$A:$K,11,0) ->  | K14: =VLOOKUP(D14,'Cotizacion Bienes de Aseo y Ca'!B:K,8,FALSE) -> 0 | L14: =J14*(1-K14) ->  | M14: =ROUND(L14/(1-VLOOKUP("Total porcentaje:",Cotizacion!$E:$G,3,0)),2) ->  | N14: =G14*M14 ->  | Q14: =I14*N14 ->  | R14: NomCoupa
B15: 8 | C15: Bienes de Aseo y Cafetería | D15: Blanqueador o hipoclorito 1 (Compra) | E15: Blanqueador o hipoclorito 1 (Compra) | G15: 1 | H15: Und | I15: 7 | J15: =VLOOKUP($D$3&$D$4&D15,ConsolidadoServicios!$A:$K,11,0) ->  | K15: =VLOOKUP(D15,'Cotizacion Bienes de Aseo y Ca'!B:K,8,FALSE) -> 0 | L15: =J15*(1-K15) ->  | M15: =ROUND(L15/(1-VLOOKUP("Total porcentaje:",Cotizacion!$E:$G,3,0)),2) ->  | N15: =G15*M15 ->  | Q15: =I15*N15 ->  | R15: NomCoupa
B16: 9 | C16: Bienes de Aseo y Cafetería | D16: Varsol ecológico 2 (Compra) | E16: Varsol ecológico 2 (Compra) | G16: 1 | H16: Und | I16: 7 | J16: =VLOOKUP($D$3&$D$4&D16,ConsolidadoServicios!$A:$K,11,0) ->  | K16: =VLOOKUP(D16,'Cotizacion Bienes de Aseo y Ca'!B:K,8,FALSE) -> 0 | L16: =J16*(1-K16) ->  | M16: =ROUND(L16/(1-VLOOKUP("Total porcentaje:",Cotizacion!$E:$G,3,0)),2) ->  | N16: =G16*M16 ->  | Q16: =I16*N16 ->  | R16: NomCoupa
B17: 10 | C17: Bienes de Aseo y Cafetería | D17: Ambientador 1 (Compra) | E17: Ambientador 1 (Compra) | G17: 1 | H17: Und | I17: 7 | J17: =VLOOKUP($D$3&$D$4&D17,ConsolidadoServicios!$A:$K,11,0) ->  | K17: =VLOOKUP(D17,'Cotizacion Bienes de Aseo y Ca'!B:K,8,FALSE) -> 0 | L17: =J17*(1-K17) ->  | M17: =ROUND(L17/(1-VLOOKUP("Total porcentaje:",Cotizacion!$E:$G,3,0)),2) ->  | N17: =G17*M17 ->  | Q17: =I17*N17 ->  | R17: NomCoupa
B18: 11 | C18: Bienes de Aseo y Cafetería | D18: Esponjilla 1 (Compra) | E18: Esponjilla 1 (Compra) | G18: 2 | H18: Und | I18: 7 | J18: =VLOOKUP($D$3&$D$4&D18,ConsolidadoServicios!$A:$K,11,0) ->  | K18: =VLOOKUP(D18,'Cotizacion Bienes de Aseo y Ca'!B:K,8,FALSE) -> 0 | L18: =J18*(1-K18) ->  | M18: =ROUND(L18/(1-VLOOKUP("Total porcentaje:",Cotizacion!$E:$G,3,0)),2) ->  | N18: =G18*M18 ->  | Q18: =I18*N18 ->  | R18: NomCoupa
B19: 12 | C19: Bienes de Aseo y Cafetería | D19: Escoba 3 (Compra) | E19: Escoba 3 (Compra) | G19: 1 | H19: Und | I19: 7 | J19: =VLOOKUP($D$3&$D$4&D19,ConsolidadoServicios!$A:$K,11,0) ->  | K19: =VLOOKUP(D19,'Cotizacion Bienes de Aseo y Ca'!B:K,8,FALSE) -> 0 | L19: =J19*(1-K19) ->  | M19: =ROUND(L19/(1-VLOOKUP("Total porcentaje:",Cotizacion!$E:$G,3,0)),2) ->  | N19: =G19*M19 ->  | Q19: =I19*N19 ->  | R19: NomCoupa
B20: 13 | C20: Bienes de Aseo y Cafetería | D20: Escoba 4 (Compra) | E20: Escoba 4 (Compra) | G20: 1 | H20: Und | I20: 7 | J20: =VLOOKUP($D$3&$D$4&D20,ConsolidadoServicios!$A:$K,11,0) ->  | K20: =VLOOKUP(D20,'Cotizacion Bienes de Aseo y Ca'!B:K,8,FALSE) -> 0 | L20: =J20*(1-K20) ->  | M20: =ROUND(L20/(1-VLOOKUP("Total porcentaje:",Cotizacion!$E:$G,3,0)),2) ->  | N20: =G20*M20 ->  | Q20: =I20*N20 ->  | R20: NomCoupa
B21: 14 | C21: Bienes de Aseo y Cafetería | D21: Mango madera escoba 1 (Compra) | E21: Mango madera escoba 1 (Compra) | G21: 2 | H21: Und | I21: 7 | J21: =VLOOKUP($D$3&$D$4&D21,ConsolidadoServicios!$A:$K,11,0) ->  | K21: =VLOOKUP(D21,'Cotizacion Bienes de Aseo y Ca'!B:K,8,FALSE) -> 0 | L21: =J21*(1-K21) ->  | M21: =ROUND(L21/(1-VLOOKUP("Total porcentaje:",Cotizacion!$E:$G,3,0)),2) ->  | N21: =G21*M21 ->  | Q21: =I21*N21 ->  | R21: NomCoupa
B22: 15 | C22: Bienes de Aseo y Cafetería | D22: Trapero 4 (Compra) | E22: Trapero 4 (Compra) | G22: 1 | H22: Und | I22: 7 | J22: =VLOOKUP($D$3&$D$4&D22,ConsolidadoServicios!$A:$K,11,0) ->  | K22: =VLOOKUP(D22,'Cotizacion Bienes de Aseo y Ca'!B:K,8,FALSE) -> 0 | L22: =J22*(1-K22) ->  | M22: =ROUND(L22/(1-VLOOKUP("Total porcentaje:",Cotizacion!$E:$G,3,0)),2) ->  | N22: =G22*M22 ->  | Q22: =I22*N22 ->  | R22: NomCoupa
B23: 16 | C23: Bienes de Aseo y Cafetería | D23: Bolsas plásticas 1 (Compra) | E23: Bolsas plásticas 1 (Compra) | G23: 1 | H23: Und | I23: 7 | J23: =VLOOKUP($D$3&$D$4&D23,ConsolidadoServicios!$A:$K,11,0) ->  | K23: =VLOOKUP(D23,'Cotizacion Bienes de Aseo y Ca'!B:K,8,FALSE) -> 0 | L23: =J23*(1-K23) ->  | M23: =ROUND(L23/(1-VLOOKUP("Total porcentaje:",Cotizacion!$E:$G,3,0)),2) ->  | N23: =G23*M23 ->  | Q23: =I23*N23 ->  | R23: NomCoupa
B24: 17 | C24: Bienes de Aseo y Cafetería | D24: Bolsas plásticas 3 (Compra) | E24: Bolsas plásticas 3 (Compra) | G24: 1 | H24: Und | I24: 7 | J24: =VLOOKUP($D$3&$D$4&D24,ConsolidadoServicios!$A:$K,11,0) ->  | K24: =VLOOKUP(D24,'Cotizacion Bienes de Aseo y Ca'!B:K,8,FALSE) -> 0 | L24: =J24*(1-K24) ->  | M24: =ROUND(L24/(1-VLOOKUP("Total porcentaje:",Cotizacion!$E:$G,3,0)),2) ->  | N24: =G24*M24 ->  | Q24: =I24*N24 ->  | R24: NomCoupa
B25: 18 | C25: Bienes de Aseo y Cafetería | D25: Bolsas plásticas 21 (Compra) | E25: Bolsas plásticas 21 (Compra) | G25: 4 | H25: Und | I25: 7 | J25: =VLOOKUP($D$3&$D$4&D25,ConsolidadoServicios!$A:$K,11,0) ->  | K25: =VLOOKUP(D25,'Cotizacion Bienes de Aseo y Ca'!B:K,8,FALSE) -> 0 | L25: =J25*(1-K25) ->  | M25: =ROUND(L25/(1-VLOOKUP("Total porcentaje:",Cotizacion!$E:$G,3,0)),2) ->  | N25: =G25*M25 ->  | Q25: =I25*N25 ->  | R25: NomCoupa
B26: 19 | C26: Bienes de Aseo y Cafetería | D26: Bolsas plásticas 22 (Compra) | E26: Bolsas plásticas 22 (Compra) | G26: 4 | H26: Und | I26: 7 | J26: =VLOOKUP($D$3&$D$4&D26,ConsolidadoServicios!$A:$K,11,0) ->  | K26: =VLOOKUP(D26,'Cotizacion Bienes de Aseo y Ca'!B:K,8,FALSE) -> 0 | L26: =J26*(1-K26) ->  | M26: =ROUND(L26/(1-VLOOKUP("Total porcentaje:",Cotizacion!$E:$G,3,0)),2) ->  | N26: =G26*M26 ->  | Q26: =I26*N26 ->  | R26: NomCoupa
B27: 20 | C27: Bienes de Aseo y Cafetería | D27: Bolsas plásticas 23 (Compra) | E27: Bolsas plásticas 23 (Compra) | G27: 4 | H27: Und | I27: 7 | J27: =VLOOKUP($D$3&$D$4&D27,ConsolidadoServicios!$A:$K,11,0) ->  | K27: =VLOOKUP(D27,'Cotizacion Bienes de Aseo y Ca'!B:K,8,FALSE) -> 0 | L27: =J27*(1-K27) ->  | M27: =ROUND(L27/(1-VLOOKUP("Total porcentaje:",Cotizacion!$E:$G,3,0)),2) ->  | N27: =G27*M27 ->  | Q27: =I27*N27 ->  | R27: NomCoupa
B28: 21 | C28: Bienes de Aseo y Cafetería | D28: Tapabocas 2 (Compra) | E28: Tapabocas 2 (Compra) | G28: 1 | H28: Und | I28: 7 | J28: =VLOOKUP($D$3&$D$4&D28,ConsolidadoServicios!$A:$K,11,0) ->  | K28: =VLOOKUP(D28,'Cotizacion Bienes de Aseo y Ca'!B:K,8,FALSE) -> 0 | L28: =J28*(1-K28) ->  | M28: =ROUND(L28/(1-VLOOKUP("Total porcentaje:",Cotizacion!$E:$G,3,0)),2) ->  | N28: =G28*M28 ->  | Q28: =I28*N28 ->  | R28: NomCoupa
B29: 22 | C29: Bienes de Aseo y Cafetería | D29: Papel higiénico 3 (Compra) | E29: Papel higiénico 3 (Compra) | G29: 4 | H29: Und | I29: 7 | J29: =VLOOKUP($D$3&$D$4&D29,ConsolidadoServicios!$A:$K,11,0) ->  | K29: =VLOOKUP(D29,'Cotizacion Bienes de Aseo y Ca'!B:K,8,FALSE) -> 0 | L29: =J29*(1-K29) ->  | M29: =ROUND(L29/(1-VLOOKUP("Total porcentaje:",Cotizacion!$E:$G,3,0)),2) ->  | N29: =G29*M29 ->  | Q29: =I29*N29 ->  | R29: NomCoupa
B30: 23 | C30: Bienes de Aseo y Cafetería | D30: Toallas para manos 6 (Compra) | E30: Toallas para manos 6 (Compra) | G30: 8 | H30: Und | I30: 7 | J30: =VLOOKUP($D$3&$D$4&D30,ConsolidadoServicios!$A:$K,11,0) ->  | K30: =VLOOKUP(D30,'Cotizacion Bienes de Aseo y Ca'!B:K,8,FALSE) -> 0 | L30: =J30*(1-K30) ->  | M30: =ROUND(L30/(1-VLOOKUP("Total porcentaje:",Cotizacion!$E:$G,3,0)),2) ->  | N30: =G30*M30 ->  | Q30: =I30*N30 ->  | R30: NomCoupa
B31: 24 | C31: Bienes de Aseo y Cafetería | D31: Vasos biodegradables 1 (Compra) | E31: Vasos biodegradables 1 (Compra) | G31: 2 | H31: Und | I31: 7 | J31: =VLOOKUP($D$3&$D$4&D31,ConsolidadoServicios!$A:$K,11,0) ->  | K31: =VLOOKUP(D31,'Cotizacion Bienes de Aseo y Ca'!B:K,8,FALSE) -> 0 | L31: =J31*(1-K31) ->  | M31: =ROUND(L31/(1-VLOOKUP("Total porcentaje:",Cotizacion!$E:$G,3,0)),2) ->  | N31: =G31*M31 ->  | Q31: =I31*N31 ->  | R31: NomCoupa
B32: 25 | C32: Bienes de Aseo y Cafetería | D32: Vasos biodegradables 3 (Compra) | E32: Vasos biodegradables 3 (Compra) | G32: 1 | H32: Und | I32: 7 | J32: =VLOOKUP($D$3&$D$4&D32,ConsolidadoServicios!$A:$K,11,0) ->  | K32: =VLOOKUP(D32,'Cotizacion Bienes de Aseo y Ca'!B:K,8,FALSE) -> 0 | L32: =J32*(1-K32) ->  | M32: =ROUND(L32/(1-VLOOKUP("Total porcentaje:",Cotizacion!$E:$G,3,0)),2) ->  | N32: =G32*M32 ->  | Q32: =I32*N32 ->  | R32: NomCoupa
B33: 26 | C33: Bienes de Aseo y Cafetería | D33: Servilleta papel (Compra) | E33: Servilleta papel (Compra) | G33: 3 | H33: Und | I33: 7 | J33: =VLOOKUP($D$3&$D$4&D33,ConsolidadoServicios!$A:$K,11,0) ->  | K33: =VLOOKUP(D33,'Cotizacion Bienes de Aseo y Ca'!B:K,8,FALSE) -> 0 | L33: =J33*(1-K33) ->  | M33: =ROUND(L33/(1-VLOOKUP("Total porcentaje:",Cotizacion!$E:$G,3,0)),2) ->  | N33: =G33*M33 ->  | Q33: =I33*N33 ->  | R33: NomCoupa
B34: 27 | C34: Bienes de Aseo y Cafetería | D34: Café 1 (Compra) | E34: Café 1 (Compra) | G34: 6 | H34: Und | I34: 7 | J34: =VLOOKUP($D$3&$D$4&D34,ConsolidadoServicios!$A:$K,11,0) ->  | K34: =VLOOKUP(D34,'Cotizacion Bienes de Aseo y Ca'!B:K,8,FALSE) -> 0 | L34: =J34*(1-K34) ->  | M34: =ROUND(L34/(1-VLOOKUP("Total porcentaje:",Cotizacion!$E:$G,3,0)),2) ->  | N34: =G34*M34 ->  | Q34: =I34*N34 ->  | R34: NomCoupa
B35: 28 | C35: Bienes de Aseo y Cafetería | D35: Azúcar 1 (Compra) | E35: Azúcar 1 (Compra) | G35: 4 | H35: Und | I35: 7 | J35: =VLOOKUP($D$3&$D$4&D35,ConsolidadoServicios!$A:$K,11,0) ->  | K35: =VLOOKUP(D35,'Cotizacion Bienes de Aseo y Ca'!B:K,8,FALSE) -> 0 | L35: =J35*(1-K35) ->  | M35: =ROUND(L35/(1-VLOOKUP("Total porcentaje:",Cotizacion!$E:$G,3,0)),2) ->  | N35: =G35*M35 ->  | Q35: =I35*N35 ->  | R35: NomCoupa
B36: 29 | C36: Bienes de Aseo y Cafetería | D36: Aromática (Compra) | E36: Aromática (Compra) | G36: 3 | H36: Und | I36: 7 | J36: =VLOOKUP($D$3&$D$4&D36,ConsolidadoServicios!$A:$K,11,0) ->  | K36: =VLOOKUP(D36,'Cotizacion Bienes de Aseo y Ca'!B:K,8,FALSE) -> 0 | L36: =J36*(1-K36) ->  | M36: =ROUND(L36/(1-VLOOKUP("Total porcentaje:",Cotizacion!$E:$G,3,0)),2) ->  | N36: =G36*M36 ->  | Q36: =I36*N36 ->  | R36: NomCoupa
B37: 30 | C37: Bienes de Aseo y Cafetería | D37: Infusión frutal (Compra) | E37: Infusión frutal (Compra) | G37: 3 | H37: Und | I37: 7 | J37: =VLOOKUP($D$3&$D$4&D37,ConsolidadoServicios!$A:$K,11,0) ->  | K37: =VLOOKUP(D37,'Cotizacion Bienes de Aseo y Ca'!B:K,8,FALSE) -> 0 | L37: =J37*(1-K37) ->  | M37: =ROUND(L37/(1-VLOOKUP("Total porcentaje:",Cotizacion!$E:$G,3,0)),2) ->  | N37: =G37*M37 ->  | Q37: =I37*N37 ->  | R37: NomCoupa
B38: 31 | C38: Bienes de Aseo y Cafetería | D38: Agua potable 4 (Compra) | E38: Agua potable 4 (Compra) | G38: 15 | H38: Und | I38: 7 | J38: =VLOOKUP($D$3&$D$4&D38,ConsolidadoServicios!$A:$K,11,0) ->  | K38: =VLOOKUP(D38,'Cotizacion Bienes de Aseo y Ca'!B:K,8,FALSE) -> 0 | L38: =J38*(1-K38) ->  | M38: =ROUND(L38/(1-VLOOKUP("Total porcentaje:",Cotizacion!$E:$G,3,0)),2) ->  | N38: =G38*M38 ->  | Q38: =I38*N38 ->  | R38: NomCoupa
B39: 32 | C39: Bienes de Aseo y Cafetería | D39: Recogedor de basura 1 (Compra) | E39: Recogedor de basura 1 (Compra) | G39: 1 | H39: Und | I39: 7 | J39: =VLOOKUP($D$3&$D$4&D39,ConsolidadoServicios!$A:$K,11,0) ->  | K39: =VLOOKUP(D39,'Cotizacion Bienes de Aseo y Ca'!B:K,8,FALSE) -> 0 | L39: =J39*(1-K39) ->  | M39: =ROUND(L39/(1-VLOOKUP("Total porcentaje:",Cotizacion!$E:$G,3,0)),2) ->  | N39: =G39*M39 ->  | Q39: =I39*N39 ->  | R39: NomCoupa
B40: 1. Si requiere agregue o elimine filas | J40: =IFERROR(IF(F40="Medio Tiempo",VLOOKUP($D$3&$D$4&D40,ConsolidadoServicios!$A:$K,11,0)*(1-36%),VLOOKUP($D$3&$D$4&D40,ConsolidadoServicios!$A:$K,11,0)),0) -> 0 | O40: .Recargo por Trabajo nocturno, extra, dominical y festivo | Q40: =ROUND(SUM($O$8:$O$39)/(1-VLOOKUP("Total porcentaje:",Cotizacion!$E:$G,3,0)),2) -> 0
B41: Gravámenes adicionales* | O41: Recargo por dotación especial | Q41: =ROUND(SUM($P$8:$P$39)/(1-VLOOKUP("Total porcentaje:",Cotizacion!$E:$G,3,0)),2) -> 0
O42: Subtotal | Q42: =ROUND(SUM($Q$8:$Q$41),2) -> 
B43: Gravámenes adicionales (estampillas) | O43: % AIU | P43: =VLOOKUP($D$3&$D$4&"Porcentaje de AIU",ConsolidadoServicios!$A:$K,11,0) ->  | Q43: =ROUND((Q42*P43),2) -> 
B44: No | C44: Descripción | G44: Porcentaje | O44: IVA | Q44: =IF($D$3<>12,ROUND(IF(P43<10%,(Q42*10%)*19%,(Q42*P43)*19%),2),0) -> 
B45: 1 | O45: Total | Q45: =SUM(Q42:Q44) -> 
E46: Total porcentaje: | G46: =SUM(G45:G45) -> 0

Sheet Inicio (hidden)

Sheet BienesPrioritarios (hidden)
A1: Consecutivo | B1: No | C1: Servicio o Bien
A2: 1 | B2: 1 | C2: Operario de aseo y cafetería con compromiso social
A3: 2 | B3: 2 | C3: Operario de aseo y cafetería
A4: 3 | B4: 3 | C4: Operario de mantenimiento
A5: 4 | B5: 4 | C5: Operario auxiliar
A6: 5 | B6: 5 | C6: Coordinador de tiempo completo
A7: 6 | B7: 6 | C7: Jardinero
A8: 7 | B8: 7 | C8: Operario de mantenimiento capacitado para trabajo en alturas
A9: 8 | B9: 8 | C9: Operario auxiliar capacitado para trabajo en alturas
A10: 9 | B10: 9 | C10: Jardinero capacitado para trabajo en alturas
A11: 10 | B11: 10 | C11: Coordinador de trabajo en alturas
A12: 11 | B12: 11 | C12: Turno operario de mantenimiento
A13: 12 | B13: 12 | C13: Turno operario de mantenimiento capacitado para trabajo en alturas nivel básico
A14: 13 | B14: 13 | C14: Turno coordinador de trabajo en alturas nivel básico
A15: 14 | B15: 1 | C15: Operario de aseo y cafetería MT
A16: 15 | B16: 2 | C16: Operario de mantenimiento MT
A17: 16 | B17: 3 | C17: Operario auxiliar MT
A18: 17 | B18: 4 | C18: Coordinador MT
A19: 18 | B19: 5 | C19: Jardinero MT
A20: 19 | B20: 6 | C20: Operario de mantenimiento capacitado para trabajo en alturas MT
A21: 20 | B21: 7 | C21: Operario auxiliar capacitado para trabajo en alturas MT
A22: 21 | B22: 8 | C22: Jardinero capacitado para trabajo en alturas MT
A23: 22 | B23: 9 | C23: Coordinador de trabajo en alturas MT
A24: 23 | B24: 141 | C24: Papel higiénico 1 (Compra)
A25: 24 | B25: 142 | C25: Papel higiénico 2 (Compra)
A26: 25 | B26: 143 | C26: Papel higiénico 3 (Compra)
A27: 26 | B27: 144 | C27: Papel higiénico 4 (Compra)
A28: 27 | B28: 145 | C28: Papel higiénico 5 (Compra)
A29: 28 | B29: 146 | C29: Toallas para manos 1 (Compra)
A30: 29 | B30: 147 | C30: Toallas para manos 2 (Compra)
A31: 30 | B31: 148 | C31: Toallas para manos 3 (Compra)
A32: 31 | B32: 149 | C32: Toallas para manos 4 (Compra)
A33: 32 | B33: 150 | C33: Toallas para manos 5 (Compra)
A34: 33 | B34: 151 | C34: Toallas para manos 6 (Compra)
A35: 34 | B35: 152 | C35: Toallas para manos 7 (Compra)
A36: 35 | B36: 153 | C36: Toallas para manos 8 (Compra)
A37: 36 | B37: 155 | C37: Vasos biodegradables 1 (Compra)
A38: 37 | B38: 156 | C38: Vasos biodegradables 2 (Compra)
A39: 38 | B39: 157 | C39: Vasos biodegradables 3 (Compra)
A40: 39 | B40: 158 | C40: Vasos biodegradables 4 (Compra)
A41: 40 | B41: 160 | C41: Servilleta papel (Compra)
A42: 41 | B42: 170 | C42: Café 1 (Compra)
A43: 42 | B43: 171 | C43: Café 2 (Compra)
A44: 43 | B44: 172 | C44: Café 3 (Compra)
A45: 44 | B45: 173 | C45: Café Social (Compra)
A46: 45 | B46: 175 | C46: Azúcar 1 (Compra)
A47: 46 | B47: 176 | C47: Azúcar 2 (Compra)
A48: 47 | B48: 177 | C48: Azúcar 3 (Compra)
A49: 48 | B49: 178 | C49: Azúcar 4 (Compra)
A50: 49 | B50: 179 | C50: Endulzante (Compra)
A51: 50 | B51: 180 | C51: Panela (Compra)
A52: 51 | B52: 181 | C52: Sal 1 (Compra)
A53: 52 | B53: 182 | C53: Sal 2 (Compra)
A54: 53 | B54: 183 | C54: Sal 3 (Compra)
A55: 54 | B55: 184 | C55: Aromática (Compra)
A56: 55 | B56: 185 | C56: Aromática de panela (Compra)
A57: 56 | B57: 186 | C57: Bebida de frutas (Compra)
A58: 57 | B58: 187 | C58: Bebida de panela (Compra)
A59: 58 | B59: 188 | C59: Té (Compra)
A60: 59 | B60: 189 | C60: Infusión frutal (Compra)
A61: 60 | B61: 190 | C61: Agua potable 1 (Compra)
A62: 61 | B62: 191 | C62: Agua potable 2 (Compra)
A63: 62 | B63: 192 | C63: Agua potable 3 (Compra)
A64: 63 | B64: 193 | C64: Agua potable 4 (Compra)
A65: 64 | B65: 335 | C65: Punto Ecológico 1 (Compra)
A66: 65 | B66: 336 | C66: Punto Ecológico 2 (Compra)
A67: 66 | B67: 337 | C67: Punto Ecológico 3 (Compra)
A68: 67 | B68: 338 | C68: Punto Ecológico 4 (Compra)
A69: 68 | B69: 339 | C69: Punto Ecológico 5 (Compra)
A70: 69 | B70: 340 | C70: Punto Ecológico 6 (Compra)

Sheet Minimos (hidden)
A1: region | B1: 13 | D1: Filtro | E1: ='Solicitud de Cotización General'!H9 -> 13
A3: Etiquetas de fila | B3: Mín. de Precio unitario
A4: Abrillantador para piso laminado (Compra) | B4: 7435
A5: Agua potable 1 (Compra) | B5: 587
A6: Agua potable 2 (Compra) | B6: 1369
A7: Agua potable 3 (Compra) | B7: 1860
A8: Agua potable 4 (Compra) | B8: 12460
A9: Alcohol industrial 1 (Compra) | B9: 15371
A10: Alcohol industrial 2 (Compra) | B10: 4044
A11: Ambientador 1 (Compra) | B11: 7229
A12: Ambientador 2 (Compra) | B12: 9642
A13: Aromática (Compra) | B13: 1708
A14: Aromática de panela (Compra) | B14: 4229
A15: Aspiradora 1 (Arrendamiento) | B15: 26536
A16: Aspiradora 1 (Compra) | B16: 35782
A17: Aspiradora 2 (Arrendamiento) | B17: 44599
A18: Aspiradora 2 (Compra) | B18: 69009
A19: Atomizadores (Compra) | B19: 1790
A20: Azúcar 1 (Compra) | B20: 9265
A21: Azúcar 2 (Compra) | B21: 2988
A22: Azúcar 3 (Compra) | B22: 3329
A23: Azúcar 4 (Compra) | B23: 3090
A24: Balde (Arrendamiento) | B24: 572
A25: Balde (Compra) | B25: 5557
A26: Bandeja 1 (Arrendamiento) | B26: 587
A27: Bandeja 1 (Compra) | B27: 587
A28: Bandeja 2 (Arrendamiento) | B28: 1053
A29: Bandeja 2 (Compra) | B29: 1053
A30: Bandeja 3 (Arrendamiento) | B30: 284
A31: Bandeja 3 (Compra) | B31: 284
A32: Bandeja 4 (Arrendamiento) | B32: 220
A33: Bandeja 4 (Compra) | B33: 220
A34: Bayetilla 1 (Compra) | B34: 1853
A35: Bayetilla 2 (Compra) | B35: 1853
A36: Bebida de frutas (Compra) | B36: 11015
A37: Bebida de panela (Compra) | B37: 4229
A38: Betún (Compra) | B38: 5577
A39: Blanqueador o hipoclorito 1 (Compra) | B39: 6641
A40: Blanqueador o hipoclorito 2 (Compra) | B40: 2754
A41: Blanqueador o hipoclorito 3 (Compra) | B41: 17423
A42: Bolsas plásticas 1 (Compra) | B42: 717
A43: Bolsas plásticas 10 (Compra) | B43: 1629
A44: Bolsas plásticas 11 (Compra) | B44: 1629
A45: Bolsas plásticas 12 (Compra) | B45: 1629
A46: Bolsas plásticas 14 (Compra) | B46: 1629
A47: Bolsas plásticas 15 (Compra) | B47: 2217
A48: Bolsas plásticas 16 (Compra) | B48: 2217
A49: Bolsas plásticas 17 (Compra) | B49: 2217
A50: Bolsas plásticas 18 (Compra) | B50: 1906
A51: Bolsas plásticas 19 (Compra) | B51: 2217
A52: Bolsas plásticas 2 (Compra) | B52: 832
A53: Bolsas plásticas 20 (Compra) | B53: 2217
A54: Bolsas plásticas 21 (Compra) | B54: 2217
A55: Bolsas plásticas 22 (Compra) | B55: 3514
A56: Bolsas plásticas 23 (Compra) | B56: 4102
A57: Bolsas plásticas 24 (Compra) | B57: 2681
A58: Bolsas plásticas 25 (Compra) | B58: 3622
A59: Bolsas plásticas 26 (Compra) | B59: 3260
A60: Bolsas plásticas 3 (Compra) | B60: 868
A61: Bolsas plásticas 4 (Compra) | B61: 613
A62: Bolsas plásticas 5 (Compra) | B62: 904
A63: Bolsas plásticas 7 (Compra) | B63: 904
A64: Bolsas plásticas 8 (Compra) | B64: 1535
A65: Bolsas plásticas 9 (Compra) | B65: 1629
A66: Boneth 1 (Compra) | B66: 52121
A67: Boneth 2 (Compra) | B67: 904
A68: Brillador 1 (Compra) | B68: 69883
A69: Brillador 2 (Compra) | B69: 49817
A70: Brilladora de alta revolución (Arrendamiento) | B70: 114655
A71: Brilladora de alta revolución (Compra) | B71: 114655
A72: Brillametal en crema (Compra) | B72: 8245
A73: Brillametal líquido (Compra) | B73: 9429
A74: Café 1 (Compra) | B74: 19115
A75: Café 2 (Compra) | B75: 20626
A76: Café 3 (Compra) | B76: 4265
A77: Café Social (Compra) | B77: 34613
A78: Cafetera 1 (Arrendamiento) | B78: 6274
A79: Cafetera 1 (Compra) | B79: 6274
A80: Caneca para almacenar ropa sucia (Arrendamiento) | B80: 3481
A81: Caneca para almacenar ropa sucia (Compra) | B81: 20093
A82: Carro de bebidas (Arrendamiento) | B82: 22641
A83: Carro de bebidas (Compra) | B83: 22641
A84: Carro exprimidor de trapero 1 (Arrendamiento) | B84: 10876
A85: Carro exprimidor de trapero 1 (Compra) | B85: 10876
A86: Carro exprimidor de trapero 2 (Arrendamiento) | B86: 11601
A87: Carro exprimidor de trapero 2 (Compra) | B87: 11601
A88: Carros para limpieza (Arrendamiento) | B88: 23776
A89: Carros para limpieza (Compra) | B89: 23776
A90: Cepillo para paredes y techos (Compra) | B90: 4205
A91: Cepillo para sanitario (churrusco) (Compra) | B91: 4747
A92: Cepillos 1 (Compra) | B92: 2011
A93: Cepillos 2 (Compra) | B93: 3577
A94: Cepillos 3 (Compra) | B94: 5524
A95: Cera emulsionada Neutra (Compra) | B95: 9394
A96: Cera emulsionada roja (Compra) | B96: 9639
A97: Cera polimérica (Compra) | B97: 23132
A98: Cera solvente (Compra) | B98: 17844
A99: Champú para alfombras y tapizados 1 (Compra) | B99: 7784
A100: Champú para alfombras y tapizados 2 (Compra) | B100: 6005
A101: Churrusco para tubos de greca (Compra) | B101: 4747
A102: Combustible para Cortadora de césped, sopladora de hojas y guadañas (Compra) | B102: 9065
A103: Contenedor de basura 1 (Compra) | B103: 1324
A104: Contenedor de basura 10 (Compra) | B104: 2483
A105: Contenedor de basura 11 (Compra) | B105: 2483
A106: Contenedor de basura 12 (Compra) | B106: 2483
A107: Contenedor de basura 13 (Compra) | B107: 5722
A108: Contenedor de basura 14 (Compra) | B108: 5722
A109: Contenedor de basura 15 (Compra) | B109: 5722
A110: Contenedor de basura 16 (Compra) | B110: 5722
A111: Contenedor de basura 17 (Compra) | B111: 17037
A112: Contenedor de basura 18 (Compra) | B112: 17037
A113: Contenedor de basura 19 (Compra) | B113: 17037
A114: Contenedor de basura 2 (Compra) | B114: 1324
A115: Contenedor de basura 20 (Compra) | B115: 16329
A116: Contenedor de basura 21 (Compra) | B116: 16329
A117: Contenedor de basura 22 (Compra) | B117: 16329
A118: Contenedor de basura 23 (Compra) | B118: 29983
A119: Contenedor de basura 24 (Compra) | B119: 29983
A120: Contenedor de basura 25 (Compra) | B120: 29983
A121: Contenedor de basura 26 (Compra) | B121: 86581
A122: Contenedor de basura 27 (Compra) | B122: 86581
A123: Contenedor de basura 28 (Compra) | B123: 86581
A124: Contenedor de basura 29 (Compra) | B124: 87170
A125: Contenedor de basura 3 (Compra) | B125: 1324
A126: Contenedor de basura 30 (Compra) | B126: 87170
A127: Contenedor de basura 4 (Compra) | B127: 1324
A128: Contenedor de basura 5 (Compra) | B128: 1656
A129: Contenedor de basura 6 (Compra) | B129: 1656
A130: Contenedor de basura 7 (Compra) | B130: 1656
A131: Contenedor de basura 8 (Compra) | B131: 1656
A132: Contenedor de basura 9 (Compra) | B132: 2483
A133: Coordinador de tiempo completo | B133: 2465868
A134: Coordinador de trabajo en alturas | B134: 2465868
A135: Coordinador de trabajo en alturas MT | B135: 1500286
A136: Coordinador MT | B136: 1578155
A137: Cortadora de cesped (Arrendamiento) | B137: 90547
A138: Cortadora de cesped (Compra) | B138: 140005
A139: Crema desengrasante (Compra) | B139: 10584
A140: Crema para café (Compra) | B140: 16719
A141: Crema para cuero (Compra) | B141: 11646
A142: Creolina 1 (Compra) | B142: 3531
A143: Creolina 2 (Compra) | B143: 13593
A144: Cuchara (Compra) | B144: 2465
A145: Cuchara pequeña (Compra) | B145: 1641
A146: Cuchillo (Compra) | B146: 1515
A147: Cuchillo de cocina (Compra) | B147: 550
A148: Desinfectante de alto nivel de desinfección para uso hospitalario (Compra) | B148: 6434
A149: Desmanchador multiusos (Compra) | B149: 8406
A150: Destapador para sanitario (chupa) (Compra) | B150: 2917
A151: Detergente multiusos en polvo (Compra) | B151: 5720
A152: Dispensador de agua (Compra) | B152: 37085
A153: Dispensador de agua con botellón (Compra) | B153: 36649
A154: Dispensador de gel antibacterial para manos (Compra) | B154: 6823
A155: Dispensador de jabón líquido 1 (Compra) | B155: 962
A156: Dispensador de jabón líquido 2 (Compra) | B156: 3642
A157: Dispensador de jabón líquido 3 (Compra) | B157: 2474
A158: Dispensador de jabón líquido 4 (Compra) | B158: 17129
A159: Dispensador de toallas de manos 1 (Compra) | B159: 14379
A160: Dispensador de toallas de manos 2 (Compra) | B160: 1352
A161: Dispensador de toallas de manos 3 (Compra) | B161: 3619
A162: Dispensador goteo por gravedad y recarga (Compra) | B162: 5264
A163: Dispensador para ambientador (Compra) | B163: 1279
A164: Dispensador para papel higiénico 1 (Compra) | B164: 1375
A165: Dispensador para papel higiénico 2 (Compra) | B165: 4123
A166: Endulzante (Compra) | B166: 10177
A167: Escalera 1 (Arrendamiento) | B167: 2592
A168: Escalera 1 (Compra) | B168: 2592
A169: Escalera 2 (Arrendamiento) | B169: 6139
A170: Escalera 2 (Compra) | B170: 6139
A171: Escalera 3 (Arrendamiento) | B171: 10983
A172: Escalera 3 (Compra) | B172: 11980
A173: Escalera 4 (Arrendamiento) | B173: 13580
A174: Escalera 4 (Compra) | B174: 19465
A175: Escalera de tipo industrial (Arrendamiento) | B175: 15009
A176: Escalera de tipo industrial (Compra) | B176: 20071
A177: Escoba 1 (Compra) | B177: 3427
A178: Escoba 2 (Compra) | B178: 3427
A179: Escoba 3 (Compra) | B179: 4308
A180: Escoba 4 (Compra) | B180: 4271
A181: Escoba 5 (Compra) | B181: 5260
A182: Escurridor para platos (Arrendamiento) | B182: 1283
A183: Escurridor para platos (Compra) | B183: 1283
A184: Espátula (Compra) | B184: 109
A185: Esponjilla 1 (Compra) | B185: 779
A186: Esponjilla 2 (Compra) | B186: 328
A187: Esponjilla 3 (Compra) | B187: 309
A188: Esponjilla 4 (Compra) | B188: 274
A189: Esponjilla 5 (Compra) | B189: 223
A190: Esponjilla 6 (Compra) | B190: 281
A191: Esponjilla 7 (Compra) | B191: 281
A192: Estopa (Compra) | B192: 1067
A193: Estufa 1 (Arrendamiento) | B193: 5492
A194: Estufa 1 (Compra) | B194: 5492
A195: Estufa 2 (Arrendamiento) | B195: 5620
A196: Estufa 2 (Compra) | B196: 5620
A197: Extensión eléctrica 1 (Compra) | B197: 8869
A198: Extensión eléctrica 2 (Compra) | B198: 12331
A199: Filtro para greca 1 (Compra) | B199: 2843
A200: Filtro para greca 2 (Compra) | B200: 2843
A201: Filtro para greca 3 (Compra) | B201: 2843
... 234 more rows

Sheet ConsolidadoServicios (hidden)
A1: regionproveedorbien | B1: region | C1: proveedor | D1: tipoBSO | E1: id_bien_o_servicio | F1: bien_o_servicio | G1: Especificaciones | H1: Presentación | I1: Marca 1 | J1: Marca 2 | K1: Precio unitario | L1: check | M1: cantidad | N1: vigencia | O1: valorCantidadVigencia | P1: llaveMinimo | Q1: MenorValor | R1: orden
A2: 1ASECOLBAS LTDAPorcentaje de AIU | B2: 1 | C2: ASECOLBAS LTDA | D2: Administracion | E2: Porcentaje de AIU | F2: Porcentaje de AIU | K2: 0.1 | P2: 1Porcentaje de AIU
A3: 1CLEANER S.A.Porcentaje de AIU | B3: 1 | C3: CLEANER S.A. | D3: Administracion | E3: Porcentaje de AIU | F3: Porcentaje de AIU | K3: 0.1 | P3: 1Porcentaje de AIU
A4: 1COMPAÑÍA DE SERVICIOS Y ADMINISTRACIÓN SA SERDAN SAPorcentaje de AIU | B4: 1 | C4: COMPAÑÍA DE SERVICIOS Y ADMINISTRACIÓN SA SERDAN SA | D4: Administracion | E4: Porcentaje de AIU | F4: Porcentaje de AIU | K4: 0.1 | P4: 1Porcentaje de AIU
A5: 1CONSERJES INMOBILIARIOS LTDAPorcentaje de AIU | B5: 1 | C5: CONSERJES INMOBILIARIOS LTDA | D5: Administracion | E5: Porcentaje de AIU | F5: Porcentaje de AIU | K5: 0.1 | P5: 1Porcentaje de AIU
A6: 1CONSORCIO ELITEPorcentaje de AIU | B6: 1 | C6: CONSORCIO ELITE | D6: Administracion | E6: Porcentaje de AIU | F6: Porcentaje de AIU | K6: 0.1 | P6: 1Porcentaje de AIU
A7: 1GRUPO GECPorcentaje de AIU | B7: 1 | C7: GRUPO GEC | D7: Administracion | E7: Porcentaje de AIU | F7: Porcentaje de AIU | K7: 0.1 | P7: 1Porcentaje de AIU
A8: 1INCIHUILSA SAS ESPPorcentaje de AIU | B8: 1 | C8: INCIHUILSA SAS ESP | D8: Administracion | E8: Porcentaje de AIU | F8: Porcentaje de AIU | K8: 0.1 | P8: 1Porcentaje de AIU
A9: 1INTERASEO S.A.S. E.S.P.Porcentaje de AIU | B9: 1 | C9: INTERASEO S.A.S. E.S.P. | D9: Administracion | E9: Porcentaje de AIU | F9: Porcentaje de AIU | K9: 0.1 | P9: 1Porcentaje de AIU
A10: 1KIOS SASPorcentaje de AIU | B10: 1 | C10: KIOS SAS | D10: Administracion | E10: Porcentaje de AIU | F10: Porcentaje de AIU | K10: 0.1 | P10: 1Porcentaje de AIU
A11: 1LIMPIEZA INSTITUCIONAL LASU S.A.S.Porcentaje de AIU | B11: 1 | C11: LIMPIEZA INSTITUCIONAL LASU S.A.S. | D11: Administracion | E11: Porcentaje de AIU | F11: Porcentaje de AIU | K11: 0.1 | P11: 1Porcentaje de AIU
A12: 1N&R INTEGRAL SERVICE COMPANY S.A.S.Porcentaje de AIU | B12: 1 | C12: N&R INTEGRAL SERVICE COMPANY S.A.S. | D12: Administracion | E12: Porcentaje de AIU | F12: Porcentaje de AIU | K12: 0.1 | P12: 1Porcentaje de AIU
A13: 1SOSEGE SASPorcentaje de AIU | B13: 1 | C13: SOSEGE SAS | D13: Administracion | E13: Porcentaje de AIU | F13: Porcentaje de AIU | K13: 0.1 | P13: 1Porcentaje de AIU
A14: 1UNION TEMPORAL LADOINSA 2022Porcentaje de AIU | B14: 1 | C14: UNION TEMPORAL LADOINSA 2022 | D14: Administracion | E14: Porcentaje de AIU | F14: Porcentaje de AIU | K14: 0.1 | P14: 1Porcentaje de AIU
A15: 1UNIÓN TEMPORAL ASEO COLOMBIA AMP4Porcentaje de AIU | B15: 1 | C15: UNIÓN TEMPORAL ASEO COLOMBIA AMP4 | D15: Administracion | E15: Porcentaje de AIU | F15: Porcentaje de AIU | K15: 0.1 | P15: 1Porcentaje de AIU
A16: 1UNIÓN TEMPORAL CCE AMP IV 2022Porcentaje de AIU | B16: 1 | C16: UNIÓN TEMPORAL CCE AMP IV 2022 | D16: Administracion | E16: Porcentaje de AIU | F16: Porcentaje de AIU | K16: 0.1 | P16: 1Porcentaje de AIU
A17: 1UNION TEMPORAL ECOLIMPIEZA 4GPorcentaje de AIU | B17: 1 | C17: UNION TEMPORAL ECOLIMPIEZA 4G | D17: Administracion | E17: Porcentaje de AIU | F17: Porcentaje de AIU | K17: 0.1 | P17: 1Porcentaje de AIU
A18: 1UNIÓN TEMPORAL EMINSER SOLOASEO 2023Porcentaje de AIU | B18: 1 | C18: UNIÓN TEMPORAL EMINSER SOLOASEO 2023 | D18: Administracion | E18: Porcentaje de AIU | F18: Porcentaje de AIU | K18: 0.1 | P18: 1Porcentaje de AIU
A19: 1UNION TEMPORAL OUTSOURCING GIAFPorcentaje de AIU | B19: 1 | C19: UNION TEMPORAL OUTSOURCING GIAF | D19: Administracion | E19: Porcentaje de AIU | F19: Porcentaje de AIU | K19: 0.1 | P19: 1Porcentaje de AIU
A20: 1UNION TEMPORAL R&J 2022Porcentaje de AIU | B20: 1 | C20: UNION TEMPORAL R&J 2022 | D20: Administracion | E20: Porcentaje de AIU | F20: Porcentaje de AIU | K20: 0.1 | P20: 1Porcentaje de AIU
A21: 1UNION TEMPORAL SERVICIOS INTEGRALESPorcentaje de AIU | B21: 1 | C21: UNION TEMPORAL SERVICIOS INTEGRALES | D21: Administracion | E21: Porcentaje de AIU | F21: Porcentaje de AIU | K21: 0.1 | P21: 1Porcentaje de AIU
A22: 1UT EASYCLEAN ASEO PROFESIONALPorcentaje de AIU | B22: 1 | C22: UT EASYCLEAN ASEO PROFESIONAL | D22: Administracion | E22: Porcentaje de AIU | F22: Porcentaje de AIU | K22: 0.1 | P22: 1Porcentaje de AIU
A23: 1UT GRUPO ADINPorcentaje de AIU | B23: 1 | C23: UT GRUPO ADIN | D23: Administracion | E23: Porcentaje de AIU | F23: Porcentaje de AIU | K23: 0.1 | P23: 1Porcentaje de AIU
A24: 1ASECOLBAS LTDAJardineria mt2 | B24: 1 | C24: ASECOLBAS LTDA | D24: Servicio | E24: Jardineria mt2 | F24: Jardineria mt2 | K24: 927 | P24: 1Jardineria mt2
A25: 1CLEANER S.A.Jardineria mt2 | B25: 1 | C25: CLEANER S.A. | D25: Servicio | E25: Jardineria mt2 | F25: Jardineria mt2 | K25: 1051 | P25: 1Jardineria mt2
A26: 1COMPAÑÍA DE SERVICIOS Y ADMINISTRACIÓN SA SERDAN SAJardineria mt2 | B26: 1 | C26: COMPAÑÍA DE SERVICIOS Y ADMINISTRACIÓN SA SERDAN SA | D26: Servicio | E26: Jardineria mt2 | F26: Jardineria mt2 | K26: 2472 | P26: 1Jardineria mt2
A27: 1CONSERJES INMOBILIARIOS LTDAJardineria mt2 | B27: 1 | C27: CONSERJES INMOBILIARIOS LTDA | D27: Servicio | E27: Jardineria mt2 | F27: Jardineria mt2 | K27: 865 | P27: 1Jardineria mt2
A28: 1CONSORCIO ELITEJardineria mt2 | B28: 1 | C28: CONSORCIO ELITE | D28: Servicio | E28: Jardineria mt2 | F28: Jardineria mt2 | K28: 1608 | P28: 1Jardineria mt2
A29: 1GRUPO GECJardineria mt2 | B29: 1 | C29: GRUPO GEC | D29: Servicio | E29: Jardineria mt2 | F29: Jardineria mt2 | K29: 1359 | P29: 1Jardineria mt2
A30: 1INCIHUILSA SAS ESPJardineria mt2 | B30: 1 | C30: INCIHUILSA SAS ESP | D30: Servicio | E30: Jardineria mt2 | F30: Jardineria mt2 | K30: 1854 | P30: 1Jardineria mt2
A31: 1INTERASEO S.A.S. E.S.P.Jardineria mt2 | B31: 1 | C31: INTERASEO S.A.S. E.S.P. | D31: Servicio | E31: Jardineria mt2 | F31: Jardineria mt2 | K31: 464 | P31: 1Jardineria mt2
A32: 1KIOS SASJardineria mt2 | B32: 1 | C32: KIOS SAS | D32: Servicio | E32: Jardineria mt2 | F32: Jardineria mt2 | K32: 865 | P32: 1Jardineria mt2
A33: 1LIMPIEZA INSTITUCIONAL LASU S.A.S.Jardineria mt2 | B33: 1 | C33: LIMPIEZA INSTITUCIONAL LASU S.A.S. | D33: Servicio | E33: Jardineria mt2 | F33: Jardineria mt2 | K33: 470 | P33: 1Jardineria mt2
A34: 1N&R INTEGRAL SERVICE COMPANY S.A.S.Jardineria mt2 | B34: 1 | C34: N&R INTEGRAL SERVICE COMPANY S.A.S. | D34: Servicio | E34: Jardineria mt2 | F34: Jardineria mt2 | K34: 1217 | P34: 1Jardineria mt2
A35: 1SOSEGE SASJardineria mt2 | B35: 1 | C35: SOSEGE SAS | D35: Servicio | E35: Jardineria mt2 | F35: Jardineria mt2 | K35: 927 | P35: 1Jardineria mt2
A36: 1UNION TEMPORAL LADOINSA 2022Jardineria mt2 | B36: 1 | C36: UNION TEMPORAL LADOINSA 2022 | D36: Servicio | E36: Jardineria mt2 | F36: Jardineria mt2 | K36: 4326 | P36: 1Jardineria mt2
A37: 1UNIÓN TEMPORAL ASEO COLOMBIA AMP4Jardineria mt2 | B37: 1 | C37: UNIÓN TEMPORAL ASEO COLOMBIA AMP4 | D37: Servicio | E37: Jardineria mt2 | F37: Jardineria mt2 | K37: 619 | P37: 1Jardineria mt2
A38: 1UNIÓN TEMPORAL CCE AMP IV 2022Jardineria mt2 | B38: 1 | C38: UNIÓN TEMPORAL CCE AMP IV 2022 | D38: Servicio | E38: Jardineria mt2 | F38: Jardineria mt2 | K38: 865 | P38: 1Jardineria mt2
A39: 1UNION TEMPORAL ECOLIMPIEZA 4GJardineria mt2 | B39: 1 | C39: UNION TEMPORAL ECOLIMPIEZA 4G | D39: Servicio | E39: Jardineria mt2 | F39: Jardineria mt2 | K39: 494 | P39: 1Jardineria mt2
A40: 1UNIÓN TEMPORAL EMINSER SOLOASEO 2023Jardineria mt2 | B40: 1 | C40: UNIÓN TEMPORAL EMINSER SOLOASEO 2023 | D40: Servicio | E40: Jardineria mt2 | F40: Jardineria mt2 | K40: 223 | P40: 1Jardineria mt2
A41: 1UNION TEMPORAL OUTSOURCING GIAFJardineria mt2 | B41: 1 | C41: UNION TEMPORAL OUTSOURCING GIAF | D41: Servicio | E41: Jardineria mt2 | F41: Jardineria mt2 | K41: 564 | P41: 1Jardineria mt2
A42: 1UNION TEMPORAL R&J 2022Jardineria mt2 | B42: 1 | C42: UNION TEMPORAL R&J 2022 | D42: Servicio | E42: Jardineria mt2 | F42: Jardineria mt2 | K42: 1236 | P42: 1Jardineria mt2
A43: 1UNION TEMPORAL SERVICIOS INTEGRALESJardineria mt2 | B43: 1 | C43: UNION TEMPORAL SERVICIOS INTEGRALES | D43: Servicio | E43: Jardineria mt2 | F43: Jardineria mt2 | K43: 716 | P43: 1Jardineria mt2
A44: 1UT EASYCLEAN ASEO PROFESIONALJardineria mt2 | B44: 1 | C44: UT EASYCLEAN ASEO PROFESIONAL | D44: Servicio | E44: Jardineria mt2 | F44: Jardineria mt2 | K44: 545 | P44: 1Jardineria mt2
A45: 1UT GRUPO ADINJardineria mt2 | B45: 1 | C45: UT GRUPO ADIN | D45: Servicio | E45: Jardineria mt2 | F45: Jardineria mt2 | K45: 751 | P45: 1Jardineria mt2
A46: 1ASECOLBAS LTDAOperario de aseo y cafetería con compromiso social | B46: 1 | C46: ASECOLBAS LTDA | D46: Servicio | E46: Operario de aseo y cafetería con compromiso social | F46: Operario de aseo y cafetería con compromiso social | K46: 2627978 | P46: 1Operario de aseo y cafetería con compromiso social
A47: 1CLEANER S.A.Operario de aseo y cafetería con compromiso social | B47: 1 | C47: CLEANER S.A. | D47: Servicio | E47: Operario de aseo y cafetería con compromiso social | F47: Operario de aseo y cafetería con compromiso social | K47: 2627978 | P47: 1Operario de aseo y cafetería con compromiso social
A48: 1COMPAÑÍA DE SERVICIOS Y ADMINISTRACIÓN SA SERDAN SAOperario de aseo y cafetería con compromiso social | B48: 1 | C48: COMPAÑÍA DE SERVICIOS Y ADMINISTRACIÓN SA SERDAN SA | D48: Servicio | E48: Operario de aseo y cafetería con compromiso social | F48: Operario de aseo y cafetería con compromiso social | K48: 2627978 | P48: 1Operario de aseo y cafetería con compromiso social
A49: 1CONSERJES INMOBILIARIOS LTDAOperario de aseo y cafetería con compromiso social | B49: 1 | C49: CONSERJES INMOBILIARIOS LTDA | D49: Servicio | E49: Operario de aseo y cafetería con compromiso social | F49: Operario de aseo y cafetería con compromiso social | K49: 2627978 | P49: 1Operario de aseo y cafetería con compromiso social
A50: 1CONSORCIO ELITEOperario de aseo y cafetería con compromiso social | B50: 1 | C50: CONSORCIO ELITE | D50: Servicio | E50: Operario de aseo y cafetería con compromiso social | F50: Operario de aseo y cafetería con compromiso social | K50: 2627978 | P50: 1Operario de aseo y cafetería con compromiso social
A51: 1GRUPO GECOperario de aseo y cafetería con compromiso social | B51: 1 | C51: GRUPO GEC | D51: Servicio | E51: Operario de aseo y cafetería con compromiso social | F51: Operario de aseo y cafetería con compromiso social | K51: 2627978 | P51: 1Operario de aseo y cafetería con compromiso social
A52: 1INCIHUILSA SAS ESPOperario de aseo y cafetería con compromiso social | B52: 1 | C52: INCIHUILSA SAS ESP | D52: Servicio | E52: Operario de aseo y cafetería con compromiso social | F52: Operario de aseo y cafetería con compromiso social | K52: 2627978 | P52: 1Operario de aseo y cafetería con compromiso social
A53: 1INTERASEO S.A.S. E.S.P.Operario de aseo y cafetería con compromiso social | B53: 1 | C53: INTERASEO S.A.S. E.S.P. | D53: Servicio | E53: Operario de aseo y cafetería con compromiso social | F53: Operario de aseo y cafetería con compromiso social | K53: 2627978 | P53: 1Operario de aseo y cafetería con compromiso social
A54: 1KIOS SASOperario de aseo y cafetería con compromiso social | B54: 1 | C54: KIOS SAS | D54: Servicio | E54: Operario de aseo y cafetería con compromiso social | F54: Operario de aseo y cafetería con compromiso social | K54: 2627978 | P54: 1Operario de aseo y cafetería con compromiso social
A55: 1LIMPIEZA INSTITUCIONAL LASU S.A.S.Operario de aseo y cafetería con compromiso social | B55: 1 | C55: LIMPIEZA INSTITUCIONAL LASU S.A.S. | D55: Servicio | E55: Operario de aseo y cafetería con compromiso social | F55: Operario de aseo y cafetería con compromiso social | K55: 2627978 | P55: 1Operario de aseo y cafetería con compromiso social
A56: 1N&R INTEGRAL SERVICE COMPANY S.A.S.Operario de aseo y cafetería con compromiso social | B56: 1 | C56: N&R INTEGRAL SERVICE COMPANY S.A.S. | D56: Servicio | E56: Operario de aseo y cafetería con compromiso social | F56: Operario de aseo y cafetería con compromiso social | K56: 2627978 | P56: 1Operario de aseo y cafetería con compromiso social
A57: 1SOSEGE SASOperario de aseo y cafetería con compromiso social | B57: 1 | C57: SOSEGE SAS | D57: Servicio | E57: Operario de aseo y cafetería con compromiso social | F57: Operario de aseo y cafetería con compromiso social | K57: 2627978 | P57: 1Operario de aseo y cafetería con compromiso social
A58: 1UNION TEMPORAL LADOINSA 2022Operario de aseo y cafetería con compromiso social | B58: 1 | C58: UNION TEMPORAL LADOINSA 2022 | D58: Servicio | E58: Operario de aseo y cafetería con compromiso social | F58: Operario de aseo y cafetería con compromiso social | K58: 2627978 | P58: 1Operario de aseo y cafetería con compromiso social
A59: 1UNIÓN TEMPORAL ASEO COLOMBIA AMP4Operario de aseo y cafetería con compromiso social | B59: 1 | C59: UNIÓN TEMPORAL ASEO COLOMBIA AMP4 | D59: Servicio | E59: Operario de aseo y cafetería con compromiso social | F59: Operario de aseo y cafetería con compromiso social | K59: 2627978 | P59: 1Operario de aseo y cafetería con compromiso social
A60: 1UNIÓN TEMPORAL CCE AMP IV 2022Operario de aseo y cafetería con compromiso social | B60: 1 | C60: UNIÓN TEMPORAL CCE AMP IV 2022 | D60: Servicio | E60: Operario de aseo y cafetería con compromiso social | F60: Operario de aseo y cafetería con compromiso social | K60: 2627978 | P60: 1Operario de aseo y cafetería con compromiso social
A61: 1UNION TEMPORAL ECOLIMPIEZA 4GOperario de aseo y cafetería con compromiso social | B61: 1 | C61: UNION TEMPORAL ECOLIMPIEZA 4G | D61: Servicio | E61: Operario de aseo y cafetería con compromiso social | F61: Operario de aseo y cafetería con compromiso social | K61: 2627978 | P61: 1Operario de aseo y cafetería con compromiso social
A62: 1UNIÓN TEMPORAL EMINSER SOLOASEO 2023Operario de aseo y cafetería con compromiso social | B62: 1 | C62: UNIÓN TEMPORAL EMINSER SOLOASEO 2023 | D62: Servicio | E62: Operario de aseo y cafetería con compromiso social | F62: Operario de aseo y cafetería con compromiso social | K62: 2627978 | P62: 1Operario de aseo y cafetería con compromiso social
A63: 1UNION TEMPORAL OUTSOURCING GIAFOperario de aseo y cafetería con compromiso social | B63: 1 | C63: UNION TEMPORAL OUTSOURCING GIAF | D63: Servicio | E63: Operario de aseo y cafetería con compromiso social | F63: Operario de aseo y cafetería con compromiso social | K63: 2627978 | P63: 1Operario de aseo y cafetería con compromiso social
A64: 1UNION TEMPORAL R&J 2022Operario de aseo y cafetería con compromiso social | B64: 1 | C64: UNION TEMPORAL R&J 2022 | D64: Servicio | E64: Operario de aseo y cafetería con compromiso social | F64: Operario de aseo y cafetería con compromiso social | K64: 2627978 | P64: 1Operario de aseo y cafetería con compromiso social
A65: 1UNION TEMPORAL SERVICIOS INTEGRALESOperario de aseo y cafetería con compromiso social | B65: 1 | C65: UNION TEMPORAL SERVICIOS INTEGRALES | D65: Servicio | E65: Operario de aseo y cafetería con compromiso social | F65: Operario de aseo y cafetería con compromiso social | K65: 2627978 | P65: 1Operario de aseo y cafetería con compromiso social
A66: 1UT EASYCLEAN ASEO PROFESIONALOperario de aseo y cafetería con compromiso social | B66: 1 | C66: UT EASYCLEAN ASEO PROFESIONAL | D66: Servicio | E66: Operario de aseo y cafetería con compromiso social | F66: Operario de aseo y cafetería con compromiso social | K66: 2627978 | P66: 1Operario de aseo y cafetería con compromiso social
A67: 1UT GRUPO ADINOperario de aseo y cafetería con compromiso social | B67: 1 | C67: UT GRUPO ADIN | D67: Servicio | E67: Operario de aseo y cafetería con compromiso social | F67: Operario de aseo y cafetería con compromiso social | K67: 2627978 | P67: 1Operario de aseo y cafetería con compromiso social
A68: 1ASECOLBAS LTDAOperario de aseo y cafetería | B68: 1 | C68: ASECOLBAS LTDA | D68: Servicio | E68: Operario de aseo y cafetería | F68: Operario de aseo y cafetería | K68: 2465868 | P68: 1Operario de aseo y cafetería
A69: 1CLEANER S.A.Operario de aseo y cafetería | B69: 1 | C69: CLEANER S.A. | D69: Servicio | E69: Operario de aseo y cafetería | F69: Operario de aseo y cafetería | K69: 2465868 | P69: 1Operario de aseo y cafetería
A70: 1COMPAÑÍA DE SERVICIOS Y ADMINISTRACIÓN SA SERDAN SAOperario de aseo y cafetería | B70: 1 | C70: COMPAÑÍA DE SERVICIOS Y ADMINISTRACIÓN SA SERDAN SA | D70: Servicio | E70: Operario de aseo y cafetería | F70: Operario de aseo y cafetería | K70: 2465868 | P70: 1Operario de aseo y cafetería
A71: 1CONSERJES INMOBILIARIOS LTDAOperario de aseo y cafetería | B71: 1 | C71: CONSERJES INMOBILIARIOS LTDA | D71: Servicio | E71: Operario de aseo y cafetería | F71: Operario de aseo y cafetería | K71: 2465868 | P71: 1Operario de aseo y cafetería
A72: 1CONSORCIO ELITEOperario de aseo y cafetería | B72: 1 | C72: CONSORCIO ELITE | D72: Servicio | E72: Operario de aseo y cafetería | F72: Operario de aseo y cafetería | K72: 2465868 | P72: 1Operario de aseo y cafetería
A73: 1GRUPO GECOperario de aseo y cafetería | B73: 1 | C73: GRUPO GEC | D73: Servicio | E73: Operario de aseo y cafetería | F73: Operario de aseo y cafetería | K73: 2465868 | P73: 1Operario de aseo y cafetería
A74: 1INCIHUILSA SAS ESPOperario de aseo y cafetería | B74: 1 | C74: INCIHUILSA SAS ESP | D74: Servicio | E74: Operario de aseo y cafetería | F74: Operario de aseo y cafetería | K74: 2465868 | P74: 1Operario de aseo y cafetería
A75: 1INTERASEO S.A.S. E.S.P.Operario de aseo y cafetería | B75: 1 | C75: INTERASEO S.A.S. E.S.P. | D75: Servicio | E75: Operario de aseo y cafetería | F75: Operario de aseo y cafetería | K75: 2465868 | P75: 1Operario de aseo y cafetería
A76: 1KIOS SASOperario de aseo y cafetería | B76: 1 | C76: KIOS SAS | D76: Servicio | E76: Operario de aseo y cafetería | F76: Operario de aseo y cafetería | K76: 2465868 | P76: 1Operario de aseo y cafetería
A77: 1LIMPIEZA INSTITUCIONAL LASU S.A.S.Operario de aseo y cafetería | B77: 1 | C77: LIMPIEZA INSTITUCIONAL LASU S.A.S. | D77: Servicio | E77: Operario de aseo y cafetería | F77: Operario de aseo y cafetería | K77: 2465868 | P77: 1Operario de aseo y cafetería
A78: 1N&R INTEGRAL SERVICE COMPANY S.A.S.Operario de aseo y cafetería | B78: 1 | C78: N&R INTEGRAL SERVICE COMPANY S.A.S. | D78: Servicio | E78: Operario de aseo y cafetería | F78: Operario de aseo y cafetería | K78: 2465868 | P78: 1Operario de aseo y cafetería
A79: 1SOSEGE SASOperario de aseo y cafetería | B79: 1 | C79: SOSEGE SAS | D79: Servicio | E79: Operario de aseo y cafetería | F79: Operario de aseo y cafetería | K79: 2465868 | P79: 1Operario de aseo y cafetería
A80: 1UNION TEMPORAL LADOINSA 2022Operario de aseo y cafetería | B80: 1 | C80: UNION TEMPORAL LADOINSA 2022 | D80: Servicio | E80: Operario de aseo y cafetería | F80: Operario de aseo y cafetería | K80: 2465868 | P80: 1Operario de aseo y cafetería
A81: 1UNIÓN TEMPORAL ASEO COLOMBIA AMP4Operario de aseo y cafetería | B81: 1 | C81: UNIÓN TEMPORAL ASEO COLOMBIA AMP4 | D81: Servicio | E81: Operario de aseo y cafetería | F81: Operario de aseo y cafetería | K81: 2465868 | P81: 1Operario de aseo y cafetería
A82: 1UNIÓN TEMPORAL CCE AMP IV 2022Operario de aseo y cafetería | B82: 1 | C82: UNIÓN TEMPORAL CCE AMP IV 2022 | D82: Servicio | E82: Operario de aseo y cafetería | F82: Operario de aseo y cafetería | K82: 2465868 | P82: 1Operario de aseo y cafetería
A83: 1UNION TEMPORAL ECOLIMPIEZA 4GOperario de aseo y cafetería | B83: 1 | C83: UNION TEMPORAL ECOLIMPIEZA 4G | D83: Servicio | E83: Operario de aseo y cafetería | F83: Operario de aseo y cafetería | K83: 2465868 | P83: 1Operario de aseo y cafetería
A84: 1UNIÓN TEMPORAL EMINSER SOLOASEO 2023Operario de aseo y cafetería | B84: 1 | C84: UNIÓN TEMPORAL EMINSER SOLOASEO 2023 | D84: Servicio | E84: Operario de aseo y cafetería | F84: Operario de aseo y cafetería | K84: 2465868 | P84: 1Operario de aseo y cafetería
A85: 1UNION TEMPORAL OUTSOURCING GIAFOperario de aseo y cafetería | B85: 1 | C85: UNION TEMPORAL OUTSOURCING GIAF | D85: Servicio | E85: Operario de aseo y cafetería | F85: Operario de aseo y cafetería | K85: 2465868 | P85: 1Operario de aseo y cafetería
A86: 1UNION TEMPORAL R&J 2022Operario de aseo y cafetería | B86: 1 | C86: UNION TEMPORAL R&J 2022 | D86: Servicio | E86: Operario de aseo y cafetería | F86: Operario de aseo y cafetería | K86: 2465868 | P86: 1Operario de aseo y cafetería
A87: 1UNION TEMPORAL SERVICIOS INTEGRALESOperario de aseo y cafetería | B87: 1 | C87: UNION TEMPORAL SERVICIOS INTEGRALES | D87: Servicio | E87: Operario de aseo y cafetería | F87: Operario de aseo y cafetería | K87: 2465868 | P87: 1Operario de aseo y cafetería
A88: 1UT EASYCLEAN ASEO PROFESIONALOperario de aseo y cafetería | B88: 1 | C88: UT EASYCLEAN ASEO PROFESIONAL | D88: Servicio | E88: Operario de aseo y cafetería | F88: Operario de aseo y cafetería | K88: 2465868 | P88: 1Operario de aseo y cafetería
A89: 1UT GRUPO ADINOperario de aseo y cafetería | B89: 1 | C89: UT GRUPO ADIN | D89: Servicio | E89: Operario de aseo y cafetería | F89: Operario de aseo y cafetería | K89: 2465868 | P89: 1Operario de aseo y cafetería
A90: 1ASECOLBAS LTDAOperario de mantenimiento | B90: 1 | C90: ASECOLBAS LTDA | D90: Servicio | E90: Operario de mantenimiento | F90: Operario de mantenimiento | K90: 2465868 | P90: 1Operario de mantenimiento
A91: 1CLEANER S.A.Operario de mantenimiento | B91: 1 | C91: CLEANER S.A. | D91: Servicio | E91: Operario de mantenimiento | F91: Operario de mantenimiento | K91: 2465868 | P91: 1Operario de mantenimiento
A92: 1COMPAÑÍA DE SERVICIOS Y ADMINISTRACIÓN SA SERDAN SAOperario de mantenimiento | B92: 1 | C92: COMPAÑÍA DE SERVICIOS Y ADMINISTRACIÓN SA SERDAN SA | D92: Servicio | E92: Operario de mantenimiento | F92: Operario de mantenimiento | K92: 2465868 | P92: 1Operario de mantenimiento
A93: 1CONSERJES INMOBILIARIOS LTDAOperario de mantenimiento | B93: 1 | C93: CONSERJES INMOBILIARIOS LTDA | D93: Servicio | E93: Operario de mantenimiento | F93: Operario de mantenimiento | K93: 2465868 | P93: 1Operario de mantenimiento
A94: 1CONSORCIO ELITEOperario de mantenimiento | B94: 1 | C94: CONSORCIO ELITE | D94: Servicio | E94: Operario de mantenimiento | F94: Operario de mantenimiento | K94: 2465868 | P94: 1Operario de mantenimiento
A95: 1GRUPO GECOperario de mantenimiento | B95: 1 | C95: GRUPO GEC | D95: Servicio | E95: Operario de mantenimiento | F95: Operario de mantenimiento | K95: 2465868 | P95: 1Operario de mantenimiento
A96: 1INCIHUILSA SAS ESPOperario de mantenimiento | B96: 1 | C96: INCIHUILSA SAS ESP | D96: Servicio | E96: Operario de mantenimiento | F96: Operario de mantenimiento | K96: 2465868 | P96: 1Operario de mantenimiento
A97: 1INTERASEO S.A.S. E.S.P.Operario de mantenimiento | B97: 1 | C97: INTERASEO S.A.S. E.S.P. | D97: Servicio | E97: Operario de mantenimiento | F97: Operario de mantenimiento | K97: 2465868 | P97: 1Operario de mantenimiento
A98: 1KIOS SASOperario de mantenimiento | B98: 1 | C98: KIOS SAS | D98: Servicio | E98: Operario de mantenimiento | F98: Operario de mantenimiento | K98: 2465868 | P98: 1Operario de mantenimiento
A99: 1LIMPIEZA INSTITUCIONAL LASU S.A.S.Operario de mantenimiento | B99: 1 | C99: LIMPIEZA INSTITUCIONAL LASU S.A.S. | D99: Servicio | E99: Operario de mantenimiento | F99: Operario de mantenimiento | K99: 2465868 | P99: 1Operario de mantenimiento
A100: 1N&R INTEGRAL SERVICE COMPANY S.A.S.Operario de mantenimiento | B100: 1 | C100: N&R INTEGRAL SERVICE COMPANY S.A.S. | D100: Servicio | E100: Operario de mantenimiento | F100: Operario de mantenimiento | K100: 2465868 | P100: 1Operario de mantenimiento
A101: 1SOSEGE SASOperario de mantenimiento | B101: 1 | C101: SOSEGE SAS | D101: Servicio | E101: Operario de mantenimiento | F101: Operario de mantenimiento | K101: 2465868 | P101: 1Operario de mantenimiento
A102: 1UNION TEMPORAL LADOINSA 2022Operario de mantenimiento | B102: 1 | C102: UNION TEMPORAL LADOINSA 2022 | D102: Servicio | E102: Operario de mantenimiento | F102: Operario de mantenimiento | K102: 2665025 | P102: 1Operario de mantenimiento
A103: 1UNIÓN TEMPORAL ASEO COLOMBIA AMP4Operario de mantenimiento | B103: 1 | C103: UNIÓN TEMPORAL ASEO COLOMBIA AMP4 | D103: Servicio | E103: Operario de mantenimiento | F103: Operario de mantenimiento | K103: 2465868 | P103: 1Operario de mantenimiento
A104: 1UNIÓN TEMPORAL CCE AMP IV 2022Operario de mantenimiento | B104: 1 | C104: UNIÓN TEMPORAL CCE AMP IV 2022 | D104: Servicio | E104: Operario de mantenimiento | F104: Operario de mantenimiento | K104: 2465868 | P104: 1Operario de mantenimiento
A105: 1UNION TEMPORAL ECOLIMPIEZA 4GOperario de mantenimiento | B105: 1 | C105: UNION TEMPORAL ECOLIMPIEZA 4G | D105: Servicio | E105: Operario de mantenimiento | F105: Operario de mantenimiento | K105: 2465868 | P105: 1Operario de mantenimiento
A106: 1UNIÓN TEMPORAL EMINSER SOLOASEO 2023Operario de mantenimiento | B106: 1 | C106: UNIÓN TEMPORAL EMINSER SOLOASEO 2023 | D106: Servicio | E106: Operario de mantenimiento | F106: Operario de mantenimiento | K106: 2465868 | P106: 1Operario de mantenimiento
A107: 1UNION TEMPORAL OUTSOURCING GIAFOperario de mantenimiento | B107: 1 | C107: UNION TEMPORAL OUTSOURCING GIAF | D107: Servicio | E107: Operario de mantenimiento | F107: Operario de mantenimiento | K107: 2465868 | P107: 1Operario de mantenimiento
A108: 1UNION TEMPORAL R&J 2022Operario de mantenimiento | B108: 1 | C108: UNION TEMPORAL R&J 2022 | D108: Servicio | E108: Operario de mantenimiento | F108: Operario de mantenimiento | K108: 2465868 | P108: 1Operario de mantenimiento
A109: 1UNION TEMPORAL SERVICIOS INTEGRALESOperario de mantenimiento | B109: 1 | C109: UNION TEMPORAL SERVICIOS INTEGRALES | D109: Servicio | E109: Operario de mantenimiento | F109: Operario de mantenimiento | K109: 2465868 | P109: 1Operario de mantenimiento
A110: 1UT EASYCLEAN ASEO PROFESIONALOperario de mantenimiento | B110: 1 | C110: UT EASYCLEAN ASEO PROFESIONAL | D110: Servicio | E110: Operario de mantenimiento | F110: Operario de mantenimiento | K110: 2465868 | P110: 1Operario de mantenimiento
A111: 1UT GRUPO ADINOperario de mantenimiento | B111: 1 | C111: UT GRUPO ADIN | D111: Servicio | E111: Operario de mantenimiento | F111: Operario de mantenimiento | K111: 2465868 | P111: 1Operario de mantenimiento
A112: 1ASECOLBAS LTDAOperario auxiliar | B112: 1 | C112: ASECOLBAS LTDA | D112: Servicio | E112: Operario auxiliar | F112: Operario auxiliar | K112: 2465868 | P112: 1Operario auxiliar
A113: 1CLEANER S.A.Operario auxiliar | B113: 1 | C113: CLEANER S.A. | D113: Servicio | E113: Operario auxiliar | F113: Operario auxiliar | K113: 2465868 | P113: 1Operario auxiliar
A114: 1COMPAÑÍA DE SERVICIOS Y ADMINISTRACIÓN SA SERDAN SAOperario auxiliar | B114: 1 | C114: COMPAÑÍA DE SERVICIOS Y ADMINISTRACIÓN SA SERDAN SA | D114: Servicio | E114: Operario auxiliar | F114: Operario auxiliar | K114: 2465868 | P114: 1Operario auxiliar
A115: 1CONSERJES INMOBILIARIOS LTDAOperario auxiliar | B115: 1 | C115: CONSERJES INMOBILIARIOS LTDA | D115: Servicio | E115: Operario auxiliar | F115: Operario auxiliar | K115: 2465868 | P115: 1Operario auxiliar
A116: 1CONSORCIO ELITEOperario auxiliar | B116: 1 | C116: CONSORCIO ELITE | D116: Servicio | E116: Operario auxiliar | F116: Operario auxiliar | K116: 2465868 | P116: 1Operario auxiliar
A117: 1GRUPO GECOperario auxiliar | B117: 1 | C117: GRUPO GEC | D117: Servicio | E117: Operario auxiliar | F117: Operario auxiliar | K117: 2465868 | P117: 1Operario auxiliar
A118: 1INCIHUILSA SAS ESPOperario auxiliar | B118: 1 | C118: INCIHUILSA SAS ESP | D118: Servicio | E118: Operario auxiliar | F118: Operario auxiliar | K118: 2465868 | P118: 1Operario auxiliar
A119: 1INTERASEO S.A.S. E.S.P.Operario auxiliar | B119: 1 | C119: INTERASEO S.A.S. E.S.P. | D119: Servicio | E119: Operario auxiliar | F119: Operario auxiliar | K119: 2465868 | P119: 1Operario auxiliar
A120: 1KIOS SASOperario auxiliar | B120: 1 | C120: KIOS SAS | D120: Servicio | E120: Operario auxiliar | F120: Operario auxiliar | K120: 2465868 | P120: 1Operario auxiliar
A121: 1LIMPIEZA INSTITUCIONAL LASU S.A.S.Operario auxiliar | B121: 1 | C121: LIMPIEZA INSTITUCIONAL LASU S.A.S. | D121: Servicio | E121: Operario auxiliar | F121: Operario auxiliar | K121: 2465868 | P121: 1Operario auxiliar
A122: 1N&R INTEGRAL SERVICE COMPANY S.A.S.Operario auxiliar | B122: 1 | C122: N&R INTEGRAL SERVICE COMPANY S.A.S. | D122: Servicio | E122: Operario auxiliar | F122: Operario auxiliar | K122: 2465868 | P122: 1Operario auxiliar
A123: 1SOSEGE SASOperario auxiliar | B123: 1 | C123: SOSEGE SAS | D123: Servicio | E123: Operario auxiliar | F123: Operario auxiliar | K123: 2465868 | P123: 1Operario auxiliar
A124: 1UNION TEMPORAL LADOINSA 2022Operario auxiliar | B124: 1 | C124: UNION TEMPORAL LADOINSA 2022 | D124: Servicio | E124: Operario auxiliar | F124: Operario auxiliar | K124: 2465868 | P124: 1Operario auxiliar
A125: 1UNIÓN TEMPORAL ASEO COLOMBIA AMP4Operario auxiliar | B125: 1 | C125: UNIÓN TEMPORAL ASEO COLOMBIA AMP4 | D125: Servicio | E125: Operario auxiliar | F125: Operario auxiliar | K125: 2465868 | P125: 1Operario auxiliar
A126: 1UNIÓN TEMPORAL CCE AMP IV 2022Operario auxiliar | B126: 1 | C126: UNIÓN TEMPORAL CCE AMP IV 2022 | D126: Servicio | E126: Operario auxiliar | F126: Operario auxiliar | K126: 2465868 | P126: 1Operario auxiliar
A127: 1UNION TEMPORAL ECOLIMPIEZA 4GOperario auxiliar | B127: 1 | C127: UNION TEMPORAL ECOLIMPIEZA 4G | D127: Servicio | E127: Operario auxiliar | F127: Operario auxiliar | K127: 2465868 | P127: 1Operario auxiliar
A128: 1UNIÓN TEMPORAL EMINSER SOLOASEO 2023Operario auxiliar | B128: 1 | C128: UNIÓN TEMPORAL EMINSER SOLOASEO 2023 | D128: Servicio | E128: Operario auxiliar | F128: Operario auxiliar | K128: 2465868 | P128: 1Operario auxiliar
A129: 1UNION TEMPORAL OUTSOURCING GIAFOperario auxiliar | B129: 1 | C129: UNION TEMPORAL OUTSOURCING GIAF | D129: Servicio | E129: Operario auxiliar | F129: Operario auxiliar | K129: 2465868 | P129: 1Operario auxiliar
A130: 1UNION TEMPORAL R&J 2022Operario auxiliar | B130: 1 | C130: UNION TEMPORAL R&J 2022 | D130: Servicio | E130: Operario auxiliar | F130: Operario auxiliar | K130: 2465868 | P130: 1Operario auxiliar
A131: 1UNION TEMPORAL SERVICIOS INTEGRALESOperario auxiliar | B131: 1 | C131: UNION TEMPORAL SERVICIOS INTEGRALES | D131: Servicio | E131: Operario auxiliar | F131: Operario auxiliar | K131: 2465868 | P131: 1Operario auxiliar
A132: 1UT EASYCLEAN ASEO PROFESIONALOperario auxiliar | B132: 1 | C132: UT EASYCLEAN ASEO PROFESIONAL | D132: Servicio | E132: Operario auxiliar | F132: Operario auxiliar | K132: 2465868 | P132: 1Operario auxiliar
A133: 1UT GRUPO ADINOperario auxiliar | B133: 1 | C133: UT GRUPO ADIN | D133: Servicio | E133: Operario auxiliar | F133: Operario auxiliar | K133: 2465868 | P133: 1Operario auxiliar
A134: 1ASECOLBAS LTDACoordinador de tiempo completo | B134: 1 | C134: ASECOLBAS LTDA | D134: Servicio | E134: Coordinador de tiempo completo | F134: Coordinador de tiempo completo | K134: 2465868 | P134: 1Coordinador de tiempo completo
A135: 1CLEANER S.A.Coordinador de tiempo completo | B135: 1 | C135: CLEANER S.A. | D135: Servicio | E135: Coordinador de tiempo completo | F135: Coordinador de tiempo completo | K135: 2465868 | P135: 1Coordinador de tiempo completo
A136: 1COMPAÑÍA DE SERVICIOS Y ADMINISTRACIÓN SA SERDAN SACoordinador de tiempo completo | B136: 1 | C136: COMPAÑÍA DE SERVICIOS Y ADMINISTRACIÓN SA SERDAN SA | D136: Servicio | E136: Coordinador de tiempo completo | F136: Coordinador de tiempo completo | K136: 3081189 | P136: 1Coordinador de tiempo completo
A137: 1CONSERJES INMOBILIARIOS LTDACoordinador de tiempo completo | B137: 1 | C137: CONSERJES INMOBILIARIOS LTDA | D137: Servicio | E137: Coordinador de tiempo completo | F137: Coordinador de tiempo completo | K137: 2465868 | P137: 1Coordinador de tiempo completo
A138: 1CONSORCIO ELITECoordinador de tiempo completo | B138: 1 | C138: CONSORCIO ELITE | D138: Servicio | E138: Coordinador de tiempo completo | F138: Coordinador de tiempo completo | K138: 2465868 | P138: 1Coordinador de tiempo completo
A139: 1GRUPO GECCoordinador de tiempo completo | B139: 1 | C139: GRUPO GEC | D139: Servicio | E139: Coordinador de tiempo completo | F139: Coordinador de tiempo completo | K139: 2465868 | P139: 1Coordinador de tiempo completo
A140: 1INCIHUILSA SAS ESPCoordinador de tiempo completo | B140: 1 | C140: INCIHUILSA SAS ESP | D140: Servicio | E140: Coordinador de tiempo completo | F140: Coordinador de tiempo completo | K140: 2465868 | P140: 1Coordinador de tiempo completo
A141: 1INTERASEO S.A.S. E.S.P.Coordinador de tiempo completo | B141: 1 | C141: INTERASEO S.A.S. E.S.P. | D141: Servicio | E141: Coordinador de tiempo completo | F141: Coordinador de tiempo completo | K141: 2465868 | P141: 1Coordinador de tiempo completo
A142: 1KIOS SASCoordinador de tiempo completo | B142: 1 | C142: KIOS SAS | D142: Servicio | E142: Coordinador de tiempo completo | F142: Coordinador de tiempo completo | K142: 2465868 | P142: 1Coordinador de tiempo completo
A143: 1LIMPIEZA INSTITUCIONAL LASU S.A.S.Coordinador de tiempo completo | B143: 1 | C143: LIMPIEZA INSTITUCIONAL LASU S.A.S. | D143: Servicio | E143: Coordinador de tiempo completo | F143: Coordinador de tiempo completo | K143: 2465868 | P143: 1Coordinador de tiempo completo
A144: 1N&R INTEGRAL SERVICE COMPANY S.A.S.Coordinador de tiempo completo | B144: 1 | C144: N&R INTEGRAL SERVICE COMPANY S.A.S. | D144: Servicio | E144: Coordinador de tiempo completo | F144: Coordinador de tiempo completo | K144: 2465868 | P144: 1Coordinador de tiempo completo
A145: 1SOSEGE SASCoordinador de tiempo completo | B145: 1 | C145: SOSEGE SAS | D145: Servicio | E145: Coordinador de tiempo completo | F145: Coordinador de tiempo completo | K145: 2465868 | P145: 1Coordinador de tiempo completo
A146: 1UNION TEMPORAL LADOINSA 2022Coordinador de tiempo completo | B146: 1 | C146: UNION TEMPORAL LADOINSA 2022 | D146: Servicio | E146: Coordinador de tiempo completo | F146: Coordinador de tiempo completo | K146: 2730025 | P146: 1Coordinador de tiempo completo
A147: 1UNIÓN TEMPORAL ASEO COLOMBIA AMP4Coordinador de tiempo completo | B147: 1 | C147: UNIÓN TEMPORAL ASEO COLOMBIA AMP4 | D147: Servicio | E147: Coordinador de tiempo completo | F147: Coordinador de tiempo completo | K147: 2465868 | P147: 1Coordinador de tiempo completo
A148: 1UNIÓN TEMPORAL CCE AMP IV 2022Coordinador de tiempo completo | B148: 1 | C148: UNIÓN TEMPORAL CCE AMP IV 2022 | D148: Servicio | E148: Coordinador de tiempo completo | F148: Coordinador de tiempo completo | K148: 2465868 | P148: 1Coordinador de tiempo completo
A149: 1UNION TEMPORAL ECOLIMPIEZA 4GCoordinador de tiempo completo | B149: 1 | C149: UNION TEMPORAL ECOLIMPIEZA 4G | D149: Servicio | E149: Coordinador de tiempo completo | F149: Coordinador de tiempo completo | K149: 2465868 | P149: 1Coordinador de tiempo completo
A150: 1UNIÓN TEMPORAL EMINSER SOLOASEO 2023Coordinador de tiempo completo | B150: 1 | C150: UNIÓN TEMPORAL EMINSER SOLOASEO 2023 | D150: Servicio | E150: Coordinador de tiempo completo | F150: Coordinador de tiempo completo | K150: 2465868 | P150: 1Coordinador de tiempo completo
A151: 1UNION TEMPORAL OUTSOURCING GIAFCoordinador de tiempo completo | B151: 1 | C151: UNION TEMPORAL OUTSOURCING GIAF | D151: Servicio | E151: Coordinador de tiempo completo | F151: Coordinador de tiempo completo | K151: 2465868 | P151: 1Coordinador de tiempo completo
A152: 1UNION TEMPORAL R&J 2022Coordinador de tiempo completo | B152: 1 | C152: UNION TEMPORAL R&J 2022 | D152: Servicio | E152: Coordinador de tiempo completo | F152: Coordinador de tiempo completo | K152: 2465868 | P152: 1Coordinador de tiempo completo
A153: 1UNION TEMPORAL SERVICIOS INTEGRALESCoordinador de tiempo completo | B153: 1 | C153: UNION TEMPORAL SERVICIOS INTEGRALES | D153: Servicio | E153: Coordinador de tiempo completo | F153: Coordinador de tiempo completo | K153: 2465868 | P153: 1Coordinador de tiempo completo
A154: 1UT EASYCLEAN ASEO PROFESIONALCoordinador de tiempo completo | B154: 1 | C154: UT EASYCLEAN ASEO PROFESIONAL | D154: Servicio | E154: Coordinador de tiempo completo | F154: Coordinador de tiempo completo | K154: 2465868 | P154: 1Coordinador de tiempo completo
A155: 1UT GRUPO ADINCoordinador de tiempo completo | B155: 1 | C155: UT GRUPO ADIN | D155: Servicio | E155: Coordinador de tiempo completo | F155: Coordinador de tiempo completo | K155: 2465868 | P155: 1Coordinador de tiempo completo
A156: 1ASECOLBAS LTDAJardinero | B156: 1 | C156: ASECOLBAS LTDA | D156: Servicio | E156: Jardinero | F156: Jardinero | K156: 2465868 | P156: 1Jardinero
A157: 1CLEANER S.A.Jardinero | B157: 1 | C157: CLEANER S.A. | D157: Servicio | E157: Jardinero | F157: Jardinero | K157: 2465868 | P157: 1Jardinero
A158: 1COMPAÑÍA DE SERVICIOS Y ADMINISTRACIÓN SA SERDAN SAJardinero | B158: 1 | C158: COMPAÑÍA DE SERVICIOS Y ADMINISTRACIÓN SA SERDAN SA | D158: Servicio | E158: Jardinero | F158: Jardinero | K158: 2465868 | P158: 1Jardinero
A159: 1CONSERJES INMOBILIARIOS LTDAJardinero | B159: 1 | C159: CONSERJES INMOBILIARIOS LTDA | D159: Servicio | E159: Jardinero | F159: Jardinero | K159: 2465868 | P159: 1Jardinero
A160: 1CONSORCIO ELITEJardinero | B160: 1 | C160: CONSORCIO ELITE | D160: Servicio | E160: Jardinero | F160: Jardinero | K160: 2465868 | P160: 1Jardinero
A161: 1GRUPO GECJardinero | B161: 1 | C161: GRUPO GEC | D161: Servicio | E161: Jardinero | F161: Jardinero | K161: 2465868 | P161: 1Jardinero
A162: 1INCIHUILSA SAS ESPJardinero | B162: 1 | C162: INCIHUILSA SAS ESP | D162: Servicio | E162: Jardinero | F162: Jardinero | K162: 2465868 | P162: 1Jardinero
A163: 1INTERASEO S.A.S. E.S.P.Jardinero | B163: 1 | C163: INTERASEO S.A.S. E.S.P. | D163: Servicio | E163: Jardinero | F163: Jardinero | K163: 2465868 | P163: 1Jardinero
A164: 1KIOS SASJardinero | B164: 1 | C164: KIOS SAS | D164: Servicio | E164: Jardinero | F164: Jardinero | K164: 2465868 | P164: 1Jardinero
A165: 1LIMPIEZA INSTITUCIONAL LASU S.A.S.Jardinero | B165: 1 | C165: LIMPIEZA INSTITUCIONAL LASU S.A.S. | D165: Servicio | E165: Jardinero | F165: Jardinero | K165: 2465868 | P165: 1Jardinero
A166: 1N&R INTEGRAL SERVICE COMPANY S.A.S.Jardinero | B166: 1 | C166: N&R INTEGRAL SERVICE COMPANY S.A.S. | D166: Servicio | E166: Jardinero | F166: Jardinero | K166: 2465868 | P166: 1Jardinero
A167: 1SOSEGE SASJardinero | B167: 1 | C167: SOSEGE SAS | D167: Servicio | E167: Jardinero | F167: Jardinero | K167: 2465868 | P167: 1Jardinero
A168: 1UNION TEMPORAL LADOINSA 2022Jardinero | B168: 1 | C168: UNION TEMPORAL LADOINSA 2022 | D168: Servicio | E168: Jardinero | F168: Jardinero | K168: 2730025 | P168: 1Jardinero
A169: 1UNIÓN TEMPORAL ASEO COLOMBIA AMP4Jardinero | B169: 1 | C169: UNIÓN TEMPORAL ASEO COLOMBIA AMP4 | D169: Servicio | E169: Jardinero | F169: Jardinero | K169: 2465868 | P169: 1Jardinero
A170: 1UNIÓN TEMPORAL CCE AMP IV 2022Jardinero | B170: 1 | C170: UNIÓN TEMPORAL CCE AMP IV 2022 | D170: Servicio | E170: Jardinero | F170: Jardinero | K170: 2465868 | P170: 1Jardinero
A171: 1UNION TEMPORAL ECOLIMPIEZA 4GJardinero | B171: 1 | C171: UNION TEMPORAL ECOLIMPIEZA 4G | D171: Servicio | E171: Jardinero | F171: Jardinero | K171: 2465868 | P171: 1Jardinero
A172: 1UNIÓN TEMPORAL EMINSER SOLOASEO 2023Jardinero | B172: 1 | C172: UNIÓN TEMPORAL EMINSER SOLOASEO 2023 | D172: Servicio | E172: Jardinero | F172: Jardinero | K172: 2465868 | P172: 1Jardinero
A173: 1UNION TEMPORAL OUTSOURCING GIAFJardinero | B173: 1 | C173: UNION TEMPORAL OUTSOURCING GIAF | D173: Servicio | E173: Jardinero | F173: Jardinero | K173: 2465868 | P173: 1Jardinero
A174: 1UNION TEMPORAL R&J 2022Jardinero | B174: 1 | C174: UNION TEMPORAL R&J 2022 | D174: Servicio | E174: Jardinero | F174: Jardinero | K174: 2465868 | P174: 1Jardinero
A175: 1UNION TEMPORAL SERVICIOS INTEGRALESJardinero | B175: 1 | C175: UNION TEMPORAL SERVICIOS INTEGRALES | D175: Servicio | E175: Jardinero | F175: Jardinero | K175: 2465868 | P175: 1Jardinero
A176: 1UT EASYCLEAN ASEO PROFESIONALJardinero | B176: 1 | C176: UT EASYCLEAN ASEO PROFESIONAL | D176: Servicio | E176: Jardinero | F176: Jardinero | K176: 2465868 | P176: 1Jardinero
A177: 1UT GRUPO ADINJardinero | B177: 1 | C177: UT GRUPO ADIN | D177: Servicio | E177: Jardinero | F177: Jardinero | K177: 2465868 | P177: 1Jardinero
A178: 1ASECOLBAS LTDAOperario de mantenimiento capacitado para trabajo en alturas | B178: 1 | C178: ASECOLBAS LTDA | D178: Servicio | E178: Operario de mantenimiento capacitado para trabajo en alturas | F178: Operario de mantenimiento capacitado para trabajo en alturas | K178: 2465868 | P178: 1Operario de mantenimiento capacitado para trabajo en alturas
A179: 1CLEANER S.A.Operario de mantenimiento capacitado para trabajo en alturas | B179: 1 | C179: CLEANER S.A. | D179: Servicio | E179: Operario de mantenimiento capacitado para trabajo en alturas | F179: Operario de mantenimiento capacitado para trabajo en alturas | K179: 2465868 | P179: 1Operario de mantenimiento capacitado para trabajo en alturas
A180: 1COMPAÑÍA DE SERVICIOS Y ADMINISTRACIÓN SA SERDAN SAOperario de mantenimiento capacitado para trabajo en alturas | B180: 1 | C180: COMPAÑÍA DE SERVICIOS Y ADMINISTRACIÓN SA SERDAN SA | D180: Servicio | E180: Operario de mantenimiento capacitado para trabajo en alturas | F180: Operario de mantenimiento capacitado para trabajo en alturas | K180: 3023143 | P180: 1Operario de mantenimiento capacitado para trabajo en alturas
A181: 1CONSERJES INMOBILIARIOS LTDAOperario de mantenimiento capacitado para trabajo en alturas | B181: 1 | C181: CONSERJES INMOBILIARIOS LTDA | D181: Servicio | E181: Operario de mantenimiento capacitado para trabajo en alturas | F181: Operario de mantenimiento capacitado para trabajo en alturas | K181: 2465868 | P181: 1Operario de mantenimiento capacitado para trabajo en alturas
A182: 1CONSORCIO ELITEOperario de mantenimiento capacitado para trabajo en alturas | B182: 1 | C182: CONSORCIO ELITE | D182: Servicio | E182: Operario de mantenimiento capacitado para trabajo en alturas | F182: Operario de mantenimiento capacitado para trabajo en alturas | K182: 2465868 | P182: 1Operario de mantenimiento capacitado para trabajo en alturas
A183: 1GRUPO GECOperario de mantenimiento capacitado para trabajo en alturas | B183: 1 | C183: GRUPO GEC | D183: Servicio | E183: Operario de mantenimiento capacitado para trabajo en alturas | F183: Operario de mantenimiento capacitado para trabajo en alturas | K183: 2465868 | P183: 1Operario de mantenimiento capacitado para trabajo en alturas
A184: 1INCIHUILSA SAS ESPOperario de mantenimiento capacitado para trabajo en alturas | B184: 1 | C184: INCIHUILSA SAS ESP | D184: Servicio | E184: Operario de mantenimiento capacitado para trabajo en alturas | F184: Operario de mantenimiento capacitado para trabajo en alturas | K184: 2465868 | P184: 1Operario de mantenimiento capacitado para trabajo en alturas
A185: 1INTERASEO S.A.S. E.S.P.Operario de mantenimiento capacitado para trabajo en alturas | B185: 1 | C185: INTERASEO S.A.S. E.S.P. | D185: Servicio | E185: Operario de mantenimiento capacitado para trabajo en alturas | F185: Operario de mantenimiento capacitado para trabajo en alturas | K185: 2627978 | P185: 1Operario de mantenimiento capacitado para trabajo en alturas
A186: 1KIOS SASOperario de mantenimiento capacitado para trabajo en alturas | B186: 1 | C186: KIOS SAS | D186: Servicio | E186: Operario de mantenimiento capacitado para trabajo en alturas | F186: Operario de mantenimiento capacitado para trabajo en alturas | K186: 2465868 | P186: 1Operario de mantenimiento capacitado para trabajo en alturas
A187: 1LIMPIEZA INSTITUCIONAL LASU S.A.S.Operario de mantenimiento capacitado para trabajo en alturas | B187: 1 | C187: LIMPIEZA INSTITUCIONAL LASU S.A.S. | D187: Servicio | E187: Operario de mantenimiento capacitado para trabajo en alturas | F187: Operario de mantenimiento capacitado para trabajo en alturas | K187: 2465868 | P187: 1Operario de mantenimiento capacitado para trabajo en alturas
A188: 1N&R INTEGRAL SERVICE COMPANY S.A.S.Operario de mantenimiento capacitado para trabajo en alturas | B188: 1 | C188: N&R INTEGRAL SERVICE COMPANY S.A.S. | D188: Servicio | E188: Operario de mantenimiento capacitado para trabajo en alturas | F188: Operario de mantenimiento capacitado para trabajo en alturas | K188: 2465868 | P188: 1Operario de mantenimiento capacitado para trabajo en alturas
A189: 1SOSEGE SASOperario de mantenimiento capacitado para trabajo en alturas | B189: 1 | C189: SOSEGE SAS | D189: Servicio | E189: Operario de mantenimiento capacitado para trabajo en alturas | F189: Operario de mantenimiento capacitado para trabajo en alturas | K189: 2465868 | P189: 1Operario de mantenimiento capacitado para trabajo en alturas
A190: 1UNION TEMPORAL LADOINSA 2022Operario de mantenimiento capacitado para trabajo en alturas | B190: 1 | C190: UNION TEMPORAL LADOINSA 2022 | D190: Servicio | E190: Operario de mantenimiento capacitado para trabajo en alturas | F190: Operario de mantenimiento capacitado para trabajo en alturas | K190: 2990028 | P190: 1Operario de mantenimiento capacitado para trabajo en alturas
A191: 1UNIÓN TEMPORAL ASEO COLOMBIA AMP4Operario de mantenimiento capacitado para trabajo en alturas | B191: 1 | C191: UNIÓN TEMPORAL ASEO COLOMBIA AMP4 | D191: Servicio | E191: Operario de mantenimiento capacitado para trabajo en alturas | F191: Operario de mantenimiento capacitado para trabajo en alturas | K191: 2465868 | P191: 1Operario de mantenimiento capacitado para trabajo en alturas
A192: 1UNIÓN TEMPORAL CCE AMP IV 2022Operario de mantenimiento capacitado para trabajo en alturas | B192: 1 | C192: UNIÓN TEMPORAL CCE AMP IV 2022 | D192: Servicio | E192: Operario de mantenimiento capacitado para trabajo en alturas | F192: Operario de mantenimiento capacitado para trabajo en alturas | K192: 2465868 | P192: 1Operario de mantenimiento capacitado para trabajo en alturas
A193: 1UNION TEMPORAL ECOLIMPIEZA 4GOperario de mantenimiento capacitado para trabajo en alturas | B193: 1 | C193: UNION TEMPORAL ECOLIMPIEZA 4G | D193: Servicio | E193: Operario de mantenimiento capacitado para trabajo en alturas | F193: Operario de mantenimiento capacitado para trabajo en alturas | K193: 2465868 | P193: 1Operario de mantenimiento capacitado para trabajo en alturas
A194: 1UNIÓN TEMPORAL EMINSER SOLOASEO 2023Operario de mantenimiento capacitado para trabajo en alturas | B194: 1 | C194: UNIÓN TEMPORAL EMINSER SOLOASEO 2023 | D194: Servicio | E194: Operario de mantenimiento capacitado para trabajo en alturas | F194: Operario de mantenimiento capacitado para trabajo en alturas | K194: 2465868 | P194: 1Operario de mantenimiento capacitado para trabajo en alturas
A195: 1UNION TEMPORAL OUTSOURCING GIAFOperario de mantenimiento capacitado para trabajo en alturas | B195: 1 | C195: UNION TEMPORAL OUTSOURCING GIAF | D195: Servicio | E195: Operario de mantenimiento capacitado para trabajo en alturas | F195: Operario de mantenimiento capacitado para trabajo en alturas | K195: 2465868 | P195: 1Operario de mantenimiento capacitado para trabajo en alturas
A196: 1UNION TEMPORAL R&J 2022Operario de mantenimiento capacitado para trabajo en alturas | B196: 1 | C196: UNION TEMPORAL R&J 2022 | D196: Servicio | E196: Operario de mantenimiento capacitado para trabajo en alturas | F196: Operario de mantenimiento capacitado para trabajo en alturas | K196: 2465868 | P196: 1Operario de mantenimiento capacitado para trabajo en alturas
A197: 1UNION TEMPORAL SERVICIOS INTEGRALESOperario de mantenimiento capacitado para trabajo en alturas | B197: 1 | C197: UNION TEMPORAL SERVICIOS INTEGRALES | D197: Servicio | E197: Operario de mantenimiento capacitado para trabajo en alturas | F197: Operario de mantenimiento capacitado para trabajo en alturas | K197: 2465868 | P197: 1Operario de mantenimiento capacitado para trabajo en alturas
A198: 1UT EASYCLEAN ASEO PROFESIONALOperario de mantenimiento capacitado para trabajo en alturas | B198: 1 | C198: UT EASYCLEAN ASEO PROFESIONAL | D198: Servicio | E198: Operario de mantenimiento capacitado para trabajo en alturas | F198: Operario de mantenimiento capacitado para trabajo en alturas | K198: 2465868 | P198: 1Operario de mantenimiento capacitado para trabajo en alturas
A199: 1UT GRUPO ADINOperario de mantenimiento capacitado para trabajo en alturas | B199: 1 | C199: UT GRUPO ADIN | D199: Servicio | E199: Operario de mantenimiento capacitado para trabajo en alturas | F199: Operario de mantenimiento capacitado para trabajo en alturas | K199: 2465868 | P199: 1Operario de mantenimiento capacitado para trabajo en alturas
A200: 1ASECOLBAS LTDAOperario auxiliar capacitado para trabajo en alturas | B200: 1 | C200: ASECOLBAS LTDA | D200: Servicio | E200: Operario auxiliar capacitado para trabajo en alturas | F200: Operario auxiliar capacitado para trabajo en alturas | K200: 2465868 | P200: 1Operario auxiliar capacitado para trabajo en alturas
... 4300 more rows

Sheet solCotizacionCSV_es (hidden)
A1: Tipo | B1: Cantidad | C1: CÃ³digo de unidad de medida* | D1: Precio base | E1: Divisa | F1: DescripciÃ³n | G1: MercancÃ­a
A2: item | B2: 7 | C2: Mes | D2: "2465868" | E2: COP | F2: ays04--R13 - Operario de aseo y cafeterÃ­a Tiempo Completo - 1
A3: item | B3: 7 | C3: Mes | D3: "0" | E3: COP | F3: ays04--R13 - Operario de aseo y cafeterÃ­a MT Medio Tiempo - 0
A4: item | B4: 7 | C4: Und | D4: "6675" | E4: COP | F4: ays04--R13 - JabÃ³n para loza 4 (Compra) - 1
A5: item | B5: 7 | C5: Und | D5: "8933" | E5: COP | F5: ays04--R13 - JabÃ³n de dispensador para manos 2 (Compra) - 1
A6: item | B6: 7 | C6: Und | D6: "7044" | E6: COP | F6: ays04--R13 - Limpiador multiusos 1 (Compra) - 1
A7: item | B7: 7 | C7: Und | D7: "5720" | E7: COP | F7: ays04--R13 - Detergente multiusos en polvo (Compra) - 1
A8: item | B8: 7 | C8: Und | D8: "7149" | E8: COP | F8: ays04--R13 - Limpiador desinfectante para uso general 1 (Compra) - 1
A9: item | B9: 7 | C9: Und | D9: "6641" | E9: COP | F9: ays04--R13 - Blanqueador o hipoclorito 1 (Compra) - 1
A10: item | B10: 7 | C10: Und | D10: "19528" | E10: COP | F10: ays04--R13 - Varsol ecolÃ³gico 2 (Compra) - 1
A11: item | B11: 7 | C11: Und | D11: "7229" | E11: COP | F11: ays04--R13 - Ambientador 1 (Compra) - 1
A12: item | B12: 7 | C12: Und | D12: "1558" | E12: COP | F12: ays04--R13 - Esponjilla 1 (Compra) - 2
A13: item | B13: 7 | C13: Und | D13: "4635" | E13: COP | F13: ays04--R13 - Escoba 3 (Compra) - 1
A14: item | B14: 7 | C14: Und | D14: "4635" | E14: COP | F14: ays04--R13 - Escoba 4 (Compra) - 1
A15: item | B15: 7 | C15: Und | D15: "4328" | E15: COP | F15: ays04--R13 - Mango madera escoba 1 (Compra) - 2
A16: item | B16: 7 | C16: Und | D16: "7209" | E16: COP | F16: ays04--R13 - Trapero 4 (Compra) - 1
A17: item | B17: 7 | C17: Und | D17: "717" | E17: COP | F17: ays04--R13 - Bolsas plÃ¡sticas 1 (Compra) - 1
A18: item | B18: 7 | C18: Und | D18: "868" | E18: COP | F18: ays04--R13 - Bolsas plÃ¡sticas 3 (Compra) - 1
A19: item | B19: 7 | C19: Und | D19: "22136" | E19: COP | F19: ays04--R13 - Bolsas plÃ¡sticas 21 (Compra) - 4
A20: item | B20: 7 | C20: Und | D20: "16908" | E20: COP | F20: ays04--R13 - Bolsas plÃ¡sticas 22 (Compra) - 4
A21: item | B21: 7 | C21: Und | D21: "16908" | E21: COP | F21: ays04--R13 - Bolsas plÃ¡sticas 23 (Compra) - 4
A22: item | B22: 7 | C22: Und | D22: "15586" | E22: COP | F22: ays04--R13 - Tapabocas 2 (Compra) - 1
A23: item | B23: 7 | C23: Und | D23: "44656" | E23: COP | F23: ays04--R13 - Papel higiÃ©nico 3 (Compra) - 4
A24: item | B24: 7 | C24: Und | D24: "55696" | E24: COP | F24: ays04--R13 - Toallas para manos 6 (Compra) - 8
A25: item | B25: 7 | C25: Und | D25: "15200" | E25: COP | F25: ays04--R13 - Vasos biodegradables 1 (Compra) - 2
A26: item | B26: 7 | C26: Und | D26: "10528" | E26: COP | F26: ays04--R13 - Vasos biodegradables 3 (Compra) - 1
A27: item | B27: 7 | C27: Und | D27: "6876" | E27: COP | F27: ays04--R13 - Servilleta papel (Compra) - 3
A28: item | B28: 7 | C28: Und | D28: "114690" | E28: COP | F28: ays04--R13 - CafÃ© 1 (Compra) - 6
A29: item | B29: 7 | C29: Und | D29: "39044" | E29: COP | F29: ays04--R13 - AzÃºcar 1 (Compra) - 4
A30: item | B30: 7 | C30: Und | D30: "5124" | E30: COP | F30: ays04--R13 - AromÃ¡tica (Compra) - 3
A31: item | B31: 7 | C31: Und | D31: "7272" | E31: COP | F31: ays04--R13 - InfusiÃ³n frutal (Compra) - 3
A32: item | B32: 7 | C32: Und | D32: "186900" | E32: COP | F32: ays04--R13 - Agua potable 4 (Compra) - 15
A33: item | B33: 7 | C33: Und | D33: "3169" | E33: COP | F33: ays04--R13 - Recogedor de basura 1 (Compra) - 1
A34: item | B34: 1 | C34: Und | D34: "0" | E34: COP | F34: ays04--R13 - Recargo por Trabajo nocturno, extra, dominical y festivo
A35: item | B35: 1 | C35: Und | D35: "0" | E35: COP | F35: ays04--R13 - Recargo por dotaciÃ³n especial
A36: item | B36: 1 | C36: Und | D36: "2183601" | E36: COP | F36: ays04--R13 - AIU
A37: item | B37: 1 | C37: Und | D37: "414884" | E37: COP | F37: ays04--R13 - IVA

Sheet Listas (hidden)
A1: RegionCobertura | B1: TipoInstalacion | C1: TipoServicioSede | D1: check | E1: Confirmacion | F1: Hora | G1: meridiano | H1: PersonalTC | I1: PersonalMT | J1: PersonalTurno | K1: regioncobertura1 | L1: regioncobertura2 | M1: regioncobertura3 | N1: regioncobertura4 | O1: regioncobertura5 | P1: regioncobertura6 | Q1: regioncobertura7 | R1: regioncobertura8 | S1: regioncobertura9 | T1: regioncobertura10 | U1: regioncobertura11 | V1: regioncobertura12 | W1: regioncobertura13 | X1: regioncobertura14 | Y1: regioncobertura15 | Z1: regioncobertura16 | AA1: regioncobertura17 | AB1: regioncobertura18
A2: 1 | B2: Batallón | C2: Aseo | D2: X | E2: Sí | F2: 08:00:00 | G2: a.m. | H2: Operario de aseo y cafetería con compromiso social | I2: Operario de aseo y cafetería MT | J2: Turno operario de mantenimiento | K2: ASECOLBAS LTDA | L2: ASECOLBAS LTDA | M2: ASECOLBAS LTDA | N2: ASECOLBAS LTDA | O2: ASECOLBAS LTDA | P2: ASECOLBAS LTDA | Q2: ASECOLBAS LTDA | R2: ASECOLBAS LTDA | S2: ASECOLBAS LTDA | T2: ASECOLBAS LTDA | U2: BRILLASEO S.A.S | V2: AMERICANA DE SERVICIOS LTDA | W2: AMERICANA DE SERVICIOS LTDA | X2: AMERICANA DE SERVICIOS LTDA | Y2: AMERICANA DE SERVICIOS LTDA | Z2: AMERICANA DE SERVICIOS LTDA | AA2: AMERICANA DE SERVICIOS LTDA | AB2: AMERICANA DE SERVICIOS LTDA
A3: 2 | B3: Campestre | C3: Aseo y cafetería | E3: No | F3: 08:30:00 | G3: p.m. | H3: Operario de aseo y cafetería | I3: Operario de mantenimiento MT | J3: Turno operario de mantenimiento capacitado para trabajo en alturas nivel básico | K3: CLEANER S.A. | L3: BRILLASEO S.A.S | M3: ASSERVI SAS | N3: ASSERVI SAS | O3: ASSERVI SAS | P3: CLEANER S.A. | Q3: CLEANER S.A. | R3: BRILLASEO S.A.S | S3: BRILLASEO S.A.S | T3: CLEANER S.A. | U3: CLEANER S.A. | V3: ASECOLBAS LTDA | W3: ASECOLBAS LTDA | X3: ASECOLBAS LTDA | Y3: ASECOLBAS LTDA | Z3: ASECOLBAS LTDA | AA3: ASECOLBAS LTDA | AB3: ASECOLBAS LTDA
